Transaction Date,Local Authority Department,Beneficiary,Purpose of Expenditure,Amount (excluding VAT),Non Recoverable VAT,Merchant Category
 01-08-2023,oneSource Non-Shared LBH,South Park Heating Services Ltd,Building Alterations And Materials,500.00,0.00,CIS 
 01-08-2023,oneSource Non-Shared LBH,South Park Heating Services Ltd,Building Alterations And Materials,672.00,0.00,CIS 
 01-08-2023,oneSource Non-Shared LBH,CMS Accommodating People Ltd,Premises Hire - Facilities,702.00,0.00,CIS 
 01-08-2023,oneSource Non-Shared LBH,Fisk Group,Catering And Vending Supplies,4176.10,0.00,COMMERCIAL SUPPLIER 
 01-08-2023,oneSource Non-Shared LBH,Mistral Bus and Coach PLC,Vehicle Hire,2718.85,0.00,COMMERCIAL SUPPLIER 
 01-08-2023,oneSource Non-Shared LBH,Mistral Bus and Coach PLC,Vehicle Hire,3198.83,0.00,COMMERCIAL SUPPLIER 
 01-08-2023,oneSource Non-Shared LBH,Mistral Bus and Coach PLC,Vehicle Hire,3433.47,0.00,COMMERCIAL SUPPLIER 
 01-08-2023,oneSource Non-Shared LBH,Mistral Bus and Coach PLC,Vehicle Hire,2514.52,0.00,COMMERCIAL SUPPLIER 
 01-08-2023,oneSource Non-Shared LBH,Mistral Bus and Coach PLC,Vehicle Hire,2641.07,0.00,COMMERCIAL SUPPLIER 
 01-08-2023,oneSource Non-Shared LBH,Mistral Bus and Coach PLC,Vehicle Hire,3198.83,0.00,COMMERCIAL SUPPLIER 
 01-08-2023,oneSource Non-Shared LBH,Mistral Bus and Coach PLC,Vehicle Hire,4157.42,0.00,COMMERCIAL SUPPLIER 
 01-08-2023,oneSource Non-Shared LBH,Dawsongroup Environmental Municipal Civil Ltd,Vehicle Hire,2802.68,0.00,COMMERCIAL SUPPLIER 
 01-08-2023,oneSource Non-Shared LBH,Dawsongroup Environmental Municipal Civil Ltd,Vehicle Hire,2802.68,0.00,COMMERCIAL SUPPLIER 
 01-08-2023,oneSource Non-Shared LBH,Dawsongroup Environmental Municipal Civil Ltd,Vehicle Hire,3497.92,0.00,COMMERCIAL SUPPLIER 
 01-08-2023,oneSource Non-Shared LBH,Dawsongroup Environmental Municipal Civil Ltd,Vehicle Hire,2802.68,0.00,COMMERCIAL SUPPLIER 
 01-08-2023,oneSource Non-Shared LBH,Dawsongroup Environmental Municipal Civil Ltd,Vehicle Hire,2802.68,0.00,COMMERCIAL SUPPLIER 
 02-08-2023,oneSource Non-Shared LBH,Matrix SCM Ltd,Agency Staff,645.40,0.00,COMMERCIAL SUPPLIER 
 02-08-2023,oneSource Non-Shared LBH,Matrix SCM Ltd,Agency Staff,555.39,0.00,COMMERCIAL SUPPLIER 
 02-08-2023,oneSource Non-Shared LBH,Matrix SCM Ltd,Agency Staff,841.51,0.00,COMMERCIAL SUPPLIER 
 02-08-2023,oneSource Non-Shared LBH,Matrix SCM Ltd,Agency Staff,525.90,0.00,COMMERCIAL SUPPLIER 
 02-08-2023,oneSource Non-Shared LBH,Matrix SCM Ltd,Agency Staff,732.11,0.00,COMMERCIAL SUPPLIER 
 02-08-2023,oneSource Non-Shared LBH,Matrix SCM Ltd,Agency Staff,609.36,0.00,COMMERCIAL SUPPLIER 
 02-08-2023,oneSource Non-Shared LBH,Matrix SCM Ltd,Agency Staff,567.00,0.00,COMMERCIAL SUPPLIER 
 02-08-2023,oneSource Non-Shared LBH,Matrix SCM Ltd,Agency Staff,513.62,0.00,COMMERCIAL SUPPLIER 
 02-08-2023,oneSource Non-Shared LBH,Matrix SCM Ltd,Agency Staff,500.70,0.00,COMMERCIAL SUPPLIER 
 02-08-2023,oneSource Non-Shared LBH,Matrix SCM Ltd,Agency Staff,521.37,0.00,COMMERCIAL SUPPLIER 
 02-08-2023,oneSource Non-Shared LBH,Matrix SCM Ltd,Agency Staff,521.73,0.00,COMMERCIAL SUPPLIER 
 02-08-2023,oneSource Non-Shared LBH,Matrix SCM Ltd,Agency Staff,2101.95,0.00,COMMERCIAL SUPPLIER 
 02-08-2023,oneSource Non-Shared LBH,Matrix SCM Ltd,Agency Staff,2217.00,0.00,COMMERCIAL SUPPLIER 
 02-08-2023,oneSource Non-Shared LBH,Matrix SCM Ltd,Agency Staff,2217.00,0.00,COMMERCIAL SUPPLIER 
 02-08-2023,oneSource Non-Shared LBH,Matrix SCM Ltd,Agency Staff,2081.82,0.00,COMMERCIAL SUPPLIER 
 02-08-2023,oneSource Non-Shared LBH,Matrix SCM Ltd,Agency Staff,1729.71,0.00,COMMERCIAL SUPPLIER 
 02-08-2023,oneSource Non-Shared LBH,Matrix SCM Ltd,Agency Staff,2818.70,0.00,COMMERCIAL SUPPLIER 
 02-08-2023,oneSource Non-Shared LBH,Matrix SCM Ltd,Agency Staff,2256.65,0.00,COMMERCIAL SUPPLIER 
 02-08-2023,oneSource Non-Shared LBH,Matrix SCM Ltd,Agency Staff,1998.80,0.00,COMMERCIAL SUPPLIER 
 02-08-2023,oneSource Non-Shared LBH,Matrix SCM Ltd,Agency Staff,1333.40,0.00,COMMERCIAL SUPPLIER 
 02-08-2023,oneSource Non-Shared LBH,Matrix SCM Ltd,Agency Staff,1901.65,0.00,COMMERCIAL SUPPLIER 
 02-08-2023,oneSource Non-Shared LBH,Matrix SCM Ltd,Agency Staff,1333.40,0.00,COMMERCIAL SUPPLIER 
 02-08-2023,oneSource Non-Shared LBH,Matrix SCM Ltd,Agency Staff,1077.25,0.00,COMMERCIAL SUPPLIER 
 02-08-2023,oneSource Non-Shared LBH,Matrix SCM Ltd,Agency Staff,1975.55,0.00,COMMERCIAL SUPPLIER 
 02-08-2023,oneSource Non-Shared LBH,Matrix SCM Ltd,Agency Staff,1174.80,0.00,COMMERCIAL SUPPLIER 
 02-08-2023,oneSource Non-Shared LBH,Personal Information - Redacted,Postage And Courier Services,1290.00,0.00,Employee 
 02-08-2023,oneSource Non-Shared LBH,John Burke Associates,Surveys,975.00,0.00,COMMERCIAL SUPPLIER 
 02-08-2023,oneSource Non-Shared LBH,John Burke Associates,Surveys,975.00,0.00,COMMERCIAL SUPPLIER 
 02-08-2023,oneSource Non-Shared LBH,John Burke Associates,Surveys,975.00,0.00,COMMERCIAL SUPPLIER 
 03-08-2023,oneSource Non-Shared LBH,Scarab Sweepers Ltd_a,Purchase - Equipment Furniture And Materials,559.62,0.00,COMMERCIAL SUPPLIER 
 03-08-2023,oneSource Non-Shared LBH,Albert Road Service Station Ltd,Purchase - Equipment Furniture And Materials,1528.00,0.00,COMMERCIAL SUPPLIER 
 03-08-2023,oneSource Non-Shared LBH,E H Roberts-Penet Group Ltd,Vehicle Hire,677.98,0.00,COMMERCIAL SUPPLIER 
 03-08-2023,oneSource Non-Shared LBH,Car & Commercial Components Ltd_a,Purchase - Equipment Furniture And Materials,577.98,0.00,COMMERCIAL SUPPLIER 
 03-08-2023,oneSource Non-Shared LBH,EP Clean,Purchase - Equipment Furniture And Materials,800.00,0.00,COMMERCIAL SUPPLIER 
 03-08-2023,oneSource Non-Shared LBH,Eminox UK Ltd,Purchase - Equipment Furniture And Materials,975.00,0.00,COMMERCIAL SUPPLIER 
 03-08-2023,oneSource Non-Shared LBH,Eminox UK Ltd,Purchase - Equipment Furniture And Materials,975.00,0.00,COMMERCIAL SUPPLIER 
 03-08-2023,oneSource Non-Shared LBH,New Era Fuels Ltd,Purchase - Equipment Furniture And Materials,2087.13,0.00,COMMERCIAL SUPPLIER 
 03-08-2023,oneSource Non-Shared LBH,New Era Fuels Ltd,Purchase - Equipment Furniture And Materials,1305.14,0.00,COMMERCIAL SUPPLIER 
 03-08-2023,oneSource Non-Shared LBH,Precision Lift Services Ltd_a,Cyclical/Planned Maintenance - Mechanical And Electrical,750.00,0.00,CIS 
 04-08-2023,oneSource Non-Shared LBH,Keegans Ltd,Surveys,1225.00,0.00,COMMERCIAL SUPPLIER 
 04-08-2023,oneSource Non-Shared LBH,Serco Ltd,Refuse Collection,625.55,0.00,COMMERCIAL SUPPLIER 
 04-08-2023,oneSource Non-Shared LBH,Evans & Shea Ltd,Facilities Management,5800.65,0.00,COMMERCIAL SUPPLIER 
 04-08-2023,oneSource Non-Shared LBH,Evans & Shea Ltd,Facilities Management,637.50,0.00,COMMERCIAL SUPPLIER 
 04-08-2023,oneSource Non-Shared LBH,Evans & Shea Ltd,Facilities Management,552.94,0.00,COMMERCIAL SUPPLIER 
 04-08-2023,oneSource Non-Shared LBH,Reesink UK Ltd,Purchase - Equipment Furniture And Materials,1231.08,0.00,COMMERCIAL SUPPLIER 
 07-08-2023,oneSource Non-Shared LBH,Digitec Security Ltd,Security Services (Excluding Premises),756.45,0.00,COMMERCIAL SUPPLIER 
 08-08-2023,oneSource Non-Shared LBH,Thrive Therapeutic Software Ltd,Payment To Health Authorities,8769.00,0.00,VENDOR 
 08-08-2023,oneSource Non-Shared LBH,London Network for Pest Solutions Ltd,Private Contractors Payment - Other,9385.23,0.00,COMMERCIAL SUPPLIER 
 09-08-2023,oneSource Non-Shared LBH,Motus Truck & Van,Purchase - Equipment Furniture And Materials,551.96,0.00,COMMERCIAL SUPPLIER 
 09-08-2023,oneSource Non-Shared LBH,Ernest Doe & Sons Ltd_a,Purchase - Equipment Furniture And Materials,688.97,0.00,COMMERCIAL SUPPLIER 
 09-08-2023,oneSource Non-Shared LBH,Ernest Doe & Sons Ltd_a,Purchase - Equipment Furniture And Materials,912.48,0.00,COMMERCIAL SUPPLIER 
 09-08-2023,oneSource Non-Shared LBH,Serco Ltd,Refuse Collection,830.44,0.00,COMMERCIAL SUPPLIER 
 09-08-2023,oneSource Non-Shared LBH,Serco Ltd,Refuse Collection,788.55,0.00,COMMERCIAL SUPPLIER 
 09-08-2023,oneSource Non-Shared LBH,Serco Ltd,Refuse Collection,1115.32,0.00,COMMERCIAL SUPPLIER 
 09-08-2023,oneSource Non-Shared LBH,Serco Ltd,Refuse Collection,629.33,0.00,COMMERCIAL SUPPLIER 
 09-08-2023,oneSource Non-Shared LBH,Matrix SCM Ltd,Agency Staff,656.54,0.00,COMMERCIAL SUPPLIER 
 09-08-2023,oneSource Non-Shared LBH,Matrix SCM Ltd,Agency Staff,525.90,0.00,COMMERCIAL SUPPLIER 
 09-08-2023,oneSource Non-Shared LBH,Matrix SCM Ltd,Agency Staff,713.80,0.00,COMMERCIAL SUPPLIER 
 09-08-2023,oneSource Non-Shared LBH,Matrix SCM Ltd,Agency Staff,631.13,0.00,COMMERCIAL SUPPLIER 
 09-08-2023,oneSource Non-Shared LBH,Matrix SCM Ltd,Agency Staff,522.31,0.00,COMMERCIAL SUPPLIER 
 09-08-2023,oneSource Non-Shared LBH,Matrix SCM Ltd,Agency Staff,645.40,0.00,COMMERCIAL SUPPLIER 
 09-08-2023,oneSource Non-Shared LBH,Matrix SCM Ltd,Agency Staff,645.40,0.00,COMMERCIAL SUPPLIER 
 09-08-2023,oneSource Non-Shared LBH,Matrix SCM Ltd,Agency Staff,504.89,0.00,COMMERCIAL SUPPLIER 
 09-08-2023,oneSource Non-Shared LBH,Matrix SCM Ltd,Agency Staff,559.60,0.00,COMMERCIAL SUPPLIER 
 09-08-2023,oneSource Non-Shared LBH,Matrix SCM Ltd,Agency Staff,841.51,0.00,COMMERCIAL SUPPLIER 
 09-08-2023,oneSource Non-Shared LBH,Matrix SCM Ltd,Agency Staff,3469.70,0.00,COMMERCIAL SUPPLIER 
 09-08-2023,oneSource Non-Shared LBH,Matrix SCM Ltd,Agency Staff,2306.28,0.00,COMMERCIAL SUPPLIER 
 09-08-2023,oneSource Non-Shared LBH,Matrix SCM Ltd,Agency Staff,1901.65,0.00,COMMERCIAL SUPPLIER 
 09-08-2023,oneSource Non-Shared LBH,Matrix SCM Ltd,Agency Staff,2818.70,0.00,COMMERCIAL SUPPLIER 
 09-08-2023,oneSource Non-Shared LBH,Matrix SCM Ltd,Agency Staff,1998.80,0.00,COMMERCIAL SUPPLIER 
 09-08-2023,oneSource Non-Shared LBH,Matrix SCM Ltd,Agency Staff,1975.55,0.00,COMMERCIAL SUPPLIER 
 09-08-2023,oneSource Non-Shared LBH,Matrix SCM Ltd,Agency Staff,1077.25,0.00,COMMERCIAL SUPPLIER 
 09-08-2023,oneSource Non-Shared LBH,Matrix SCM Ltd,Agency Staff,2101.95,0.00,COMMERCIAL SUPPLIER 
 09-08-2023,oneSource Non-Shared LBH,Matrix SCM Ltd,Agency Staff,1174.80,0.00,COMMERCIAL SUPPLIER 
 09-08-2023,oneSource Non-Shared LBH,Matrix SCM Ltd,Agency Staff,1333.40,0.00,COMMERCIAL SUPPLIER 
 09-08-2023,oneSource Non-Shared LBH,Matrix SCM Ltd,Agency Staff,1333.40,0.00,COMMERCIAL SUPPLIER 
 09-08-2023,oneSource Non-Shared LBH,Matrix SCM Ltd,Agency Staff,2944.95,0.00,COMMERCIAL SUPPLIER 
 09-08-2023,oneSource Non-Shared LBH,Kingdom Security Ltd,Security Services (Excluding Premises),5711.20,0.00,COMMERCIAL SUPPLIER 
 09-08-2023,oneSource Non-Shared LBH,Kingdom Security Ltd,Security Services (Excluding Premises),3997.50,0.00,COMMERCIAL SUPPLIER 
 09-08-2023,oneSource Non-Shared LBH,Bloom Procurement Services Ltd,Consultancy Fees,1700.00,0.00,COMMERCIAL SUPPLIER 
 10-08-2023,oneSource Non-Shared LBH,Laker BMS Ltd,Facilities Management,5678.46,0.00,COMMERCIAL SUPPLIER 
 10-08-2023,oneSource Non-Shared LBH,Harris Commercial Repairs Ltd,Purchase - Equipment Furniture And Materials,558.62,0.00,VENDOR 
 10-08-2023,oneSource Non-Shared LBH,Computershare Voucher Services,Private Contractors Payment - Other,3458.00,0.00,COMMERCIAL SUPPLIER 
 11-08-2023,oneSource Non-Shared LBH,The Disablement Association of Barking and Dagenham t/as DABD (UK),Client Transport,90000.00,0.00,COMMERCIAL SUPPLIER 
 11-08-2023,oneSource Non-Shared LBH,Autoquip,Purchase - Equipment Furniture And Materials,703.50,0.00,COMMERCIAL SUPPLIER 
 11-08-2023,oneSource Non-Shared LBH,Ernest Doe & Sons Ltd_a,Purchase - Equipment Furniture And Materials,519.77,0.00,COMMERCIAL SUPPLIER 
 11-08-2023,oneSource Non-Shared LBH,Anglian Water Business,Water And Sewerage,1869.99,0.00,COMMERCIAL SUPPLIER 
 11-08-2023,oneSource Non-Shared LBH,Anglian Water Business,Water And Sewerage,934.06,0.00,COMMERCIAL SUPPLIER 
 11-08-2023,oneSource Non-Shared LBH,Anglian Water Business,Water And Sewerage,1081.68,0.00,COMMERCIAL SUPPLIER 
 15-08-2023,oneSource Non-Shared LBH,People Asset Management,Occupational Health,3128.19,0.00,COMMERCIAL SUPPLIER 
 15-08-2023,oneSource Non-Shared LBH,People Asset Management,Occupational Health,3128.19,0.00,COMMERCIAL SUPPLIER 
 15-08-2023,oneSource Non-Shared LBH,People Asset Management,Occupational Health,3128.19,0.00,COMMERCIAL SUPPLIER 
 15-08-2023,oneSource Non-Shared LBH,People Asset Management,Occupational Health,3128.19,0.00,COMMERCIAL SUPPLIER 
 15-08-2023,oneSource Non-Shared LBH,Allstar Business Solutions Ltd_a,Purchase - Equipment Furniture And Materials,1098.75,0.00,COMMERCIAL SUPPLIER 
 15-08-2023,oneSource Non-Shared LBH,D & B Motors & Sons,Purchase - Equipment Furniture And Materials,655.00,0.00,COMMERCIAL SUPPLIER 
 15-08-2023,oneSource Non-Shared LBH,Kingdom Security Ltd,Security Services (Excluding Premises),5711.20,0.00,COMMERCIAL SUPPLIER 
 15-08-2023,oneSource Non-Shared LBH,Kingdom Security Ltd,Security Services (Excluding Premises),3997.50,0.00,COMMERCIAL SUPPLIER 
 16-08-2023,oneSource Non-Shared LBH,Havering Building Specialists Ltd,Cyclical/Planned Maintenance - Mechanical And Electrical,6513.00,0.00,CIS 
 16-08-2023,oneSource Non-Shared LBH,Wilks Head & Eve,Maintenance - Equipment Furniture And Materials,2000.00,0.00,COMMERCIAL SUPPLIER 
 16-08-2023,oneSource Non-Shared LBH,Digitec Security Ltd,Security Services (Excluding Premises),836.00,0.00,COMMERCIAL SUPPLIER 
 16-08-2023,oneSource Non-Shared LBH,Digitec Security Ltd,Security Services (Excluding Premises),624.40,0.00,COMMERCIAL SUPPLIER 
 16-08-2023,oneSource Non-Shared LBH,Matrix SCM Ltd,Agency Staff,656.54,0.00,COMMERCIAL SUPPLIER 
 16-08-2023,oneSource Non-Shared LBH,Matrix SCM Ltd,Agency Staff,841.51,0.00,COMMERCIAL SUPPLIER 
 16-08-2023,oneSource Non-Shared LBH,Matrix SCM Ltd,Agency Staff,525.90,0.00,COMMERCIAL SUPPLIER 
 16-08-2023,oneSource Non-Shared LBH,Matrix SCM Ltd,Agency Staff,513.32,0.00,COMMERCIAL SUPPLIER 
 16-08-2023,oneSource Non-Shared LBH,Matrix SCM Ltd,Agency Staff,504.90,0.00,COMMERCIAL SUPPLIER 
 16-08-2023,oneSource Non-Shared LBH,Matrix SCM Ltd,Agency Staff,500.70,0.00,COMMERCIAL SUPPLIER 
 16-08-2023,oneSource Non-Shared LBH,Matrix SCM Ltd,Agency Staff,715.28,0.00,COMMERCIAL SUPPLIER 
 16-08-2023,oneSource Non-Shared LBH,Matrix SCM Ltd,Agency Staff,713.80,0.00,COMMERCIAL SUPPLIER 
 16-08-2023,oneSource Non-Shared LBH,Matrix SCM Ltd,Agency Staff,516.32,0.00,COMMERCIAL SUPPLIER 
 16-08-2023,oneSource Non-Shared LBH,Matrix SCM Ltd,Agency Staff,655.90,0.00,COMMERCIAL SUPPLIER 
 16-08-2023,oneSource Non-Shared LBH,Matrix SCM Ltd,Agency Staff,645.40,0.00,COMMERCIAL SUPPLIER 
 16-08-2023,oneSource Non-Shared LBH,Matrix SCM Ltd,Agency Staff,1729.71,0.00,COMMERCIAL SUPPLIER 
 16-08-2023,oneSource Non-Shared LBH,Matrix SCM Ltd,Agency Staff,2217.00,0.00,COMMERCIAL SUPPLIER 
 16-08-2023,oneSource Non-Shared LBH,Matrix SCM Ltd,Agency Staff,2217.00,0.00,COMMERCIAL SUPPLIER 
 16-08-2023,oneSource Non-Shared LBH,Matrix SCM Ltd,Agency Staff,1975.55,0.00,COMMERCIAL SUPPLIER 
 16-08-2023,oneSource Non-Shared LBH,Matrix SCM Ltd,Agency Staff,1077.25,0.00,COMMERCIAL SUPPLIER 
 16-08-2023,oneSource Non-Shared LBH,Matrix SCM Ltd,Agency Staff,2101.95,0.00,COMMERCIAL SUPPLIER 
 16-08-2023,oneSource Non-Shared LBH,Matrix SCM Ltd,Agency Staff,1174.80,0.00,COMMERCIAL SUPPLIER 
 16-08-2023,oneSource Non-Shared LBH,Matrix SCM Ltd,Agency Staff,1901.65,0.00,COMMERCIAL SUPPLIER 
 16-08-2023,oneSource Non-Shared LBH,Matrix SCM Ltd,Agency Staff,2818.70,0.00,COMMERCIAL SUPPLIER 
 16-08-2023,oneSource Non-Shared LBH,Matrix SCM Ltd,Agency Staff,1199.28,0.00,COMMERCIAL SUPPLIER 
 16-08-2023,oneSource Non-Shared LBH,Matrix SCM Ltd,Agency Staff,1333.40,0.00,COMMERCIAL SUPPLIER 
 16-08-2023,oneSource Non-Shared LBH,Matrix SCM Ltd,Agency Staff,1353.99,0.00,COMMERCIAL SUPPLIER 
 16-08-2023,oneSource Non-Shared LBH,Matrix SCM Ltd,Agency Staff,1333.40,0.00,COMMERCIAL SUPPLIER 
 17-08-2023,oneSource Non-Shared LBH,EP Clean,Purchase - Equipment Furniture And Materials,600.00,0.00,COMMERCIAL SUPPLIER 
 17-08-2023,oneSource Non-Shared LBH,Laker BMS Ltd,Facilities Management,785.14,0.00,COMMERCIAL SUPPLIER 
 17-08-2023,oneSource Non-Shared LBH,Precision Lift Services Ltd_a,Cyclical/Planned Maintenance - Mechanical And Electrical,1325.00,0.00,CIS 
 17-08-2023,oneSource Non-Shared LBH,Precision Lift Services Ltd_a,Cyclical/Planned Maintenance - Mechanical And Electrical,1325.00,0.00,CIS 
 17-08-2023,oneSource Non-Shared LBH,Precision Lift Services Ltd_a,Cyclical/Planned Maintenance - Mechanical And Electrical,607.38,0.00,CIS 
 17-08-2023,oneSource Non-Shared LBH,Fast Fuel Services,Purchase - Equipment Furniture And Materials,1375.00,0.00,COMMERCIAL SUPPLIER 
 17-08-2023,oneSource Non-Shared LBH,Fast Fuel Services,Purchase - Equipment Furniture And Materials,20155.83,0.00,COMMERCIAL SUPPLIER 
 18-08-2023,oneSource Non-Shared LBH,Canon (UK) Ltd,Printing,1300.01,0.00,COMMERCIAL SUPPLIER 
 19-08-2023,oneSource Non-Shared LBH,Buildright Solutions Ltd,Maintenance - Equipment Furniture And Materials,2400.00,0.00,CIS 
 21-08-2023,oneSource Non-Shared LBH,Havering Building Specialists Ltd,Cyclical/Planned Maintenance - Mechanical And Electrical,790.00,0.00,CIS 
 21-08-2023,oneSource Non-Shared LBH,Alexander Dennis Ltd,Purchase - Equipment Furniture And Materials,6229.00,0.00,COMMERCIAL SUPPLIER 
 21-08-2023,oneSource Non-Shared LBH,D & B Motors & Sons,Purchase - Equipment Furniture And Materials,635.00,0.00,COMMERCIAL SUPPLIER 
 22-08-2023,oneSource Non-Shared LBH,Alltype Fencing Specialists Ltd,Building Alterations And Materials,805.00,0.00,CIS 
 22-08-2023,oneSource Non-Shared LBH,Alltype Fencing Specialists Ltd,Building Alterations And Materials,1894.00,0.00,CIS 
 22-08-2023,oneSource Non-Shared LBH,Alltype Fencing Specialists Ltd,Building Alterations And Materials,872.00,0.00,CIS 
 22-08-2023,oneSource Non-Shared LBH,D & B Motors & Sons,Purchase - Equipment Furniture And Materials,1220.00,0.00,COMMERCIAL SUPPLIER 
 23-08-2023,oneSource Non-Shared LBH,Harris Commercial Repairs Ltd,Purchase - Equipment Furniture And Materials,501.76,0.00,VENDOR 
 23-08-2023,oneSource Non-Shared LBH,Matrix SCM Ltd,Agency Staff,656.54,0.00,COMMERCIAL SUPPLIER 
 23-08-2023,oneSource Non-Shared LBH,Matrix SCM Ltd,Agency Staff,782.60,0.00,COMMERCIAL SUPPLIER 
 23-08-2023,oneSource Non-Shared LBH,Matrix SCM Ltd,Agency Staff,504.90,0.00,COMMERCIAL SUPPLIER 
 23-08-2023,oneSource Non-Shared LBH,Matrix SCM Ltd,Agency Staff,713.80,0.00,COMMERCIAL SUPPLIER 
 23-08-2023,oneSource Non-Shared LBH,Matrix SCM Ltd,Agency Staff,732.11,0.00,COMMERCIAL SUPPLIER 
 23-08-2023,oneSource Non-Shared LBH,Matrix SCM Ltd,Agency Staff,583.25,0.00,COMMERCIAL SUPPLIER 
 23-08-2023,oneSource Non-Shared LBH,Matrix SCM Ltd,Agency Staff,557.14,0.00,COMMERCIAL SUPPLIER 
 23-08-2023,oneSource Non-Shared LBH,Matrix SCM Ltd,Agency Staff,559.60,0.00,COMMERCIAL SUPPLIER 
 23-08-2023,oneSource Non-Shared LBH,Matrix SCM Ltd,Agency Staff,511.90,0.00,COMMERCIAL SUPPLIER 
 23-08-2023,oneSource Non-Shared LBH,Matrix SCM Ltd,Agency Staff,516.32,0.00,COMMERCIAL SUPPLIER 
 23-08-2023,oneSource Non-Shared LBH,Matrix SCM Ltd,Agency Staff,511.35,0.00,COMMERCIAL SUPPLIER 
 23-08-2023,oneSource Non-Shared LBH,Matrix SCM Ltd,Agency Staff,645.40,0.00,COMMERCIAL SUPPLIER 
 23-08-2023,oneSource Non-Shared LBH,Matrix SCM Ltd,Agency Staff,505.98,0.00,COMMERCIAL SUPPLIER 
 23-08-2023,oneSource Non-Shared LBH,Matrix SCM Ltd,Agency Staff,3469.70,0.00,COMMERCIAL SUPPLIER 
 23-08-2023,oneSource Non-Shared LBH,Matrix SCM Ltd,Agency Staff,1729.71,0.00,COMMERCIAL SUPPLIER 
 23-08-2023,oneSource Non-Shared LBH,Matrix SCM Ltd,Agency Staff,1975.55,0.00,COMMERCIAL SUPPLIER 
 23-08-2023,oneSource Non-Shared LBH,Matrix SCM Ltd,Agency Staff,1174.80,0.00,COMMERCIAL SUPPLIER 
 23-08-2023,oneSource Non-Shared LBH,Matrix SCM Ltd,Agency Staff,500.50,0.00,COMMERCIAL SUPPLIER 
 23-08-2023,oneSource Non-Shared LBH,Matrix SCM Ltd,Agency Staff,1333.40,0.00,COMMERCIAL SUPPLIER 
 23-08-2023,oneSource Non-Shared LBH,Matrix SCM Ltd,Agency Staff,1333.40,0.00,COMMERCIAL SUPPLIER 
 23-08-2023,oneSource Non-Shared LBH,Matrix SCM Ltd,Agency Staff,2256.65,0.00,COMMERCIAL SUPPLIER 
 23-08-2023,oneSource Non-Shared LBH,Matrix SCM Ltd,Agency Staff,1901.65,0.00,COMMERCIAL SUPPLIER 
 23-08-2023,oneSource Non-Shared LBH,Matrix SCM Ltd,Agency Staff,2254.96,0.00,COMMERCIAL SUPPLIER 
 23-08-2023,oneSource Non-Shared LBH,Matrix SCM Ltd,Agency Staff,501.66,0.00,COMMERCIAL SUPPLIER 
 23-08-2023,oneSource Non-Shared LBH,Precision Lift Services Ltd_a,Cyclical/Planned Maintenance - Mechanical And Electrical,960.00,0.00,CIS 
 24-08-2023,oneSource Non-Shared LBH,Toyota Material Handling UK Ltd,Vehicle Hire,723.46,0.00,COMMERCIAL SUPPLIER 
 24-08-2023,oneSource Non-Shared LBH,EP Clean,Purchase - Equipment Furniture And Materials,500.00,0.00,COMMERCIAL SUPPLIER 
 24-08-2023,oneSource Non-Shared LBH,New Era Fuels Ltd,Purchase - Equipment Furniture And Materials,14337.40,0.00,COMMERCIAL SUPPLIER 
 24-08-2023,oneSource Non-Shared LBH,Kingdom Security Ltd,Security Services (Excluding Premises),5711.20,0.00,COMMERCIAL SUPPLIER 
 24-08-2023,oneSource Non-Shared LBH,Kingdom Security Ltd,Security Services (Excluding Premises),3997.50,0.00,COMMERCIAL SUPPLIER 
 25-08-2023,oneSource Non-Shared LBH,Serco Ltd,Refuse Collection,937.60,0.00,COMMERCIAL SUPPLIER 
 25-08-2023,oneSource Non-Shared LBH,Serco Ltd,Refuse Collection,976.08,0.00,COMMERCIAL SUPPLIER 
 25-08-2023,oneSource Non-Shared LBH,Treka Bus Ltd_a,Purchase - Equipment Furniture And Materials,80312.24,0.00,COMMERCIAL SUPPLIER 
 25-08-2023,oneSource Non-Shared LBH,Treka Bus Ltd_a,Purchase - Equipment Furniture And Materials,80312.24,0.00,COMMERCIAL SUPPLIER 
 25-08-2023,oneSource Non-Shared LBH,Treka Bus Ltd_a,Purchase - Equipment Furniture And Materials,80312.24,0.00,COMMERCIAL SUPPLIER 
 25-08-2023,oneSource Non-Shared LBH,Treka Bus Ltd_a,Purchase - Equipment Furniture And Materials,80312.24,0.00,COMMERCIAL SUPPLIER 
 29-08-2023,oneSource Non-Shared LBH,Havering Building Specialists Ltd,Cyclical/Planned Maintenance - Mechanical And Electrical,600.00,0.00,CIS 
 29-08-2023,oneSource Non-Shared LBH,Thames Laboratories,Maintenance - Equipment Furniture And Materials,594.00,0.00,COMMERCIAL SUPPLIER 
 30-08-2023,oneSource Non-Shared LBH,Matrix SCM Ltd,Agency Staff,2217.00,0.00,COMMERCIAL SUPPLIER 
 30-08-2023,oneSource Non-Shared LBH,Matrix SCM Ltd,Agency Staff,1077.25,0.00,COMMERCIAL SUPPLIER 
 30-08-2023,oneSource Non-Shared LBH,Matrix SCM Ltd,Agency Staff,1077.25,0.00,COMMERCIAL SUPPLIER 
 30-08-2023,oneSource Non-Shared LBH,Matrix SCM Ltd,Agency Staff,2101.95,0.00,COMMERCIAL SUPPLIER 
 30-08-2023,oneSource Non-Shared LBH,Matrix SCM Ltd,Agency Staff,2101.95,0.00,COMMERCIAL SUPPLIER 
 30-08-2023,oneSource Non-Shared LBH,Matrix SCM Ltd,Agency Staff,1174.80,0.00,COMMERCIAL SUPPLIER 
 30-08-2023,oneSource Non-Shared LBH,Matrix SCM Ltd,Agency Staff,2355.96,0.00,COMMERCIAL SUPPLIER 
 30-08-2023,oneSource Non-Shared LBH,Matrix SCM Ltd,Agency Staff,1901.65,0.00,COMMERCIAL SUPPLIER 
 30-08-2023,oneSource Non-Shared LBH,Matrix SCM Ltd,Agency Staff,1333.40,0.00,COMMERCIAL SUPPLIER 
 30-08-2023,oneSource Non-Shared LBH,Matrix SCM Ltd,Agency Staff,1333.40,0.00,COMMERCIAL SUPPLIER 
 30-08-2023,oneSource Non-Shared LBH,Matrix SCM Ltd,Agency Staff,2944.95,0.00,COMMERCIAL SUPPLIER 
 30-08-2023,oneSource Non-Shared LBH,Matrix SCM Ltd,Agency Staff,2256.65,0.00,COMMERCIAL SUPPLIER 
 30-08-2023,oneSource Non-Shared LBH,Matrix SCM Ltd,Agency Staff,2818.70,0.00,COMMERCIAL SUPPLIER 
 30-08-2023,oneSource Non-Shared LBH,Matrix SCM Ltd,Agency Staff,2306.28,0.00,COMMERCIAL SUPPLIER 
 30-08-2023,oneSource Non-Shared LBH,Matrix SCM Ltd,Agency Staff,3469.70,0.00,COMMERCIAL SUPPLIER 
 30-08-2023,oneSource Non-Shared LBH,Matrix SCM Ltd,Agency Staff,2217.00,0.00,COMMERCIAL SUPPLIER 
 30-08-2023,oneSource Non-Shared LBH,Matrix SCM Ltd,Agency Staff,3469.70,0.00,COMMERCIAL SUPPLIER 
 30-08-2023,oneSource Non-Shared LBH,Matrix SCM Ltd,Agency Staff,645.40,0.00,COMMERCIAL SUPPLIER 
 30-08-2023,oneSource Non-Shared LBH,Matrix SCM Ltd,Agency Staff,511.35,0.00,COMMERCIAL SUPPLIER 
 30-08-2023,oneSource Non-Shared LBH,Matrix SCM Ltd,Agency Staff,645.40,0.00,COMMERCIAL SUPPLIER 
 30-08-2023,oneSource Non-Shared LBH,Matrix SCM Ltd,Agency Staff,622.72,0.00,COMMERCIAL SUPPLIER 
 30-08-2023,oneSource Non-Shared LBH,Matrix SCM Ltd,Agency Staff,614.30,0.00,COMMERCIAL SUPPLIER 
 30-08-2023,oneSource Non-Shared LBH,Matrix SCM Ltd,Agency Staff,656.54,0.00,COMMERCIAL SUPPLIER 
 30-08-2023,oneSource Non-Shared LBH,Matrix SCM Ltd,Agency Staff,690.04,0.00,COMMERCIAL SUPPLIER 
 30-08-2023,oneSource Non-Shared LBH,Matrix SCM Ltd,Agency Staff,591.95,0.00,COMMERCIAL SUPPLIER 
 30-08-2023,oneSource Non-Shared LBH,Matrix SCM Ltd,Agency Staff,500.70,0.00,COMMERCIAL SUPPLIER 
 30-08-2023,oneSource Non-Shared LBH,Matrix SCM Ltd,Agency Staff,655.90,0.00,COMMERCIAL SUPPLIER 
 30-08-2023,oneSource Non-Shared LBH,London Network for Pest Solutions Ltd,Private Contractors Payment - Other,892.67,0.00,COMMERCIAL SUPPLIER 
 30-08-2023,oneSource Non-Shared LBH,Stace LLP,Consultancy Fees,2250.00,0.00,COMMERCIAL SUPPLIER 
 31-08-2023,oneSource Non-Shared LBH,Toyota Material Handling UK Ltd,Vehicle Hire,723.46,0.00,COMMERCIAL SUPPLIER 
 31-08-2023,oneSource Non-Shared LBH,E H Roberts-Penet Group Ltd,Vehicle Hire,1008.00,0.00,COMMERCIAL SUPPLIER 
 31-08-2023,oneSource Non-Shared LBH,P Tuckwell Ltd_a,Vehicle Hire,1107.14,0.00,COMMERCIAL SUPPLIER 
 31-08-2023,oneSource Non-Shared LBH,P Tuckwell Ltd_a,Vehicle Hire,1107.14,0.00,COMMERCIAL SUPPLIER 
 31-08-2023,oneSource Non-Shared LBH,P Tuckwell Ltd_a,Vehicle Hire,1107.14,0.00,COMMERCIAL SUPPLIER 
 31-08-2023,oneSource Non-Shared LBH,P Tuckwell Ltd_a,Vehicle Hire,1107.14,0.00,COMMERCIAL SUPPLIER 
 02-08-2023,oneSource Shared,Matrix SCM Ltd,Agency Staff,952.20,0.00,COMMERCIAL SUPPLIER 
 02-08-2023,oneSource Shared,Matrix SCM Ltd,Agency Staff,2546.00,0.00,COMMERCIAL SUPPLIER 
 02-08-2023,oneSource Shared,Matrix SCM Ltd,Agency Staff,509.20,0.00,COMMERCIAL SUPPLIER 
 02-08-2023,oneSource Shared,Matrix SCM Ltd,Agency Staff,4768.50,0.00,COMMERCIAL SUPPLIER 
 02-08-2023,oneSource Shared,Matrix SCM Ltd,Agency Staff,4058.05,0.00,COMMERCIAL SUPPLIER 
 02-08-2023,oneSource Shared,Matrix SCM Ltd,Agency Staff,2493.95,0.00,COMMERCIAL SUPPLIER 
 02-08-2023,oneSource Shared,Matrix SCM Ltd,Agency Staff,723.01,0.00,COMMERCIAL SUPPLIER 
 02-08-2023,oneSource Shared,Matrix SCM Ltd,Agency Staff,724.70,0.00,COMMERCIAL SUPPLIER 
 02-08-2023,oneSource Shared,Matrix SCM Ltd,Agency Staff,4035.50,0.00,COMMERCIAL SUPPLIER 
 02-08-2023,oneSource Shared,Matrix SCM Ltd,Agency Staff,5617.00,0.00,COMMERCIAL SUPPLIER 
 02-08-2023,oneSource Shared,Matrix SCM Ltd,Agency Staff,977.30,0.00,COMMERCIAL SUPPLIER 
 02-08-2023,oneSource Shared,Matrix SCM Ltd,Agency Staff,748.10,0.00,COMMERCIAL SUPPLIER 
 02-08-2023,oneSource Shared,Matrix SCM Ltd,Agency Staff,790.56,0.00,COMMERCIAL SUPPLIER 
 02-08-2023,oneSource Shared,Matrix SCM Ltd,Agency Staff,1758.50,0.00,COMMERCIAL SUPPLIER 
 02-08-2023,oneSource Shared,Matrix SCM Ltd,Agency Staff,3627.10,0.00,COMMERCIAL SUPPLIER 
 02-08-2023,oneSource Shared,Matrix SCM Ltd,Agency Staff,2980.80,0.00,COMMERCIAL SUPPLIER 
 02-08-2023,oneSource Shared,Matrix SCM Ltd,Agency Staff,2980.80,0.00,COMMERCIAL SUPPLIER 
 02-08-2023,oneSource Shared,Matrix SCM Ltd,Agency Staff,1772.66,0.00,COMMERCIAL SUPPLIER 
 02-08-2023,oneSource Shared,Matrix SCM Ltd,Agency Staff,1887.48,0.00,COMMERCIAL SUPPLIER 
 02-08-2023,oneSource Shared,Matrix SCM Ltd,Agency Staff,1887.48,0.00,COMMERCIAL SUPPLIER 
 02-08-2023,oneSource Shared,Matrix SCM Ltd,Agency Staff,1887.49,0.00,COMMERCIAL SUPPLIER 
 02-08-2023,oneSource Shared,Matrix SCM Ltd,Agency Staff,1887.48,0.00,COMMERCIAL SUPPLIER 
 02-08-2023,oneSource Shared,Matrix SCM Ltd,Agency Staff,1887.49,0.00,COMMERCIAL SUPPLIER 
 02-08-2023,oneSource Shared,Matrix SCM Ltd,Agency Staff,1887.49,0.00,COMMERCIAL SUPPLIER 
 02-08-2023,oneSource Shared,Matrix SCM Ltd,Agency Staff,1887.48,0.00,COMMERCIAL SUPPLIER 
 02-08-2023,oneSource Shared,Matrix SCM Ltd,Agency Staff,1887.48,0.00,COMMERCIAL SUPPLIER 
 02-08-2023,oneSource Shared,Matrix SCM Ltd,Agency Staff,1887.49,0.00,COMMERCIAL SUPPLIER 
 02-08-2023,oneSource Shared,Matrix SCM Ltd,Agency Staff,1887.49,0.00,COMMERCIAL SUPPLIER 
 02-08-2023,oneSource Shared,Matrix SCM Ltd,Agency Staff,1189.81,0.00,COMMERCIAL SUPPLIER 
 02-08-2023,oneSource Shared,Matrix SCM Ltd,Agency Staff,1975.45,0.00,COMMERCIAL SUPPLIER 
 02-08-2023,oneSource Shared,Matrix SCM Ltd,Agency Staff,1720.80,0.00,COMMERCIAL SUPPLIER 
 02-08-2023,oneSource Shared,Matrix SCM Ltd,Agency Staff,1678.69,0.00,COMMERCIAL SUPPLIER 
 02-08-2023,oneSource Shared,Matrix SCM Ltd,Agency Staff,1815.48,0.00,COMMERCIAL SUPPLIER 
 02-08-2023,oneSource Shared,Matrix SCM Ltd,Agency Staff,1815.49,0.00,COMMERCIAL SUPPLIER 
 02-08-2023,oneSource Shared,Matrix SCM Ltd,Agency Staff,1887.48,0.00,COMMERCIAL SUPPLIER 
 02-08-2023,oneSource Shared,Matrix SCM Ltd,Agency Staff,1887.49,0.00,COMMERCIAL SUPPLIER 
 02-08-2023,oneSource Shared,Matrix SCM Ltd,Agency Staff,1887.48,0.00,COMMERCIAL SUPPLIER 
 02-08-2023,oneSource Shared,Matrix SCM Ltd,Agency Staff,832.30,0.00,COMMERCIAL SUPPLIER 
 02-08-2023,oneSource Shared,Matrix SCM Ltd,Agency Staff,832.31,0.00,COMMERCIAL SUPPLIER 
 02-08-2023,oneSource Shared,Matrix SCM Ltd,Agency Staff,571.02,0.00,COMMERCIAL SUPPLIER 
 02-08-2023,oneSource Shared,Matrix SCM Ltd,Agency Staff,1182.01,0.00,COMMERCIAL SUPPLIER 
 02-08-2023,oneSource Shared,Matrix SCM Ltd,Agency Staff,794.88,0.00,COMMERCIAL SUPPLIER 
 02-08-2023,oneSource Shared,Matrix SCM Ltd,Agency Staff,797.06,0.00,COMMERCIAL SUPPLIER 
 03-08-2023,oneSource Shared,Penna Plc_a,Consultancy Fees,21240.00,0.00,COMMERCIAL SUPPLIER 
 04-08-2023,oneSource Shared,Performance Coaching International,Staff Development And Training,1000.00,0.00,COMMERCIAL SUPPLIER 
 07-08-2023,oneSource Shared,Bytes Software Services,Ict Software,6284.97,0.00,COMMERCIAL SUPPLIER 
 07-08-2023,oneSource Shared,Bloom Procurement Services Ltd,Consultancy Fees,12710.53,0.00,COMMERCIAL SUPPLIER 
 08-08-2023,oneSource Shared,Evolving Solutions Consultancy,Consultancy Fees,3900.00,0.00,COMMERCIAL SUPPLIER 
 08-08-2023,oneSource Shared,Evolving Solutions Consultancy,Consultancy Fees,3900.00,0.00,COMMERCIAL SUPPLIER 
 08-08-2023,oneSource Shared,Bloom Procurement Services Ltd,Consultancy Fees,13230.00,0.00,COMMERCIAL SUPPLIER 
 09-08-2023,oneSource Shared,Matrix SCM Ltd,Agency Staff,4768.50,0.00,COMMERCIAL SUPPLIER 
 09-08-2023,oneSource Shared,Matrix SCM Ltd,Agency Staff,679.70,0.00,COMMERCIAL SUPPLIER 
 09-08-2023,oneSource Shared,Matrix SCM Ltd,Agency Staff,2546.00,0.00,COMMERCIAL SUPPLIER 
 09-08-2023,oneSource Shared,Matrix SCM Ltd,Agency Staff,723.01,0.00,COMMERCIAL SUPPLIER 
 09-08-2023,oneSource Shared,Matrix SCM Ltd,Agency Staff,724.70,0.00,COMMERCIAL SUPPLIER 
 09-08-2023,oneSource Shared,Matrix SCM Ltd,Agency Staff,4058.05,0.00,COMMERCIAL SUPPLIER 
 09-08-2023,oneSource Shared,Matrix SCM Ltd,Agency Staff,2493.95,0.00,COMMERCIAL SUPPLIER 
 09-08-2023,oneSource Shared,Matrix SCM Ltd,Agency Staff,4493.60,0.00,COMMERCIAL SUPPLIER 
 09-08-2023,oneSource Shared,Matrix SCM Ltd,Agency Staff,2217.00,0.00,COMMERCIAL SUPPLIER 
 09-08-2023,oneSource Shared,Matrix SCM Ltd,Agency Staff,748.10,0.00,COMMERCIAL SUPPLIER 
 09-08-2023,oneSource Shared,Matrix SCM Ltd,Agency Staff,963.82,0.00,COMMERCIAL SUPPLIER 
 09-08-2023,oneSource Shared,Matrix SCM Ltd,Agency Staff,970.56,0.00,COMMERCIAL SUPPLIER 
 09-08-2023,oneSource Shared,Matrix SCM Ltd,Agency Staff,2176.26,0.00,COMMERCIAL SUPPLIER 
 09-08-2023,oneSource Shared,Matrix SCM Ltd,Agency Staff,1933.50,0.00,COMMERCIAL SUPPLIER 
 09-08-2023,oneSource Shared,Matrix SCM Ltd,Agency Staff,1160.10,0.00,COMMERCIAL SUPPLIER 
 09-08-2023,oneSource Shared,Matrix SCM Ltd,Agency Staff,762.30,0.00,COMMERCIAL SUPPLIER 
 09-08-2023,oneSource Shared,Matrix SCM Ltd,Agency Staff,569.94,0.00,COMMERCIAL SUPPLIER 
 09-08-2023,oneSource Shared,Matrix SCM Ltd,Agency Staff,2980.80,0.00,COMMERCIAL SUPPLIER 
 09-08-2023,oneSource Shared,Matrix SCM Ltd,Agency Staff,1772.66,0.00,COMMERCIAL SUPPLIER 
 09-08-2023,oneSource Shared,Matrix SCM Ltd,Agency Staff,1975.45,0.00,COMMERCIAL SUPPLIER 
 09-08-2023,oneSource Shared,Matrix SCM Ltd,Agency Staff,1189.81,0.00,COMMERCIAL SUPPLIER 
 09-08-2023,oneSource Shared,Matrix SCM Ltd,Agency Staff,1720.80,0.00,COMMERCIAL SUPPLIER 
 09-08-2023,oneSource Shared,Matrix SCM Ltd,Agency Staff,2980.80,0.00,COMMERCIAL SUPPLIER 
 09-08-2023,oneSource Shared,Matrix SCM Ltd,Agency Staff,1678.67,0.00,COMMERCIAL SUPPLIER 
 09-08-2023,oneSource Shared,Matrix SCM Ltd,Agency Staff,1815.48,0.00,COMMERCIAL SUPPLIER 
 09-08-2023,oneSource Shared,Matrix SCM Ltd,Agency Staff,1887.48,0.00,COMMERCIAL SUPPLIER 
 09-08-2023,oneSource Shared,Matrix SCM Ltd,Agency Staff,832.30,0.00,COMMERCIAL SUPPLIER 
 09-08-2023,oneSource Shared,Matrix SCM Ltd,Agency Staff,832.30,0.00,COMMERCIAL SUPPLIER 
 09-08-2023,oneSource Shared,Matrix SCM Ltd,Agency Staff,832.30,0.00,COMMERCIAL SUPPLIER 
 09-08-2023,oneSource Shared,Matrix SCM Ltd,Agency Staff,832.30,0.00,COMMERCIAL SUPPLIER 
 09-08-2023,oneSource Shared,Matrix SCM Ltd,Agency Staff,1211.55,0.00,COMMERCIAL SUPPLIER 
 09-08-2023,oneSource Shared,Matrix SCM Ltd,Agency Staff,797.85,0.00,COMMERCIAL SUPPLIER 
 09-08-2023,oneSource Shared,Matrix SCM Ltd,Agency Staff,1325.91,0.00,COMMERCIAL SUPPLIER 
 09-08-2023,oneSource Shared,Matrix SCM Ltd,Agency Staff,794.88,0.00,COMMERCIAL SUPPLIER 
 09-08-2023,oneSource Shared,Matrix SCM Ltd,Agency Staff,797.06,0.00,COMMERCIAL SUPPLIER 
 11-08-2023,oneSource Shared,KPMG LLP,Audit Fees,18761.00,0.00,COMMERCIAL SUPPLIER 
 14-08-2023,oneSource Shared,NEC Software Solutions UK Ltd ,Ict Maintenance And Support,1989.12,0.00,COMMERCIAL SUPPLIER 
 16-08-2023,oneSource Shared,Bytes Software Services,Ict Software,523.59,0.00,COMMERCIAL SUPPLIER 
 16-08-2023,oneSource Shared,Bytes Software Services,Ict Software,523.59,0.00,COMMERCIAL SUPPLIER 
 16-08-2023,oneSource Shared,Canon (UK) Ltd,Printing,1043.20,0.00,COMMERCIAL SUPPLIER 
 16-08-2023,oneSource Shared,Matrix SCM Ltd,Agency Staff,636.84,0.00,COMMERCIAL SUPPLIER 
 16-08-2023,oneSource Shared,Matrix SCM Ltd,Agency Staff,1758.50,0.00,COMMERCIAL SUPPLIER 
 16-08-2023,oneSource Shared,Matrix SCM Ltd,Agency Staff,1758.50,0.00,COMMERCIAL SUPPLIER 
 16-08-2023,oneSource Shared,Matrix SCM Ltd,Agency Staff,4768.50,0.00,COMMERCIAL SUPPLIER 
 16-08-2023,oneSource Shared,Matrix SCM Ltd,Agency Staff,1426.39,0.00,COMMERCIAL SUPPLIER 
 16-08-2023,oneSource Shared,Matrix SCM Ltd,Agency Staff,1426.40,0.00,COMMERCIAL SUPPLIER 
 16-08-2023,oneSource Shared,Matrix SCM Ltd,Agency Staff,1426.39,0.00,COMMERCIAL SUPPLIER 
 16-08-2023,oneSource Shared,Matrix SCM Ltd,Agency Staff,762.30,0.00,COMMERCIAL SUPPLIER 
 16-08-2023,oneSource Shared,Matrix SCM Ltd,Agency Staff,1933.50,0.00,COMMERCIAL SUPPLIER 
 16-08-2023,oneSource Shared,Matrix SCM Ltd,Agency Staff,2493.95,0.00,COMMERCIAL SUPPLIER 
 16-08-2023,oneSource Shared,Matrix SCM Ltd,Agency Staff,4493.60,0.00,COMMERCIAL SUPPLIER 
 16-08-2023,oneSource Shared,Matrix SCM Ltd,Agency Staff,2217.00,0.00,COMMERCIAL SUPPLIER 
 16-08-2023,oneSource Shared,Matrix SCM Ltd,Agency Staff,970.56,0.00,COMMERCIAL SUPPLIER 
 16-08-2023,oneSource Shared,Matrix SCM Ltd,Agency Staff,748.10,0.00,COMMERCIAL SUPPLIER 
 16-08-2023,oneSource Shared,Matrix SCM Ltd,Agency Staff,970.56,0.00,COMMERCIAL SUPPLIER 
 16-08-2023,oneSource Shared,Matrix SCM Ltd,Agency Staff,1772.69,0.00,COMMERCIAL SUPPLIER 
 16-08-2023,oneSource Shared,Matrix SCM Ltd,Agency Staff,2980.80,0.00,COMMERCIAL SUPPLIER 
 16-08-2023,oneSource Shared,Matrix SCM Ltd,Agency Staff,2980.80,0.00,COMMERCIAL SUPPLIER 
 16-08-2023,oneSource Shared,Matrix SCM Ltd,Agency Staff,1975.45,0.00,COMMERCIAL SUPPLIER 
 16-08-2023,oneSource Shared,Matrix SCM Ltd,Agency Staff,1189.80,0.00,COMMERCIAL SUPPLIER 
 16-08-2023,oneSource Shared,Matrix SCM Ltd,Agency Staff,1678.69,0.00,COMMERCIAL SUPPLIER 
 16-08-2023,oneSource Shared,Matrix SCM Ltd,Agency Staff,1601.30,0.00,COMMERCIAL SUPPLIER 
 16-08-2023,oneSource Shared,Matrix SCM Ltd,Agency Staff,1887.49,0.00,COMMERCIAL SUPPLIER 
 16-08-2023,oneSource Shared,Matrix SCM Ltd,Agency Staff,851.20,0.00,COMMERCIAL SUPPLIER 
 16-08-2023,oneSource Shared,Matrix SCM Ltd,Agency Staff,832.30,0.00,COMMERCIAL SUPPLIER 
 16-08-2023,oneSource Shared,Matrix SCM Ltd,Agency Staff,814.48,0.00,COMMERCIAL SUPPLIER 
 16-08-2023,oneSource Shared,Matrix SCM Ltd,Agency Staff,1211.57,0.00,COMMERCIAL SUPPLIER 
 16-08-2023,oneSource Shared,Matrix SCM Ltd,Agency Staff,883.94,0.00,COMMERCIAL SUPPLIER 
 16-08-2023,oneSource Shared,Matrix SCM Ltd,Agency Staff,797.06,0.00,COMMERCIAL SUPPLIER 
 16-08-2023,oneSource Shared,Matrix SCM Ltd,Agency Staff,794.88,0.00,COMMERCIAL SUPPLIER 
 18-08-2023,oneSource Shared,PPMA,Professional Services - General,1600.00,0.00,COMMERCIAL SUPPLIER 
 21-08-2023,oneSource Shared,Canon (UK) Ltd,Printing,1043.20,0.00,COMMERCIAL SUPPLIER 
 21-08-2023,oneSource Shared,CCS Media Limited,Ict Hardware,690.00,0.00,COMMERCIAL SUPPLIER 
 21-08-2023,oneSource Shared,CCS Media Limited,Ict Hardware,750.00,0.00,COMMERCIAL SUPPLIER 
 21-08-2023,oneSource Shared,CCS Media Limited,Ict Hardware,774.50,0.00,COMMERCIAL SUPPLIER 
 21-08-2023,oneSource Shared,EBB Office Ltd,Stationery,670.00,0.00,COMMERCIAL SUPPLIER 
 21-08-2023,oneSource Shared,EBB Office Ltd,Stationery,960.00,0.00,COMMERCIAL SUPPLIER 
 21-08-2023,oneSource Shared,EBB Office Ltd,Stationery,670.00,0.00,COMMERCIAL SUPPLIER 
 21-08-2023,oneSource Shared,EBB Office Ltd,Stationery,1219.84,0.00,COMMERCIAL SUPPLIER 
 22-08-2023,oneSource Shared,CCS Media Limited,Ict Hardware,1840.00,0.00,COMMERCIAL SUPPLIER 
 22-08-2023,oneSource Shared,Mastek System Company Ltd,Ict Software,45000.00,0.00,COMMERCIAL SUPPLIER 
 23-08-2023,oneSource Shared,Matrix SCM Ltd,Agency Staff,2546.00,0.00,COMMERCIAL SUPPLIER 
 23-08-2023,oneSource Shared,Matrix SCM Ltd,Agency Staff,1933.50,0.00,COMMERCIAL SUPPLIER 
 23-08-2023,oneSource Shared,Matrix SCM Ltd,Agency Staff,4058.05,0.00,COMMERCIAL SUPPLIER 
 23-08-2023,oneSource Shared,Matrix SCM Ltd,Agency Staff,4058.05,0.00,COMMERCIAL SUPPLIER 
 23-08-2023,oneSource Shared,Matrix SCM Ltd,Agency Staff,4322.25,0.00,COMMERCIAL SUPPLIER 
 23-08-2023,oneSource Shared,Matrix SCM Ltd,Agency Staff,3457.80,0.00,COMMERCIAL SUPPLIER 
 23-08-2023,oneSource Shared,Matrix SCM Ltd,Agency Staff,3457.80,0.00,COMMERCIAL SUPPLIER 
 23-08-2023,oneSource Shared,Matrix SCM Ltd,Agency Staff,3457.80,0.00,COMMERCIAL SUPPLIER 
 23-08-2023,oneSource Shared,Matrix SCM Ltd,Agency Staff,4322.25,0.00,COMMERCIAL SUPPLIER 
 23-08-2023,oneSource Shared,Matrix SCM Ltd,Agency Staff,5617.00,0.00,COMMERCIAL SUPPLIER 
 23-08-2023,oneSource Shared,Matrix SCM Ltd,Agency Staff,748.10,0.00,COMMERCIAL SUPPLIER 
 23-08-2023,oneSource Shared,Matrix SCM Ltd,Agency Staff,970.56,0.00,COMMERCIAL SUPPLIER 
 23-08-2023,oneSource Shared,Matrix SCM Ltd,Agency Staff,970.56,0.00,COMMERCIAL SUPPLIER 
 23-08-2023,oneSource Shared,Matrix SCM Ltd,Agency Staff,790.56,0.00,COMMERCIAL SUPPLIER 
 23-08-2023,oneSource Shared,Matrix SCM Ltd,Agency Staff,1758.50,0.00,COMMERCIAL SUPPLIER 
 23-08-2023,oneSource Shared,Matrix SCM Ltd,Agency Staff,1815.48,0.00,COMMERCIAL SUPPLIER 
 23-08-2023,oneSource Shared,Matrix SCM Ltd,Agency Staff,563.04,0.00,COMMERCIAL SUPPLIER 
 23-08-2023,oneSource Shared,Matrix SCM Ltd,Agency Staff,2453.76,0.00,COMMERCIAL SUPPLIER 
 23-08-2023,oneSource Shared,Matrix SCM Ltd,Agency Staff,1815.48,0.00,COMMERCIAL SUPPLIER 
 23-08-2023,oneSource Shared,Matrix SCM Ltd,Agency Staff,1887.49,0.00,COMMERCIAL SUPPLIER 
 23-08-2023,oneSource Shared,Matrix SCM Ltd,Agency Staff,1772.69,0.00,COMMERCIAL SUPPLIER 
 23-08-2023,oneSource Shared,Matrix SCM Ltd,Agency Staff,1189.81,0.00,COMMERCIAL SUPPLIER 
 23-08-2023,oneSource Shared,Matrix SCM Ltd,Agency Staff,1975.45,0.00,COMMERCIAL SUPPLIER 
 23-08-2023,oneSource Shared,Matrix SCM Ltd,Agency Staff,1678.69,0.00,COMMERCIAL SUPPLIER 
 23-08-2023,oneSource Shared,Matrix SCM Ltd,Agency Staff,1720.80,0.00,COMMERCIAL SUPPLIER 
 23-08-2023,oneSource Shared,Matrix SCM Ltd,Agency Staff,504.64,0.00,COMMERCIAL SUPPLIER 
 23-08-2023,oneSource Shared,Matrix SCM Ltd,Agency Staff,1325.91,0.00,COMMERCIAL SUPPLIER 
 23-08-2023,oneSource Shared,Matrix SCM Ltd,Agency Staff,618.43,0.00,COMMERCIAL SUPPLIER 
 23-08-2023,oneSource Shared,Matrix SCM Ltd,Agency Staff,794.88,0.00,COMMERCIAL SUPPLIER 
 23-08-2023,oneSource Shared,Matrix SCM Ltd,Agency Staff,797.06,0.00,COMMERCIAL SUPPLIER 
 24-08-2023,oneSource Shared,Vertiv Infrastructure Limited,Maintenance - Equipment Furniture And Materials,10928.95,0.00,CIS 
 25-08-2023,oneSource Shared,Penna Plc_a,Consultancy Fees,23600.00,0.00,COMMERCIAL SUPPLIER 
 25-08-2023,oneSource Shared,Wilkin Chapman LLP,Legal Fees,677.00,0.00,COMMERCIAL SUPPLIER 
 25-08-2023,oneSource Shared,Wilkin Chapman LLP,Legal Fees,1800.00,0.00,COMMERCIAL SUPPLIER 
 25-08-2023,oneSource Shared,Stripe OLT,Ict Maintenance And Support,12500.00,0.00,COMMERCIAL SUPPLIER 
 25-08-2023,oneSource Shared,Evolving Solutions Consultancy,Consultancy Fees,3900.00,0.00,COMMERCIAL SUPPLIER 
 25-08-2023,oneSource Shared,Evolving Solutions Consultancy,Consultancy Fees,3900.00,0.00,COMMERCIAL SUPPLIER 
 29-08-2023,oneSource Shared,NEC Software Solutions UK Ltd ,Ict Software,3494.37,0.00,COMMERCIAL SUPPLIER 
 30-08-2023,oneSource Shared,GB Group Plc,Staff Recruitment Costs,2595.00,0.00,COMMERCIAL SUPPLIER 
 30-08-2023,oneSource Shared,Matrix SCM Ltd,Agency Staff,797.06,0.00,COMMERCIAL SUPPLIER 
 30-08-2023,oneSource Shared,Matrix SCM Ltd,Agency Staff,712.12,0.00,COMMERCIAL SUPPLIER 
 30-08-2023,oneSource Shared,Matrix SCM Ltd,Agency Staff,883.94,0.00,COMMERCIAL SUPPLIER 
 30-08-2023,oneSource Shared,Matrix SCM Ltd,Agency Staff,851.20,0.00,COMMERCIAL SUPPLIER 
 30-08-2023,oneSource Shared,Matrix SCM Ltd,Agency Staff,610.56,0.00,COMMERCIAL SUPPLIER 
 30-08-2023,oneSource Shared,Matrix SCM Ltd,Agency Staff,851.20,0.00,COMMERCIAL SUPPLIER 
 30-08-2023,oneSource Shared,Matrix SCM Ltd,Agency Staff,851.20,0.00,COMMERCIAL SUPPLIER 
 30-08-2023,oneSource Shared,Matrix SCM Ltd,Agency Staff,1300.21,0.00,COMMERCIAL SUPPLIER 
 30-08-2023,oneSource Shared,Matrix SCM Ltd,Agency Staff,1720.80,0.00,COMMERCIAL SUPPLIER 
 30-08-2023,oneSource Shared,Matrix SCM Ltd,Agency Staff,1678.68,0.00,COMMERCIAL SUPPLIER 
 30-08-2023,oneSource Shared,Matrix SCM Ltd,Agency Staff,2081.48,0.00,COMMERCIAL SUPPLIER 
 30-08-2023,oneSource Shared,Matrix SCM Ltd,Agency Staff,1975.45,0.00,COMMERCIAL SUPPLIER 
 30-08-2023,oneSource Shared,Matrix SCM Ltd,Agency Staff,1772.69,0.00,COMMERCIAL SUPPLIER 
 30-08-2023,oneSource Shared,Matrix SCM Ltd,Agency Staff,727.11,0.00,COMMERCIAL SUPPLIER 
 30-08-2023,oneSource Shared,Matrix SCM Ltd,Agency Staff,1887.49,0.00,COMMERCIAL SUPPLIER 
 30-08-2023,oneSource Shared,Matrix SCM Ltd,Agency Staff,762.30,0.00,COMMERCIAL SUPPLIER 
 30-08-2023,oneSource Shared,Matrix SCM Ltd,Agency Staff,762.30,0.00,COMMERCIAL SUPPLIER 
 30-08-2023,oneSource Shared,Matrix SCM Ltd,Agency Staff,1975.65,0.00,COMMERCIAL SUPPLIER 
 30-08-2023,oneSource Shared,Matrix SCM Ltd,Agency Staff,2169.03,0.00,COMMERCIAL SUPPLIER 
 30-08-2023,oneSource Shared,Matrix SCM Ltd,Agency Staff,1623.22,0.00,COMMERCIAL SUPPLIER 
 30-08-2023,oneSource Shared,Matrix SCM Ltd,Agency Staff,2217.00,0.00,COMMERCIAL SUPPLIER 
 30-08-2023,oneSource Shared,Matrix SCM Ltd,Agency Staff,2217.00,0.00,COMMERCIAL SUPPLIER 
 30-08-2023,oneSource Shared,Matrix SCM Ltd,Agency Staff,748.10,0.00,COMMERCIAL SUPPLIER 
 30-08-2023,oneSource Shared,Matrix SCM Ltd,Agency Staff,781.84,0.00,COMMERCIAL SUPPLIER 
 30-08-2023,oneSource Shared,Matrix SCM Ltd,Agency Staff,970.56,0.00,COMMERCIAL SUPPLIER 
 30-08-2023,oneSource Shared,Matrix SCM Ltd,Agency Staff,790.56,0.00,COMMERCIAL SUPPLIER 
 30-08-2023,oneSource Shared,Matrix SCM Ltd,Agency Staff,2176.26,0.00,COMMERCIAL SUPPLIER 
 30-08-2023,oneSource Shared,Matrix SCM Ltd,Agency Staff,2546.00,0.00,COMMERCIAL SUPPLIER 
 30-08-2023,oneSource Shared,Matrix SCM Ltd,Agency Staff,1426.39,0.00,COMMERCIAL SUPPLIER 
 01-08-2023,People - Ageing Well,Marlow,Residential Placements - Private Contractors Payment,7109.84,0.00,COMMERCIAL SUPPLIER 
 01-08-2023,People - Ageing Well,Marlow,Residential Placements - Private Contractors Payment,2256.24,0.00,COMMERCIAL SUPPLIER 
 01-08-2023,People - Ageing Well,Bluebird Care Havering,Home Care - Private Contractors Payment,2670.50,0.00,COMMERCIAL SUPPLIER 
 01-08-2023,People - Ageing Well,Bluebird Care Havering,Home Care - Private Contractors Payment,831.36,0.00,COMMERCIAL SUPPLIER 
 01-08-2023,People - Ageing Well,Bluebird Care Havering,Home Care - Private Contractors Payment,1357.52,0.00,COMMERCIAL SUPPLIER 
 01-08-2023,People - Ageing Well,Bluebird Care Havering,Home Care - Private Contractors Payment,2670.50,0.00,COMMERCIAL SUPPLIER 
 01-08-2023,People - Ageing Well,Care-Away Ltd T/A Care Support,Home Care - Private Contractors Payment,513.52,0.00,COMMERCIAL SUPPLIER 
 01-08-2023,People - Ageing Well,Care-Away Ltd T/A Care Support,Home Care - Private Contractors Payment,1540.56,0.00,COMMERCIAL SUPPLIER 
 01-08-2023,People - Ageing Well,Care-Away Ltd T/A Care Support,Home Care - Private Contractors Payment,1027.04,0.00,COMMERCIAL SUPPLIER 
 01-08-2023,People - Ageing Well,Care-Away Ltd T/A Care Support,Home Care - Private Contractors Payment,573.13,0.00,COMMERCIAL SUPPLIER 
 01-08-2023,People - Ageing Well,Care-Away Ltd T/A Care Support,Home Care - Private Contractors Payment,2310.84,0.00,COMMERCIAL SUPPLIER 
 01-08-2023,People - Ageing Well,Care-Away Ltd T/A Care Support,Home Care - Private Contractors Payment,513.52,0.00,COMMERCIAL SUPPLIER 
 01-08-2023,People - Ageing Well,Care-Away Ltd T/A Care Support,Home Care - Private Contractors Payment,1311.31,0.00,COMMERCIAL SUPPLIER 
 01-08-2023,People - Ageing Well,Care-Away Ltd T/A Care Support,Home Care - Private Contractors Payment,1412.18,0.00,COMMERCIAL SUPPLIER 
 01-08-2023,People - Ageing Well,Care-Away Ltd T/A Care Support,Home Care - Private Contractors Payment,632.73,0.00,COMMERCIAL SUPPLIER 
 01-08-2023,People - Ageing Well,Care-Away Ltd T/A Care Support,Home Care - Private Contractors Payment,586.88,0.00,COMMERCIAL SUPPLIER 
 01-08-2023,People - Ageing Well,Care-Away Ltd T/A Care Support,Home Care - Private Contractors Payment,2567.60,0.00,COMMERCIAL SUPPLIER 
 01-08-2023,People - Ageing Well,Care-Away Ltd T/A Care Support,Home Care - Private Contractors Payment,3081.12,0.00,COMMERCIAL SUPPLIER 
 01-08-2023,People - Ageing Well,Care-Away Ltd T/A Care Support,Home Care - Private Contractors Payment,2017.40,0.00,COMMERCIAL SUPPLIER 
 01-08-2023,People - Ageing Well,Care-Away Ltd T/A Care Support,Home Care - Private Contractors Payment,1027.04,0.00,COMMERCIAL SUPPLIER 
 01-08-2023,People - Ageing Well,Care-Away Ltd T/A Care Support,Home Care - Private Contractors Payment,1027.04,0.00,COMMERCIAL SUPPLIER 
 01-08-2023,People - Ageing Well,Care-Away Ltd T/A Care Support,Home Care - Private Contractors Payment,770.28,0.00,COMMERCIAL SUPPLIER 
 01-08-2023,People - Ageing Well,Care-Away Ltd T/A Care Support,Home Care - Private Contractors Payment,586.88,0.00,COMMERCIAL SUPPLIER 
 01-08-2023,People - Ageing Well,Care-Away Ltd T/A Care Support,Home Care - Private Contractors Payment,2824.36,0.00,COMMERCIAL SUPPLIER 
 01-08-2023,People - Ageing Well,Care-Away Ltd T/A Care Support,Home Care - Private Contractors Payment,861.98,0.00,COMMERCIAL SUPPLIER 
 01-08-2023,People - Ageing Well,Care-Away Ltd T/A Care Support,Home Care - Private Contractors Payment,1155.42,0.00,COMMERCIAL SUPPLIER 
 01-08-2023,People - Ageing Well,Care-Away Ltd T/A Care Support,Home Care - Private Contractors Payment,1283.80,0.00,COMMERCIAL SUPPLIER 
 01-08-2023,People - Ageing Well,Care-Away Ltd T/A Care Support,Home Care - Private Contractors Payment,623.56,0.00,COMMERCIAL SUPPLIER 
 01-08-2023,People - Ageing Well,Care-Away Ltd T/A Care Support,Home Care - Private Contractors Payment,1118.74,0.00,COMMERCIAL SUPPLIER 
 01-08-2023,People - Ageing Well,Care-Away Ltd T/A Care Support,Home Care - Private Contractors Payment,1283.80,0.00,COMMERCIAL SUPPLIER 
 01-08-2023,People - Ageing Well,Care-Away Ltd T/A Care Support,Home Care - Private Contractors Payment,1155.42,0.00,COMMERCIAL SUPPLIER 
 01-08-2023,People - Ageing Well,Care-Away Ltd T/A Care Support,Home Care - Private Contractors Payment,577.71,0.00,COMMERCIAL SUPPLIER 
 01-08-2023,People - Ageing Well,Flex360 Limited,Private Contractors Payment - Other,1400.00,0.00,COMMERCIAL SUPPLIER 
 01-08-2023,People - Ageing Well,Independent Living Agency (Non Direct Payments),Nursing Homes - Private Contractors Payment,800.00,0.00,COMMERCIAL SUPPLIER 
 01-08-2023,People - Ageing Well,Quality Healthcare Solutions Ltd t/a Kare Plus Romford,Home Care - Private Contractors Payment,741.49,0.00,COMMERCIAL SUPPLIER 
 01-08-2023,People - Ageing Well,Quality Healthcare Solutions Ltd t/a Kare Plus Romford,Home Care - Private Contractors Payment,924.23,0.00,COMMERCIAL SUPPLIER 
 01-08-2023,People - Ageing Well,Quality Healthcare Solutions Ltd t/a Kare Plus Romford,Home Care - Private Contractors Payment,3070.79,0.00,COMMERCIAL SUPPLIER 
 01-08-2023,People - Ageing Well,Quality Healthcare Solutions Ltd t/a Kare Plus Romford,Home Care - Private Contractors Payment,2025.00,0.00,COMMERCIAL SUPPLIER 
 01-08-2023,People - Ageing Well,Quality Healthcare Solutions Ltd t/a Kare Plus Romford,Home Care - Private Contractors Payment,760.78,0.00,COMMERCIAL SUPPLIER 
 01-08-2023,People - Ageing Well,Quality Healthcare Solutions Ltd t/a Kare Plus Romford,Home Care - Private Contractors Payment,1204.15,0.00,COMMERCIAL SUPPLIER 
 01-08-2023,People - Ageing Well,Quality Healthcare Solutions Ltd t/a Kare Plus Romford,Home Care - Private Contractors Payment,1287.51,0.00,COMMERCIAL SUPPLIER 
 01-08-2023,People - Ageing Well,Quality Healthcare Solutions Ltd t/a Kare Plus Romford,Home Care - Private Contractors Payment,1039.62,0.00,COMMERCIAL SUPPLIER 
 01-08-2023,People - Ageing Well,Quality Healthcare Solutions Ltd t/a Kare Plus Romford,Home Care - Private Contractors Payment,697.81,0.00,COMMERCIAL SUPPLIER 
 01-08-2023,People - Ageing Well,Quality Healthcare Solutions Ltd t/a Kare Plus Romford,Home Care - Private Contractors Payment,694.90,0.00,COMMERCIAL SUPPLIER 
 01-08-2023,People - Ageing Well,Quality Healthcare Solutions Ltd t/a Kare Plus Romford,Home Care - Private Contractors Payment,1016.32,0.00,COMMERCIAL SUPPLIER 
 01-08-2023,People - Ageing Well,Quality Healthcare Solutions Ltd t/a Kare Plus Romford,Home Care - Private Contractors Payment,1055.64,0.00,COMMERCIAL SUPPLIER 
 01-08-2023,People - Ageing Well,Quality Healthcare Solutions Ltd t/a Kare Plus Romford,Home Care - Private Contractors Payment,1012.68,0.00,COMMERCIAL SUPPLIER 
 01-08-2023,People - Ageing Well,Quality Healthcare Solutions Ltd t/a Kare Plus Romford,Home Care - Private Contractors Payment,932.97,0.00,COMMERCIAL SUPPLIER 
 01-08-2023,People - Ageing Well,Quality Healthcare Solutions Ltd t/a Kare Plus Romford,Home Care - Private Contractors Payment,2957.59,0.00,COMMERCIAL SUPPLIER 
 01-08-2023,People - Ageing Well,Quality Healthcare Solutions Ltd t/a Kare Plus Romford,Home Care - Private Contractors Payment,627.92,0.00,COMMERCIAL SUPPLIER 
 01-08-2023,People - Ageing Well,Quality Healthcare Solutions Ltd t/a Kare Plus Romford,Home Care - Private Contractors Payment,1443.67,0.00,COMMERCIAL SUPPLIER 
 01-08-2023,People - Ageing Well,Quality Healthcare Solutions Ltd t/a Kare Plus Romford,Home Care - Private Contractors Payment,1228.54,0.00,COMMERCIAL SUPPLIER 
 01-08-2023,People - Ageing Well,Quality Healthcare Solutions Ltd t/a Kare Plus Romford,Home Care - Private Contractors Payment,1263.49,0.00,COMMERCIAL SUPPLIER 
 01-08-2023,People - Ageing Well,Quality Healthcare Solutions Ltd t/a Kare Plus Romford,Home Care - Private Contractors Payment,2510.60,0.00,COMMERCIAL SUPPLIER 
 01-08-2023,People - Ageing Well,Quality Healthcare Solutions Ltd t/a Kare Plus Romford,Home Care - Private Contractors Payment,1353.03,0.00,COMMERCIAL SUPPLIER 
 01-08-2023,People - Ageing Well,Quality Healthcare Solutions Ltd t/a Kare Plus Romford,Home Care - Private Contractors Payment,2792.33,0.00,COMMERCIAL SUPPLIER 
 01-08-2023,People - Ageing Well,Quality Healthcare Solutions Ltd t/a Kare Plus Romford,Home Care - Private Contractors Payment,629.74,0.00,COMMERCIAL SUPPLIER 
 01-08-2023,People - Ageing Well,Quality Healthcare Solutions Ltd t/a Kare Plus Romford,Home Care - Private Contractors Payment,1277.68,0.00,COMMERCIAL SUPPLIER 
 01-08-2023,People - Ageing Well,Quality Healthcare Solutions Ltd t/a Kare Plus Romford,Home Care - Private Contractors Payment,643.94,0.00,COMMERCIAL SUPPLIER 
 01-08-2023,People - Ageing Well,Quality Healthcare Solutions Ltd t/a Kare Plus Romford,Home Care - Private Contractors Payment,1263.49,0.00,COMMERCIAL SUPPLIER 
 01-08-2023,People - Ageing Well,Quality Healthcare Solutions Ltd t/a Kare Plus Romford,Home Care - Private Contractors Payment,1018.51,0.00,COMMERCIAL SUPPLIER 
 01-08-2023,People - Ageing Well,Quality Healthcare Solutions Ltd t/a Kare Plus Romford,Home Care - Private Contractors Payment,2881.15,0.00,COMMERCIAL SUPPLIER 
 01-08-2023,People - Ageing Well,Quality Healthcare Solutions Ltd t/a Kare Plus Romford,Home Care - Private Contractors Payment,2810.17,0.00,COMMERCIAL SUPPLIER 
 01-08-2023,People - Ageing Well,Quality Healthcare Solutions Ltd t/a Kare Plus Romford,Home Care - Private Contractors Payment,926.78,0.00,COMMERCIAL SUPPLIER 
 01-08-2023,People - Ageing Well,Passion Tree Care Services Ltd,Home Care - Private Contractors Payment,1223.08,0.00,COMMERCIAL SUPPLIER 
 01-08-2023,People - Ageing Well,Passion Tree Care Services Ltd,Home Care - Private Contractors Payment,611.54,0.00,COMMERCIAL SUPPLIER 
 01-08-2023,People - Ageing Well,Passion Tree Care Services Ltd,Home Care - Private Contractors Payment,611.54,0.00,COMMERCIAL SUPPLIER 
 01-08-2023,People - Ageing Well,Passion Tree Care Services Ltd,Home Care - Private Contractors Payment,1179.40,0.00,COMMERCIAL SUPPLIER 
 01-08-2023,People - Ageing Well,Passion Tree Care Services Ltd,Home Care - Private Contractors Payment,1179.40,0.00,COMMERCIAL SUPPLIER 
 01-08-2023,People - Ageing Well,Passion Tree Care Services Ltd,Home Care - Private Contractors Payment,1070.19,0.00,COMMERCIAL SUPPLIER 
 01-08-2023,People - Ageing Well,Passion Tree Care Services Ltd,Home Care - Private Contractors Payment,611.54,0.00,COMMERCIAL SUPPLIER 
 01-08-2023,People - Ageing Well,Passion Tree Care Services Ltd,Home Care - Private Contractors Payment,611.54,0.00,COMMERCIAL SUPPLIER 
 01-08-2023,People - Ageing Well,Passion Tree Care Services Ltd,Home Care - Private Contractors Payment,611.54,0.00,COMMERCIAL SUPPLIER 
 01-08-2023,People - Ageing Well,Passion Tree Care Services Ltd,Home Care - Private Contractors Payment,611.54,0.00,COMMERCIAL SUPPLIER 
 01-08-2023,People - Ageing Well,Passion Tree Care Services Ltd,Home Care - Private Contractors Payment,1375.96,0.00,COMMERCIAL SUPPLIER 
 01-08-2023,People - Ageing Well,Passion Tree Care Services Ltd,Home Care - Private Contractors Payment,1223.08,0.00,COMMERCIAL SUPPLIER 
 01-08-2023,People - Ageing Well,Passion Tree Care Services Ltd,Home Care - Private Contractors Payment,1310.45,0.00,COMMERCIAL SUPPLIER 
 01-08-2023,People - Ageing Well,Passion Tree Care Services Ltd,Home Care - Private Contractors Payment,917.31,0.00,COMMERCIAL SUPPLIER 
 01-08-2023,People - Ageing Well,Passion Tree Care Services Ltd,Home Care - Private Contractors Payment,1048.33,0.00,COMMERCIAL SUPPLIER 
 01-08-2023,People - Ageing Well,Passion Tree Care Services Ltd,Home Care - Private Contractors Payment,611.54,0.00,COMMERCIAL SUPPLIER 
 01-08-2023,People - Ageing Well,Rosemont Care Limited,Home Care - Private Contractors Payment,1223.08,0.00,COMMERCIAL SUPPLIER 
 01-08-2023,People - Ageing Well,Rosemont Care Limited,Home Care - Private Contractors Payment,1179.40,0.00,COMMERCIAL SUPPLIER 
 01-08-2023,People - Ageing Well,Rosemont Care Limited,Home Care - Private Contractors Payment,1223.08,0.00,COMMERCIAL SUPPLIER 
 01-08-2023,People - Ageing Well,Rosemont Care Limited,Home Care - Private Contractors Payment,917.31,0.00,COMMERCIAL SUPPLIER 
 01-08-2023,People - Ageing Well,Rosemont Care Limited,Home Care - Private Contractors Payment,917.31,0.00,COMMERCIAL SUPPLIER 
 01-08-2023,People - Ageing Well,Rosemont Care Limited,Home Care - Private Contractors Payment,1223.08,0.00,COMMERCIAL SUPPLIER 
 01-08-2023,People - Ageing Well,Rosemont Care Limited,Home Care - Private Contractors Payment,1223.08,0.00,COMMERCIAL SUPPLIER 
 01-08-2023,People - Ageing Well,Rosemont Care Limited,Home Care - Private Contractors Payment,1223.08,0.00,COMMERCIAL SUPPLIER 
 01-08-2023,People - Ageing Well,Rosemont Care Limited,Home Care - Private Contractors Payment,1223.08,0.00,COMMERCIAL SUPPLIER 
 02-08-2023,People - Ageing Well,The Sycamore Trust,Payments To Voluntary Sector,3333.34,0.00,COMMERCIAL SUPPLIER 
 02-08-2023,People - Ageing Well,The Sycamore Trust,Payments To Voluntary Sector,3333.33,0.00,COMMERCIAL SUPPLIER 
 02-08-2023,People - Ageing Well,John Stanleys Care Agency Ltd,Home Care - Private Contractors Payment,1033.79,0.00,COMMERCIAL SUPPLIER 
 02-08-2023,People - Ageing Well,John Stanleys Care Agency Ltd,Home Care - Private Contractors Payment,1036.71,0.00,COMMERCIAL SUPPLIER 
 02-08-2023,People - Ageing Well,John Stanleys Care Agency Ltd,Home Care - Private Contractors Payment,754.58,0.00,COMMERCIAL SUPPLIER 
 02-08-2023,People - Ageing Well,John Stanleys Care Agency Ltd,Home Care - Private Contractors Payment,702.18,0.00,COMMERCIAL SUPPLIER 
 02-08-2023,People - Ageing Well,John Stanleys Care Agency Ltd,Home Care - Private Contractors Payment,2685.96,0.00,COMMERCIAL SUPPLIER 
 02-08-2023,People - Ageing Well,John Stanleys Care Agency Ltd,Home Care - Private Contractors Payment,791.36,0.00,COMMERCIAL SUPPLIER 
 02-08-2023,People - Ageing Well,John Stanleys Care Agency Ltd,Home Care - Private Contractors Payment,899.84,0.00,COMMERCIAL SUPPLIER 
 02-08-2023,People - Ageing Well,John Stanleys Care Agency Ltd,Home Care - Private Contractors Payment,709.09,0.00,COMMERCIAL SUPPLIER 
 02-08-2023,People - Ageing Well,John Stanleys Care Agency Ltd,Home Care - Private Contractors Payment,687.62,0.00,COMMERCIAL SUPPLIER 
 02-08-2023,People - Ageing Well,John Stanleys Care Agency Ltd,Home Care - Private Contractors Payment,1326.81,0.00,COMMERCIAL SUPPLIER 
 02-08-2023,People - Ageing Well,John Stanleys Care Agency Ltd,Home Care - Private Contractors Payment,795.73,0.00,COMMERCIAL SUPPLIER 
 02-08-2023,People - Ageing Well,John Stanleys Care Agency Ltd,Home Care - Private Contractors Payment,1366.47,0.00,COMMERCIAL SUPPLIER 
 02-08-2023,People - Ageing Well,John Stanleys Care Agency Ltd,Home Care - Private Contractors Payment,1383.20,0.00,COMMERCIAL SUPPLIER 
 02-08-2023,People - Ageing Well,John Stanleys Care Agency Ltd,Home Care - Private Contractors Payment,1399.59,0.00,COMMERCIAL SUPPLIER 
 02-08-2023,People - Ageing Well,John Stanleys Care Agency Ltd,Home Care - Private Contractors Payment,3777.59,0.00,COMMERCIAL SUPPLIER 
 02-08-2023,People - Ageing Well,John Stanleys Care Agency Ltd,Home Care - Private Contractors Payment,7130.08,0.00,COMMERCIAL SUPPLIER 
 02-08-2023,People - Ageing Well,John Stanleys Care Agency Ltd,Home Care - Private Contractors Payment,898.35,0.00,COMMERCIAL SUPPLIER 
 02-08-2023,People - Ageing Well,John Stanleys Care Agency Ltd,Home Care - Private Contractors Payment,783.34,0.00,COMMERCIAL SUPPLIER 
 02-08-2023,People - Ageing Well,John Stanleys Care Agency Ltd,Home Care - Private Contractors Payment,1755.61,0.00,COMMERCIAL SUPPLIER 
 02-08-2023,People - Ageing Well,John Stanleys Care Agency Ltd,Home Care - Private Contractors Payment,574.41,0.00,COMMERCIAL SUPPLIER 
 02-08-2023,People - Ageing Well,John Stanleys Care Agency Ltd,Home Care - Private Contractors Payment,1059.27,0.00,COMMERCIAL SUPPLIER 
 02-08-2023,People - Ageing Well,John Stanleys Care Agency Ltd,Home Care - Private Contractors Payment,661.41,0.00,COMMERCIAL SUPPLIER 
 02-08-2023,People - Ageing Well,John Stanleys Care Agency Ltd,Home Care - Private Contractors Payment,684.71,0.00,COMMERCIAL SUPPLIER 
 02-08-2023,People - Ageing Well,John Stanleys Care Agency Ltd,Home Care - Private Contractors Payment,971.91,0.00,COMMERCIAL SUPPLIER 
 02-08-2023,People - Ageing Well,John Stanleys Care Agency Ltd,Home Care - Private Contractors Payment,912.22,0.00,COMMERCIAL SUPPLIER 
 02-08-2023,People - Ageing Well,John Stanleys Care Agency Ltd,Home Care - Private Contractors Payment,929.69,0.00,COMMERCIAL SUPPLIER 
 02-08-2023,People - Ageing Well,John Stanleys Care Agency Ltd,Home Care - Private Contractors Payment,1862.99,0.00,COMMERCIAL SUPPLIER 
 02-08-2023,People - Ageing Well,John Stanleys Care Agency Ltd,Home Care - Private Contractors Payment,524.18,0.00,COMMERCIAL SUPPLIER 
 02-08-2023,People - Ageing Well,John Stanleys Care Agency Ltd,Home Care - Private Contractors Payment,924.23,0.00,COMMERCIAL SUPPLIER 
 02-08-2023,People - Ageing Well,John Stanleys Care Agency Ltd,Home Care - Private Contractors Payment,621.37,0.00,COMMERCIAL SUPPLIER 
 02-08-2023,People - Ageing Well,Matrix SCM Ltd,Agency Staff,1293.00,0.00,COMMERCIAL SUPPLIER 
 02-08-2023,People - Ageing Well,Matrix SCM Ltd,Agency Staff,749.94,0.00,COMMERCIAL SUPPLIER 
 02-08-2023,People - Ageing Well,Matrix SCM Ltd,Agency Staff,1241.28,0.00,COMMERCIAL SUPPLIER 
 02-08-2023,People - Ageing Well,Matrix SCM Ltd,Agency Staff,1241.28,0.00,COMMERCIAL SUPPLIER 
 02-08-2023,People - Ageing Well,Matrix SCM Ltd,Agency Staff,1281.60,0.00,COMMERCIAL SUPPLIER 
 02-08-2023,People - Ageing Well,Matrix SCM Ltd,Agency Staff,1385.28,0.00,COMMERCIAL SUPPLIER 
 02-08-2023,People - Ageing Well,Matrix SCM Ltd,Agency Staff,1323.36,0.00,COMMERCIAL SUPPLIER 
 02-08-2023,People - Ageing Well,Matrix SCM Ltd,Agency Staff,619.55,0.00,COMMERCIAL SUPPLIER 
 02-08-2023,People - Ageing Well,Matrix SCM Ltd,Agency Staff,1241.28,0.00,COMMERCIAL SUPPLIER 
 02-08-2023,People - Ageing Well,Matrix SCM Ltd,Agency Staff,695.17,0.00,COMMERCIAL SUPPLIER 
 02-08-2023,People - Ageing Well,Matrix SCM Ltd,Agency Staff,790.93,0.00,COMMERCIAL SUPPLIER 
 02-08-2023,People - Ageing Well,Matrix SCM Ltd,Agency Staff,710.27,0.00,COMMERCIAL SUPPLIER 
 02-08-2023,People - Ageing Well,Matrix SCM Ltd,Agency Staff,1277.28,0.00,COMMERCIAL SUPPLIER 
 02-08-2023,People - Ageing Well,Matrix SCM Ltd,Agency Staff,790.91,0.00,COMMERCIAL SUPPLIER 
 02-08-2023,People - Ageing Well,Matrix SCM Ltd,Agency Staff,1241.28,0.00,COMMERCIAL SUPPLIER 
 02-08-2023,People - Ageing Well,Matrix SCM Ltd,Agency Staff,1241.28,0.00,COMMERCIAL SUPPLIER 
 02-08-2023,People - Ageing Well,Matrix SCM Ltd,Agency Staff,1288.80,0.00,COMMERCIAL SUPPLIER 
 02-08-2023,People - Ageing Well,Matrix SCM Ltd,Agency Staff,1275.49,0.00,COMMERCIAL SUPPLIER 
 02-08-2023,People - Ageing Well,Matrix SCM Ltd,Agency Staff,790.91,0.00,COMMERCIAL SUPPLIER 
 02-08-2023,People - Ageing Well,Matrix SCM Ltd,Agency Staff,1249.92,0.00,COMMERCIAL SUPPLIER 
 02-08-2023,People - Ageing Well,Matrix SCM Ltd,Agency Staff,1253.54,0.00,COMMERCIAL SUPPLIER 
 02-08-2023,People - Ageing Well,Matrix SCM Ltd,Agency Staff,1434.63,0.00,COMMERCIAL SUPPLIER 
 02-08-2023,People - Ageing Well,Matrix SCM Ltd,Agency Staff,1273.32,0.00,COMMERCIAL SUPPLIER 
 02-08-2023,People - Ageing Well,Matrix SCM Ltd,Agency Staff,834.74,0.00,COMMERCIAL SUPPLIER 
 02-08-2023,People - Ageing Well,Matrix SCM Ltd,Agency Staff,1349.28,0.00,COMMERCIAL SUPPLIER 
 02-08-2023,People - Ageing Well,Matrix SCM Ltd,Agency Staff,1384.58,0.00,COMMERCIAL SUPPLIER 
 02-08-2023,People - Ageing Well,Matrix SCM Ltd,Agency Staff,1209.60,0.00,COMMERCIAL SUPPLIER 
 02-08-2023,People - Ageing Well,Matrix SCM Ltd,Agency Staff,1241.28,0.00,COMMERCIAL SUPPLIER 
 02-08-2023,People - Ageing Well,Havering Association for People with Disabilities (H.A.D.),Payments To Voluntary Sector,3332.35,0.00,NON COMMERCIAL SUPPLIER 
 02-08-2023,People - Ageing Well,Havering Association for People with Disabilities (H.A.D.),Payments To Voluntary Sector,3332.35,0.00,NON COMMERCIAL SUPPLIER 
 02-08-2023,People - Ageing Well,Eveshel Care Ltd,Home Care - Private Contractors Payment,752.76,0.00,COMMERCIAL SUPPLIER 
 02-08-2023,People - Ageing Well,Eveshel Care Ltd,Home Care - Private Contractors Payment,752.76,0.00,COMMERCIAL SUPPLIER 
 02-08-2023,People - Ageing Well,Eveshel Care Ltd,Home Care - Private Contractors Payment,1070.19,0.00,COMMERCIAL SUPPLIER 
 02-08-2023,People - Ageing Well,Letussharethecare Ltd,Home Care - Private Contractors Payment,1223.08,0.00,COMMERCIAL SUPPLIER 
 03-08-2023,People - Ageing Well,Personal Information - Redacted,Rents Payable,15762.24,0.00,COMMERCIAL SUPPLIER 
 03-08-2023,People - Ageing Well,Care-Away Ltd T/A Care Support,Home Care - Private Contractors Payment,1027.04,0.00,COMMERCIAL SUPPLIER 
 03-08-2023,People - Ageing Well,Care-Away Ltd T/A Care Support,Home Care - Private Contractors Payment,825.30,0.00,COMMERCIAL SUPPLIER 
 03-08-2023,People - Ageing Well,Care-Away Ltd T/A Care Support,Home Care - Private Contractors Payment,513.52,0.00,COMMERCIAL SUPPLIER 
 03-08-2023,People - Ageing Well,Care-Away Ltd T/A Care Support,Home Care - Private Contractors Payment,1283.80,0.00,COMMERCIAL SUPPLIER 
 03-08-2023,People - Ageing Well,Care-Away Ltd T/A Care Support,Home Care - Private Contractors Payment,513.52,0.00,COMMERCIAL SUPPLIER 
 03-08-2023,People - Ageing Well,Care-Away Ltd T/A Care Support,Home Care - Private Contractors Payment,788.62,0.00,COMMERCIAL SUPPLIER 
 03-08-2023,People - Ageing Well,Care-Away Ltd T/A Care Support,Home Care - Private Contractors Payment,2127.44,0.00,COMMERCIAL SUPPLIER 
 03-08-2023,People - Ageing Well,Care-Away Ltd T/A Care Support,Home Care - Private Contractors Payment,770.28,0.00,COMMERCIAL SUPPLIER 
 03-08-2023,People - Ageing Well,Care-Away Ltd T/A Care Support,Home Care - Private Contractors Payment,898.66,0.00,COMMERCIAL SUPPLIER 
 03-08-2023,People - Ageing Well,Care-Away Ltd T/A Care Support,Home Care - Private Contractors Payment,1540.56,0.00,COMMERCIAL SUPPLIER 
 03-08-2023,People - Ageing Well,Care-Away Ltd T/A Care Support,Home Care - Private Contractors Payment,513.52,0.00,COMMERCIAL SUPPLIER 
 03-08-2023,People - Ageing Well,Care-Away Ltd T/A Care Support,Home Care - Private Contractors Payment,788.62,0.00,COMMERCIAL SUPPLIER 
 03-08-2023,People - Ageing Well,Care-Away Ltd T/A Care Support,Home Care - Private Contractors Payment,999.53,0.00,COMMERCIAL SUPPLIER 
 03-08-2023,People - Ageing Well,Care-Away Ltd T/A Care Support,Home Care - Private Contractors Payment,1027.04,0.00,COMMERCIAL SUPPLIER 
 03-08-2023,People - Ageing Well,Care-Away Ltd T/A Care Support,Home Care - Private Contractors Payment,770.28,0.00,COMMERCIAL SUPPLIER 
 03-08-2023,People - Ageing Well,Care-Away Ltd T/A Care Support,Home Care - Private Contractors Payment,1027.04,0.00,COMMERCIAL SUPPLIER 
 03-08-2023,People - Ageing Well,Care-Away Ltd T/A Care Support,Home Care - Private Contractors Payment,513.52,0.00,COMMERCIAL SUPPLIER 
 03-08-2023,People - Ageing Well,Care-Away Ltd T/A Care Support,Home Care - Private Contractors Payment,1045.38,0.00,COMMERCIAL SUPPLIER 
 03-08-2023,People - Ageing Well,Care-Away Ltd T/A Care Support,Home Care - Private Contractors Payment,1027.04,0.00,COMMERCIAL SUPPLIER 
 03-08-2023,People - Ageing Well,Care-Away Ltd T/A Care Support,Home Care - Private Contractors Payment,586.88,0.00,COMMERCIAL SUPPLIER 
 03-08-2023,People - Ageing Well,Care-Away Ltd T/A Care Support,Home Care - Private Contractors Payment,1063.72,0.00,COMMERCIAL SUPPLIER 
 03-08-2023,People - Ageing Well,Care-Away Ltd T/A Care Support,Home Care - Private Contractors Payment,1063.72,0.00,COMMERCIAL SUPPLIER 
 03-08-2023,People - Ageing Well,Care-Away Ltd T/A Care Support,Home Care - Private Contractors Payment,953.68,0.00,COMMERCIAL SUPPLIER 
 03-08-2023,People - Ageing Well,Care-Away Ltd T/A Care Support,Home Care - Private Contractors Payment,513.52,0.00,COMMERCIAL SUPPLIER 
 03-08-2023,People - Ageing Well,Care-Away Ltd T/A Care Support,Home Care - Private Contractors Payment,770.28,0.00,COMMERCIAL SUPPLIER 
 03-08-2023,People - Ageing Well,Care-Away Ltd T/A Care Support,Home Care - Private Contractors Payment,898.66,0.00,COMMERCIAL SUPPLIER 
 03-08-2023,People - Ageing Well,Care-Away Ltd T/A Care Support,Home Care - Private Contractors Payment,2054.08,0.00,COMMERCIAL SUPPLIER 
 03-08-2023,People - Ageing Well,Care-Away Ltd T/A Care Support,Home Care - Private Contractors Payment,641.90,0.00,COMMERCIAL SUPPLIER 
 03-08-2023,People - Ageing Well,Eveshel Care Ltd,Home Care - Private Contractors Payment,1070.19,0.00,COMMERCIAL SUPPLIER 
 03-08-2023,People - Ageing Well,John Stanleys Care Agency Ltd,Home Care - Private Contractors Payment,653.40,0.00,COMMERCIAL SUPPLIER 
 03-08-2023,People - Ageing Well,John Stanleys Care Agency Ltd,Home Care - Private Contractors Payment,907.85,0.00,COMMERCIAL SUPPLIER 
 03-08-2023,People - Ageing Well,John Stanleys Care Agency Ltd,Home Care - Private Contractors Payment,613.73,0.00,COMMERCIAL SUPPLIER 
 03-08-2023,People - Ageing Well,John Stanleys Care Agency Ltd,Home Care - Private Contractors Payment,1370.14,0.00,COMMERCIAL SUPPLIER 
 03-08-2023,People - Ageing Well,John Stanleys Care Agency Ltd,Home Care - Private Contractors Payment,1372.32,0.00,COMMERCIAL SUPPLIER 
 03-08-2023,People - Ageing Well,John Stanleys Care Agency Ltd,Home Care - Private Contractors Payment,5529.52,0.00,COMMERCIAL SUPPLIER 
 03-08-2023,People - Ageing Well,John Stanleys Care Agency Ltd,Home Care - Private Contractors Payment,10575.00,0.00,COMMERCIAL SUPPLIER 
 03-08-2023,People - Ageing Well,John Stanleys Care Agency Ltd,Home Care - Private Contractors Payment,3137.32,0.00,COMMERCIAL SUPPLIER 
 03-08-2023,People - Ageing Well,John Stanleys Care Agency Ltd,Home Care - Private Contractors Payment,643.93,0.00,COMMERCIAL SUPPLIER 
 03-08-2023,People - Ageing Well,John Stanleys Care Agency Ltd,Home Care - Private Contractors Payment,1314.09,0.00,COMMERCIAL SUPPLIER 
 03-08-2023,People - Ageing Well,John Stanleys Care Agency Ltd,Home Care - Private Contractors Payment,737.85,0.00,COMMERCIAL SUPPLIER 
 03-08-2023,People - Ageing Well,John Stanleys Care Agency Ltd,Home Care - Private Contractors Payment,1746.52,0.00,COMMERCIAL SUPPLIER 
 03-08-2023,People - Ageing Well,John Stanleys Care Agency Ltd,Home Care - Private Contractors Payment,1011.59,0.00,COMMERCIAL SUPPLIER 
 03-08-2023,People - Ageing Well,John Stanleys Care Agency Ltd,Home Care - Private Contractors Payment,599.89,0.00,COMMERCIAL SUPPLIER 
 03-08-2023,People - Ageing Well,John Stanleys Care Agency Ltd,Home Care - Private Contractors Payment,1234.34,0.00,COMMERCIAL SUPPLIER 
 03-08-2023,People - Ageing Well,John Stanleys Care Agency Ltd,Home Care - Private Contractors Payment,2411.92,0.00,COMMERCIAL SUPPLIER 
 03-08-2023,People - Ageing Well,John Stanleys Care Agency Ltd,Home Care - Private Contractors Payment,762.97,0.00,COMMERCIAL SUPPLIER 
 03-08-2023,People - Ageing Well,John Stanleys Care Agency Ltd,Home Care - Private Contractors Payment,1396.35,0.00,COMMERCIAL SUPPLIER 
 03-08-2023,People - Ageing Well,John Stanleys Care Agency Ltd,Home Care - Private Contractors Payment,873.63,0.00,COMMERCIAL SUPPLIER 
 03-08-2023,People - Ageing Well,John Stanleys Care Agency Ltd,Home Care - Private Contractors Payment,867.44,0.00,COMMERCIAL SUPPLIER 
 03-08-2023,People - Ageing Well,John Stanleys Care Agency Ltd,Home Care - Private Contractors Payment,1273.32,0.00,COMMERCIAL SUPPLIER 
 03-08-2023,People - Ageing Well,John Stanleys Care Agency Ltd,Home Care - Private Contractors Payment,1218.35,0.00,COMMERCIAL SUPPLIER 
 03-08-2023,People - Ageing Well,John Stanleys Care Agency Ltd,Home Care - Private Contractors Payment,1244.92,0.00,COMMERCIAL SUPPLIER 
 03-08-2023,People - Ageing Well,John Stanleys Care Agency Ltd,Home Care - Private Contractors Payment,613.00,0.00,COMMERCIAL SUPPLIER 
 03-08-2023,People - Ageing Well,John Stanleys Care Agency Ltd,Home Care - Private Contractors Payment,1797.46,0.00,COMMERCIAL SUPPLIER 
 03-08-2023,People - Ageing Well,John Stanleys Care Agency Ltd,Home Care - Private Contractors Payment,2460.33,0.00,COMMERCIAL SUPPLIER 
 03-08-2023,People - Ageing Well,Pleasant Home Healthcare Ltd,Home Care - Private Contractors Payment,1419.63,0.00,COMMERCIAL SUPPLIER 
 04-08-2023,People - Ageing Well,ECL Person Centred Care,Daycare - Private Contractors Payment,6480.00,0.00,COMMERCIAL SUPPLIER 
 04-08-2023,People - Ageing Well,ECL Person Centred Care,Daycare - Private Contractors Payment,4921.00,0.00,COMMERCIAL SUPPLIER 
 04-08-2023,People - Ageing Well,HC-One Oval Ltd - The Hornchurch Nursing Centre,Nursing Homes - Private Contractors Payment,678.00,0.00,COMMERCIAL SUPPLIER 
 04-08-2023,People - Ageing Well,Millbrook Healthcare Group ,Purchase - Equipment Furniture And Materials,12690.12,0.00,COMMERCIAL SUPPLIER 
 04-08-2023,People - Ageing Well,Pristine Care London Ltd ,Daycare - Private Contractors Payment,1155.00,0.00,COMMERCIAL SUPPLIER 
 04-08-2023,People - Ageing Well,Pristine Care London Ltd ,Daycare - Private Contractors Payment,660.00,0.00,COMMERCIAL SUPPLIER 
 07-08-2023,People - Ageing Well,R G Care Ltd ,Daycare - Private Contractors Payment,840.00,0.00,COMMERCIAL SUPPLIER 
 07-08-2023,People - Ageing Well,R G Care Ltd ,Daycare - Private Contractors Payment,2100.00,0.00,COMMERCIAL SUPPLIER 
 07-08-2023,People - Ageing Well,R G Care Ltd ,Daycare - Private Contractors Payment,1995.00,0.00,COMMERCIAL SUPPLIER 
 07-08-2023,People - Ageing Well,R G Care Ltd ,Daycare - Private Contractors Payment,900.00,0.00,COMMERCIAL SUPPLIER 
 07-08-2023,People - Ageing Well,Gims Care Solution Ltd_a,Home Care - Private Contractors Payment,1450.00,0.00,NON COMMERCIAL SUPPLIER 
 07-08-2023,People - Ageing Well,Gims Care Solution Ltd_a,Home Care - Private Contractors Payment,5800.00,0.00,NON COMMERCIAL SUPPLIER 
 07-08-2023,People - Ageing Well,Gims Care Solution Ltd_a,Home Care - Private Contractors Payment,2446.09,0.00,NON COMMERCIAL SUPPLIER 
 07-08-2023,People - Ageing Well,Gims Care Solution Ltd_a,Home Care - Private Contractors Payment,1000.32,0.00,NON COMMERCIAL SUPPLIER 
 07-08-2023,People - Ageing Well,Gims Care Solution Ltd_a,Home Care - Private Contractors Payment,3669.13,0.00,NON COMMERCIAL SUPPLIER 
 07-08-2023,People - Ageing Well,Gims Care Solution Ltd_a,Home Care - Private Contractors Payment,8109.60,0.00,NON COMMERCIAL SUPPLIER 
 07-08-2023,People - Ageing Well,All Therapy Solutions Ltd,Occupational Health,900.00,0.00,COMMERCIAL SUPPLIER 
 07-08-2023,People - Ageing Well,Lakefield Enterprises Ltd t/a R J Bowyer Building Services,Maintenance - Equipment Furniture And Materials,635.00,0.00,COMMERCIAL SUPPLIER 
 07-08-2023,People - Ageing Well,Spring Consult UK Ltd,Home Care - Private Contractors Payment,13365.00,0.00,COMMERCIAL SUPPLIER 
 07-08-2023,People - Ageing Well,Spring Consult UK Ltd,Home Care - Private Contractors Payment,11351.25,0.00,COMMERCIAL SUPPLIER 
 07-08-2023,People - Ageing Well,Asvacare Ltd,Payment To Health Authorities,1035.00,0.00,COMMERCIAL SUPPLIER 
 07-08-2023,People - Ageing Well,Asvacare Ltd,Payment To Health Authorities,546.50,0.00,COMMERCIAL SUPPLIER 
 07-08-2023,People - Ageing Well,Carers Centre SA Ltd ,Payments To Voluntary Sector,2775.17,0.00,COMMERCIAL SUPPLIER 
 07-08-2023,People - Ageing Well,Carers Centre SA Ltd ,Payments To Voluntary Sector,2775.17,0.00,COMMERCIAL SUPPLIER 
 07-08-2023,People - Ageing Well,Carers Centre SA Ltd ,Payments To Voluntary Sector,2775.17,0.00,COMMERCIAL SUPPLIER 
 07-08-2023,People - Ageing Well,Carers Centre SA Ltd ,Payments To Voluntary Sector,2775.17,0.00,COMMERCIAL SUPPLIER 
 07-08-2023,People - Ageing Well,Carers Centre SA Ltd ,Payments To Voluntary Sector,2775.17,0.00,COMMERCIAL SUPPLIER 
 07-08-2023,People - Ageing Well,Protecthand Care Ltd ,Supported Other Accommodation - Private Contractors Payment,14288.40,0.00,COMMERCIAL SUPPLIER 
 08-08-2023,People - Ageing Well,Trinity London Care Ltd,Daycare - Private Contractors Payment,2200.00,0.00,COMMERCIAL SUPPLIER 
 08-08-2023,People - Ageing Well,Trinity London Care Ltd,Daycare - Private Contractors Payment,2200.00,0.00,COMMERCIAL SUPPLIER 
 08-08-2023,People - Ageing Well,Trinity London Care Ltd,Daycare - Private Contractors Payment,2200.00,0.00,COMMERCIAL SUPPLIER 
 08-08-2023,People - Ageing Well,Trinity London Care Ltd,Daycare - Private Contractors Payment,1080.00,0.00,COMMERCIAL SUPPLIER 
 08-08-2023,People - Ageing Well,Trinity London Care Ltd,Daycare - Private Contractors Payment,1080.00,0.00,COMMERCIAL SUPPLIER 
 08-08-2023,People - Ageing Well,Trinity London Care Ltd,Daycare - Private Contractors Payment,1080.00,0.00,COMMERCIAL SUPPLIER 
 08-08-2023,People - Ageing Well,Treal Care Limited,Home Care - Private Contractors Payment,1155.00,0.00,COMMERCIAL SUPPLIER 
 08-08-2023,People - Ageing Well,Treal Care Limited,Home Care - Private Contractors Payment,1448.00,0.00,COMMERCIAL SUPPLIER 
 08-08-2023,People - Ageing Well,Treal Care Limited,Home Care - Private Contractors Payment,1448.00,0.00,COMMERCIAL SUPPLIER 
 08-08-2023,People - Ageing Well,Mayflower Travel,Client Transport,1204.00,0.00,COMMERCIAL SUPPLIER 
 08-08-2023,People - Ageing Well,Romford Private Hire Ltd,Client Transport,3256.00,0.00,COMMERCIAL SUPPLIER 
 08-08-2023,People - Ageing Well,Romford Private Hire Ltd,Client Transport,1364.00,0.00,COMMERCIAL SUPPLIER 
 08-08-2023,People - Ageing Well,Romford Private Hire Ltd,Client Transport,1430.00,0.00,COMMERCIAL SUPPLIER 
 08-08-2023,People - Ageing Well,Potton Services Ltd,Home Care - Private Contractors Payment,902.00,0.00,COMMERCIAL SUPPLIER 
 08-08-2023,People - Ageing Well,Potton Services Ltd,Home Care - Private Contractors Payment,573.60,0.00,COMMERCIAL SUPPLIER 
 08-08-2023,People - Ageing Well,Flex360 Limited,Private Contractors Payment - Other,5600.00,0.00,COMMERCIAL SUPPLIER 
 08-08-2023,People - Ageing Well,Personal Information - Redacted,Direct Payments Income,896.00,0.00,INDIVIDUALS 
 08-08-2023,People - Ageing Well,Personal Information - Redacted,Direct Payments Income,896.00,0.00,INDIVIDUALS 
 08-08-2023,People - Ageing Well,Personal Information - Redacted,Direct Payments Income,672.00,0.00,INDIVIDUALS 
 08-08-2023,People - Ageing Well,Personal Information - Redacted,Direct Payments Income,896.00,0.00,INDIVIDUALS 
 08-08-2023,People - Ageing Well,Personal Information - Redacted,Direct Payments Income,896.00,0.00,INDIVIDUALS 
 08-08-2023,People - Ageing Well,Langley House,Residential Placements - Private Contractors Payment,3400.00,0.00,COMMERCIAL SUPPLIER 
 08-08-2023,People - Ageing Well,Langley House,Residential Placements - Private Contractors Payment,3400.00,0.00,COMMERCIAL SUPPLIER 
 08-08-2023,People - Ageing Well,Langley House,Residential Placements - Private Contractors Payment,3400.00,0.00,COMMERCIAL SUPPLIER 
 08-08-2023,People - Ageing Well,Langley House,Residential Placements - Private Contractors Payment,3400.00,0.00,COMMERCIAL SUPPLIER 
 08-08-2023,People - Ageing Well,Langley House,Residential Placements - Private Contractors Payment,2671.43,0.00,COMMERCIAL SUPPLIER 
 08-08-2023,People - Ageing Well,Langley House,Residential Placements - Private Contractors Payment,3400.00,0.00,COMMERCIAL SUPPLIER 
 08-08-2023,People - Ageing Well,Gims Care Solution Ltd_a,Supported Other Accommodation - Private Contractors Payment,18510.29,0.00,NON COMMERCIAL SUPPLIER 
 08-08-2023,People - Ageing Well,Harrich Builders Ltd,Maintenance - Equipment Furniture And Materials,1925.00,0.00,CIS 
 09-08-2023,People - Ageing Well,Mayflower Travel,Client Transport,3360.00,0.00,COMMERCIAL SUPPLIER 
 09-08-2023,People - Ageing Well,Midshires Care Limited t/a Helping Hands Home Care,Home Care - Private Contractors Payment,2318.14,0.00,COMMERCIAL SUPPLIER 
 09-08-2023,People - Ageing Well,Matrix SCM Ltd,Agency Staff,1209.60,0.00,COMMERCIAL SUPPLIER 
 09-08-2023,People - Ageing Well,Matrix SCM Ltd,Agency Staff,1225.69,0.00,COMMERCIAL SUPPLIER 
 09-08-2023,People - Ageing Well,Matrix SCM Ltd,Agency Staff,1209.60,0.00,COMMERCIAL SUPPLIER 
 09-08-2023,People - Ageing Well,Matrix SCM Ltd,Agency Staff,607.20,0.00,COMMERCIAL SUPPLIER 
 09-08-2023,People - Ageing Well,Matrix SCM Ltd,Agency Staff,607.20,0.00,COMMERCIAL SUPPLIER 
 09-08-2023,People - Ageing Well,Matrix SCM Ltd,Agency Staff,1225.69,0.00,COMMERCIAL SUPPLIER 
 09-08-2023,People - Ageing Well,Matrix SCM Ltd,Agency Staff,1293.00,0.00,COMMERCIAL SUPPLIER 
 09-08-2023,People - Ageing Well,Matrix SCM Ltd,Agency Staff,697.91,0.00,COMMERCIAL SUPPLIER 
 09-08-2023,People - Ageing Well,Matrix SCM Ltd,Agency Staff,846.56,0.00,COMMERCIAL SUPPLIER 
 09-08-2023,People - Ageing Well,Matrix SCM Ltd,Agency Staff,1241.28,0.00,COMMERCIAL SUPPLIER 
 09-08-2023,People - Ageing Well,Matrix SCM Ltd,Agency Staff,1241.28,0.00,COMMERCIAL SUPPLIER 
 09-08-2023,People - Ageing Well,Matrix SCM Ltd,Agency Staff,1323.36,0.00,COMMERCIAL SUPPLIER 
 09-08-2023,People - Ageing Well,Matrix SCM Ltd,Agency Staff,1281.60,0.00,COMMERCIAL SUPPLIER 
 09-08-2023,People - Ageing Well,Matrix SCM Ltd,Agency Staff,790.91,0.00,COMMERCIAL SUPPLIER 
 09-08-2023,People - Ageing Well,Matrix SCM Ltd,Agency Staff,1275.49,0.00,COMMERCIAL SUPPLIER 
 09-08-2023,People - Ageing Well,Matrix SCM Ltd,Agency Staff,504.90,0.00,COMMERCIAL SUPPLIER 
 09-08-2023,People - Ageing Well,Matrix SCM Ltd,Agency Staff,1213.57,0.00,COMMERCIAL SUPPLIER 
 09-08-2023,People - Ageing Well,Matrix SCM Ltd,Agency Staff,555.17,0.00,COMMERCIAL SUPPLIER 
 09-08-2023,People - Ageing Well,Matrix SCM Ltd,Agency Staff,602.66,0.00,COMMERCIAL SUPPLIER 
 09-08-2023,People - Ageing Well,Matrix SCM Ltd,Agency Staff,1241.28,0.00,COMMERCIAL SUPPLIER 
 09-08-2023,People - Ageing Well,Matrix SCM Ltd,Agency Staff,516.60,0.00,COMMERCIAL SUPPLIER 
 09-08-2023,People - Ageing Well,Matrix SCM Ltd,Agency Staff,790.91,0.00,COMMERCIAL SUPPLIER 
 09-08-2023,People - Ageing Well,Matrix SCM Ltd,Agency Staff,1283.04,0.00,COMMERCIAL SUPPLIER 
 09-08-2023,People - Ageing Well,Matrix SCM Ltd,Agency Staff,710.27,0.00,COMMERCIAL SUPPLIER 
 09-08-2023,People - Ageing Well,Matrix SCM Ltd,Agency Staff,1241.28,0.00,COMMERCIAL SUPPLIER 
 09-08-2023,People - Ageing Well,Matrix SCM Ltd,Agency Staff,1389.60,0.00,COMMERCIAL SUPPLIER 
 09-08-2023,People - Ageing Well,Matrix SCM Ltd,Agency Staff,1395.71,0.00,COMMERCIAL SUPPLIER 
 09-08-2023,People - Ageing Well,Matrix SCM Ltd,Agency Staff,790.93,0.00,COMMERCIAL SUPPLIER 
 09-08-2023,People - Ageing Well,Matrix SCM Ltd,Agency Staff,1211.76,0.00,COMMERCIAL SUPPLIER 
 09-08-2023,People - Ageing Well,Matrix SCM Ltd,Agency Staff,774.90,0.00,COMMERCIAL SUPPLIER 
 09-08-2023,People - Ageing Well,Matrix SCM Ltd,Agency Staff,1277.28,0.00,COMMERCIAL SUPPLIER 
 09-08-2023,People - Ageing Well,Matrix SCM Ltd,Agency Staff,1288.80,0.00,COMMERCIAL SUPPLIER 
 09-08-2023,People - Ageing Well,Matrix SCM Ltd,Agency Staff,1241.28,0.00,COMMERCIAL SUPPLIER 
 09-08-2023,People - Ageing Well,Matrix SCM Ltd,Agency Staff,1275.49,0.00,COMMERCIAL SUPPLIER 
 09-08-2023,People - Ageing Well,Matrix SCM Ltd,Agency Staff,1253.54,0.00,COMMERCIAL SUPPLIER 
 09-08-2023,People - Ageing Well,Matrix SCM Ltd,Agency Staff,755.16,0.00,COMMERCIAL SUPPLIER 
 09-08-2023,People - Ageing Well,Matrix SCM Ltd,Agency Staff,1436.42,0.00,COMMERCIAL SUPPLIER 
 09-08-2023,People - Ageing Well,Matrix SCM Ltd,Agency Staff,1436.42,0.00,COMMERCIAL SUPPLIER 
 09-08-2023,People - Ageing Well,Matrix SCM Ltd,Agency Staff,974.40,0.00,COMMERCIAL SUPPLIER 
 09-08-2023,People - Ageing Well,Matrix SCM Ltd,Agency Staff,1060.26,0.00,COMMERCIAL SUPPLIER 
 09-08-2023,People - Ageing Well,Matrix SCM Ltd,Agency Staff,1686.60,0.00,COMMERCIAL SUPPLIER 
 09-08-2023,People - Ageing Well,Matrix SCM Ltd,Agency Staff,1209.60,0.00,COMMERCIAL SUPPLIER 
 09-08-2023,People - Ageing Well,Matrix SCM Ltd,Agency Staff,846.13,0.00,COMMERCIAL SUPPLIER 
 09-08-2023,People - Ageing Well,Matrix SCM Ltd,Agency Staff,1394.77,0.00,COMMERCIAL SUPPLIER 
 09-08-2023,People - Ageing Well,Matrix SCM Ltd,Agency Staff,1274.05,0.00,COMMERCIAL SUPPLIER 
 09-08-2023,People - Ageing Well,Matrix SCM Ltd,Agency Staff,834.74,0.00,COMMERCIAL SUPPLIER 
 09-08-2023,People - Ageing Well,Essex Ambulance Service Ltd ,Daycare - Private Contractors Payment,577.50,0.00,COMMERCIAL SUPPLIER 
 09-08-2023,People - Ageing Well,Prepaid Financial Services Ltd,Bank Charges,5804.00,0.00,COMMERCIAL SUPPLIER 
 10-08-2023,People - Ageing Well,Amachyck Care Solution Ltd.,Home Care - Private Contractors Payment,1135.70,0.00,COMMERCIAL SUPPLIER 
 10-08-2023,People - Ageing Well,Cakeybakeydoodaa Ltd,Daycare - Private Contractors Payment,624.00,0.00,COMMERCIAL SUPPLIER 
 10-08-2023,People - Ageing Well,Havering Women's Aid,Payments To Voluntary Sector,21904.17,0.00,NON COMMERCIAL SUPPLIER 
 10-08-2023,People - Ageing Well,Posturite Ltd,Purchase - Equipment Furniture And Materials,956.65,0.00,COMMERCIAL SUPPLIER 
 10-08-2023,People - Ageing Well,Posturite Ltd,Purchase - Equipment Furniture And Materials,556.14,0.00,COMMERCIAL SUPPLIER 
 11-08-2023,People - Ageing Well,Headway East London,Daycare - Private Contractors Payment,840.00,0.00,COMMERCIAL SUPPLIER 
 11-08-2023,People - Ageing Well,Headway East London,Daycare - Private Contractors Payment,944.00,0.00,COMMERCIAL SUPPLIER 
 11-08-2023,People - Ageing Well,Seven Arches Nursing Home,Nursing Homes - Private Contractors Payment,2546.46,0.00,COMMERCIAL SUPPLIER 
 11-08-2023,People - Ageing Well,Havering Association for People with Disabilities (H.A.D.),Payments To Voluntary Sector,3332.35,0.00,NON COMMERCIAL SUPPLIER 
 11-08-2023,People - Ageing Well,Havering Association for People with Disabilities (H.A.D.),Payments To Voluntary Sector,3332.35,0.00,NON COMMERCIAL SUPPLIER 
 13-08-2023,People - Ageing Well,Westminster Homecare Ltd_a,Home Care - Private Contractors Payment,1746.88,0.00,COMMERCIAL SUPPLIER 
 13-08-2023,People - Ageing Well,Westminster Homecare Ltd_a,Home Care - Private Contractors Payment,938.79,0.00,COMMERCIAL SUPPLIER 
 13-08-2023,People - Ageing Well,Westminster Homecare Ltd_a,Home Care - Private Contractors Payment,1446.94,0.00,COMMERCIAL SUPPLIER 
 13-08-2023,People - Ageing Well,Westminster Homecare Ltd_a,Home Care - Private Contractors Payment,1446.94,0.00,COMMERCIAL SUPPLIER 
 13-08-2023,People - Ageing Well,Westminster Homecare Ltd_a,Home Care - Private Contractors Payment,1284.60,0.00,COMMERCIAL SUPPLIER 
 13-08-2023,People - Ageing Well,Westminster Homecare Ltd_a,Home Care - Private Contractors Payment,918.76,0.00,COMMERCIAL SUPPLIER 
 13-08-2023,People - Ageing Well,Westminster Homecare Ltd_a,Home Care - Private Contractors Payment,1327.54,0.00,COMMERCIAL SUPPLIER 
 13-08-2023,People - Ageing Well,Westminster Homecare Ltd_a,Home Care - Private Contractors Payment,1639.12,0.00,COMMERCIAL SUPPLIER 
 13-08-2023,People - Ageing Well,Westminster Homecare Ltd_a,Home Care - Private Contractors Payment,679.98,0.00,COMMERCIAL SUPPLIER 
 13-08-2023,People - Ageing Well,Westminster Homecare Ltd_a,Home Care - Private Contractors Payment,967.18,0.00,COMMERCIAL SUPPLIER 
 13-08-2023,People - Ageing Well,Westminster Homecare Ltd_a,Home Care - Private Contractors Payment,1262.76,0.00,COMMERCIAL SUPPLIER 
 13-08-2023,People - Ageing Well,Westminster Homecare Ltd_a,Home Care - Private Contractors Payment,521.26,0.00,COMMERCIAL SUPPLIER 
 13-08-2023,People - Ageing Well,Westminster Homecare Ltd_a,Home Care - Private Contractors Payment,924.95,0.00,COMMERCIAL SUPPLIER 
 13-08-2023,People - Ageing Well,Westminster Homecare Ltd_a,Home Care - Private Contractors Payment,646.49,0.00,COMMERCIAL SUPPLIER 
 13-08-2023,People - Ageing Well,Westminster Homecare Ltd_a,Home Care - Private Contractors Payment,1741.42,0.00,COMMERCIAL SUPPLIER 
 14-08-2023,People - Ageing Well,Phoenix Care Havering Ltd,Home Care - Private Contractors Payment,1070.19,0.00,COMMERCIAL SUPPLIER 
 14-08-2023,People - Ageing Well,Phoenix Care Havering Ltd,Home Care - Private Contractors Payment,971.91,0.00,COMMERCIAL SUPPLIER 
 14-08-2023,People - Ageing Well,Bluebird Care Havering,Home Care - Private Contractors Payment,2670.50,0.00,COMMERCIAL SUPPLIER 
 14-08-2023,People - Ageing Well,Bluebird Care Havering,Home Care - Private Contractors Payment,2670.50,0.00,COMMERCIAL SUPPLIER 
 14-08-2023,People - Ageing Well,Bluebird Care Havering,Home Care - Private Contractors Payment,831.36,0.00,COMMERCIAL SUPPLIER 
 14-08-2023,People - Ageing Well,Bluebird Care Havering,Home Care - Private Contractors Payment,1357.52,0.00,COMMERCIAL SUPPLIER 
 14-08-2023,People - Ageing Well,Radfield Home Care Havering & Brentwood,Home Care - Private Contractors Payment,1186.00,0.00,COMMERCIAL SUPPLIER 
 14-08-2023,People - Ageing Well,Radfield Home Care Havering & Brentwood,Home Care - Private Contractors Payment,756.08,0.00,COMMERCIAL SUPPLIER 
 14-08-2023,People - Ageing Well,Radfield Home Care Havering & Brentwood,Home Care - Private Contractors Payment,502.33,0.00,COMMERCIAL SUPPLIER 
 14-08-2023,People - Ageing Well,Tapestry_a.,Daycare - Private Contractors Payment,732.00,0.00,COMMERCIAL SUPPLIER 
 14-08-2023,People - Ageing Well,Tapestry_a.,Daycare - Private Contractors Payment,610.00,0.00,COMMERCIAL SUPPLIER 
 14-08-2023,People - Ageing Well,Tapestry_a.,Daycare - Private Contractors Payment,1220.00,0.00,COMMERCIAL SUPPLIER 
 14-08-2023,People - Ageing Well,Tapestry_a.,Daycare - Private Contractors Payment,732.00,0.00,COMMERCIAL SUPPLIER 
 14-08-2023,People - Ageing Well,Tapestry_a.,Daycare - Private Contractors Payment,976.00,0.00,COMMERCIAL SUPPLIER 
 14-08-2023,People - Ageing Well,Tapestry_a.,Daycare - Private Contractors Payment,732.00,0.00,COMMERCIAL SUPPLIER 
 14-08-2023,People - Ageing Well,Tapestry_a.,Daycare - Private Contractors Payment,1220.00,0.00,COMMERCIAL SUPPLIER 
 14-08-2023,People - Ageing Well,Tapestry_a.,Daycare - Private Contractors Payment,732.00,0.00,COMMERCIAL SUPPLIER 
 14-08-2023,People - Ageing Well,Tapestry_a.,Daycare - Private Contractors Payment,854.00,0.00,COMMERCIAL SUPPLIER 
 14-08-2023,People - Ageing Well,Tapestry_a.,Daycare - Private Contractors Payment,732.00,0.00,COMMERCIAL SUPPLIER 
 14-08-2023,People - Ageing Well,Tapestry_a.,Daycare - Private Contractors Payment,854.00,0.00,COMMERCIAL SUPPLIER 
 14-08-2023,People - Ageing Well,Tapestry_a.,Daycare - Private Contractors Payment,732.00,0.00,COMMERCIAL SUPPLIER 
 14-08-2023,People - Ageing Well,Tapestry_a.,Daycare - Private Contractors Payment,732.00,0.00,COMMERCIAL SUPPLIER 
 14-08-2023,People - Ageing Well,Tapestry_a.,Daycare - Private Contractors Payment,671.00,0.00,COMMERCIAL SUPPLIER 
 14-08-2023,People - Ageing Well,Tapestry_a.,Daycare - Private Contractors Payment,732.00,0.00,COMMERCIAL SUPPLIER 
 14-08-2023,People - Ageing Well,Tapestry_a.,Daycare - Private Contractors Payment,732.00,0.00,COMMERCIAL SUPPLIER 
 14-08-2023,People - Ageing Well,Tapestry_a.,Daycare - Private Contractors Payment,976.00,0.00,COMMERCIAL SUPPLIER 
 14-08-2023,People - Ageing Well,Tapestry_a.,Daycare - Private Contractors Payment,1220.00,0.00,COMMERCIAL SUPPLIER 
 14-08-2023,People - Ageing Well,Tapestry_a.,Daycare - Private Contractors Payment,976.00,0.00,COMMERCIAL SUPPLIER 
 14-08-2023,People - Ageing Well,Tapestry_a.,Daycare - Private Contractors Payment,732.00,0.00,COMMERCIAL SUPPLIER 
 14-08-2023,People - Ageing Well,Tapestry_a.,Daycare - Private Contractors Payment,732.00,0.00,COMMERCIAL SUPPLIER 
 14-08-2023,People - Ageing Well,Tapestry_a.,Daycare - Private Contractors Payment,732.00,0.00,COMMERCIAL SUPPLIER 
 14-08-2023,People - Ageing Well,C.A.R.E Ltd,Residential Placements - Private Contractors Payment,6093.71,0.00,COMMERCIAL SUPPLIER 
 14-08-2023,People - Ageing Well,C.A.R.E Ltd,Residential Placements - Private Contractors Payment,12400.00,0.00,COMMERCIAL SUPPLIER 
 14-08-2023,People - Ageing Well,C.A.R.E Ltd,Residential Placements - Private Contractors Payment,800.00,0.00,COMMERCIAL SUPPLIER 
 14-08-2023,People - Ageing Well,C.A.R.E Ltd,Residential Placements - Private Contractors Payment,831.86,0.00,COMMERCIAL SUPPLIER 
 14-08-2023,People - Ageing Well,Personal Information - Redacted,Home Care - Private Contractors Payment,1070.18,0.00,INDIVIDUALS 
 14-08-2023,People - Ageing Well,Personal Information - Redacted,Home Care - Private Contractors Payment,7338.25,0.00,INDIVIDUALS 
 14-08-2023,People - Ageing Well,Personal Information - Redacted,Home Care - Private Contractors Payment,1375.96,0.00,INDIVIDUALS 
 14-08-2023,People - Ageing Well,Personal Information - Redacted,Home Care - Private Contractors Payment,1223.08,0.00,INDIVIDUALS 
 14-08-2023,People - Ageing Well,Personal Information - Redacted,Home Care - Private Contractors Payment,2009.32,0.00,INDIVIDUALS 
 14-08-2023,People - Ageing Well,Personal Information - Redacted,Home Care - Private Contractors Payment,611.53,0.00,INDIVIDUALS 
 14-08-2023,People - Ageing Well,Personal Information - Redacted,Home Care - Private Contractors Payment,611.53,0.00,INDIVIDUALS 
 14-08-2023,People - Ageing Well,Personal Information - Redacted,Home Care - Private Contractors Payment,1223.05,0.00,INDIVIDUALS 
 14-08-2023,People - Ageing Well,Personal Information - Redacted,Home Care - Private Contractors Payment,1528.84,0.00,INDIVIDUALS 
 14-08-2023,People - Ageing Well,Personal Information - Redacted,Home Care - Private Contractors Payment,6102.16,0.00,INDIVIDUALS 
 14-08-2023,People - Ageing Well,Personal Information - Redacted,Home Care - Private Contractors Payment,611.54,0.00,INDIVIDUALS 
 14-08-2023,People - Ageing Well,Personal Information - Redacted,Home Care - Private Contractors Payment,917.31,0.00,INDIVIDUALS 
 14-08-2023,People - Ageing Well,Personal Information - Redacted,Home Care - Private Contractors Payment,611.54,0.00,INDIVIDUALS 
 14-08-2023,People - Ageing Well,Personal Information - Redacted,Home Care - Private Contractors Payment,1223.08,0.00,INDIVIDUALS 
 14-08-2023,People - Ageing Well,Personal Information - Redacted,Home Care - Private Contractors Payment,1987.48,0.00,INDIVIDUALS 
 14-08-2023,People - Ageing Well,Personal Information - Redacted,Home Care - Private Contractors Payment,2162.21,0.00,INDIVIDUALS 
 14-08-2023,People - Ageing Well,Personal Information - Redacted,Home Care - Private Contractors Payment,1223.08,0.00,INDIVIDUALS 
 14-08-2023,People - Ageing Well,Personal Information - Redacted,Home Care - Private Contractors Payment,917.31,0.00,INDIVIDUALS 
 14-08-2023,People - Ageing Well,Personal Information - Redacted,Home Care - Private Contractors Payment,524.17,0.00,INDIVIDUALS 
 14-08-2023,People - Ageing Well,Personal Information - Redacted,Home Care - Private Contractors Payment,1550.69,0.00,INDIVIDUALS 
 14-08-2023,People - Ageing Well,Personal Information - Redacted,Home Care - Private Contractors Payment,5256.92,0.00,INDIVIDUALS 
 14-08-2023,People - Ageing Well,Personal Information - Redacted,Home Care - Private Contractors Payment,1004.68,0.00,INDIVIDUALS 
 14-08-2023,People - Ageing Well,Personal Information - Redacted,Home Care - Private Contractors Payment,1441.47,0.00,INDIVIDUALS 
 14-08-2023,People - Ageing Well,Personal Information - Redacted,Home Care - Private Contractors Payment,698.91,0.00,INDIVIDUALS 
 14-08-2023,People - Ageing Well,Personal Information - Redacted,Home Care - Private Contractors Payment,1397.81,0.00,INDIVIDUALS 
 14-08-2023,People - Ageing Well,Personal Information - Redacted,Home Care - Private Contractors Payment,3170.71,0.00,INDIVIDUALS 
 14-08-2023,People - Ageing Well,Personal Information - Redacted,Home Care - Private Contractors Payment,8190.01,0.00,INDIVIDUALS 
 14-08-2023,People - Ageing Well,Personal Information - Redacted,Home Care - Private Contractors Payment,928.23,0.00,INDIVIDUALS 
 14-08-2023,People - Ageing Well,Personal Information - Redacted,Home Care - Private Contractors Payment,611.54,0.00,INDIVIDUALS 
 14-08-2023,People - Ageing Well,Personal Information - Redacted,Home Care - Private Contractors Payment,834.40,0.00,INDIVIDUALS 
 14-08-2023,People - Ageing Well,Personal Information - Redacted,Home Care - Private Contractors Payment,917.88,0.00,INDIVIDUALS 
 14-08-2023,People - Ageing Well,Personal Information - Redacted,Home Care - Private Contractors Payment,917.31,0.00,INDIVIDUALS 
 14-08-2023,People - Ageing Well,Personal Information - Redacted,Home Care - Private Contractors Payment,917.31,0.00,INDIVIDUALS 
 14-08-2023,People - Ageing Well,Personal Information - Redacted,Home Care - Private Contractors Payment,524.16,0.00,INDIVIDUALS 
 14-08-2023,People - Ageing Well,Outreach Support Services Ltd,Home Care - Private Contractors Payment,611.53,0.00,COMMERCIAL SUPPLIER 
 14-08-2023,People - Ageing Well,Outreach Support Services Ltd,Home Care - Private Contractors Payment,1375.96,0.00,COMMERCIAL SUPPLIER 
 14-08-2023,People - Ageing Well,Outreach Support Services Ltd,Home Care - Private Contractors Payment,1223.08,0.00,COMMERCIAL SUPPLIER 
 14-08-2023,People - Ageing Well,Outreach Support Services Ltd,Home Care - Private Contractors Payment,1223.08,0.00,COMMERCIAL SUPPLIER 
 14-08-2023,People - Ageing Well,Outreach Support Services Ltd,Home Care - Private Contractors Payment,917.31,0.00,COMMERCIAL SUPPLIER 
 14-08-2023,People - Ageing Well,Outreach Support Services Ltd,Home Care - Private Contractors Payment,786.26,0.00,COMMERCIAL SUPPLIER 
 14-08-2023,People - Ageing Well,Outreach Support Services Ltd,Home Care - Private Contractors Payment,1223.08,0.00,COMMERCIAL SUPPLIER 
 14-08-2023,People - Ageing Well,Outreach Support Services Ltd,Home Care - Private Contractors Payment,982.82,0.00,COMMERCIAL SUPPLIER 
 14-08-2023,People - Ageing Well,Outreach Support Services Ltd,Home Care - Private Contractors Payment,1026.50,0.00,COMMERCIAL SUPPLIER 
 14-08-2023,People - Ageing Well,Outreach Support Services Ltd,Home Care - Private Contractors Payment,1223.08,0.00,COMMERCIAL SUPPLIER 
 14-08-2023,People - Ageing Well,Outreach Support Services Ltd,Home Care - Private Contractors Payment,1223.08,0.00,COMMERCIAL SUPPLIER 
 14-08-2023,People - Ageing Well,Outreach Support Services Ltd,Home Care - Private Contractors Payment,1863.99,0.00,COMMERCIAL SUPPLIER 
 14-08-2023,People - Ageing Well,Outreach Support Services Ltd,Home Care - Private Contractors Payment,1863.99,0.00,COMMERCIAL SUPPLIER 
 14-08-2023,People - Ageing Well,Outreach Support Services Ltd,Home Care - Private Contractors Payment,1812.76,0.00,COMMERCIAL SUPPLIER 
 14-08-2023,People - Ageing Well,Outreach Support Services Ltd,Home Care - Private Contractors Payment,1223.08,0.00,COMMERCIAL SUPPLIER 
 14-08-2023,People - Ageing Well,Outreach Support Services Ltd,Home Care - Private Contractors Payment,611.54,0.00,COMMERCIAL SUPPLIER 
 14-08-2023,People - Ageing Well,Outreach Support Services Ltd,Home Care - Private Contractors Payment,2271.40,0.00,COMMERCIAL SUPPLIER 
 14-08-2023,People - Ageing Well,Outreach Support Services Ltd,Home Care - Private Contractors Payment,2271.40,0.00,COMMERCIAL SUPPLIER 
 14-08-2023,People - Ageing Well,Outreach Support Services Ltd,Home Care - Private Contractors Payment,2271.40,0.00,COMMERCIAL SUPPLIER 
 14-08-2023,People - Ageing Well,Outreach Support Services Ltd,Home Care - Private Contractors Payment,2271.40,0.00,COMMERCIAL SUPPLIER 
 14-08-2023,People - Ageing Well,Outreach Support Services Ltd,Home Care - Private Contractors Payment,873.63,0.00,COMMERCIAL SUPPLIER 
 14-08-2023,People - Ageing Well,Outreach Support Services Ltd,Home Care - Private Contractors Payment,1375.96,0.00,COMMERCIAL SUPPLIER 
 14-08-2023,People - Ageing Well,Outreach Support Services Ltd,Home Care - Private Contractors Payment,1375.96,0.00,COMMERCIAL SUPPLIER 
 14-08-2023,People - Ageing Well,Outreach Support Services Ltd,Home Care - Private Contractors Payment,873.63,0.00,COMMERCIAL SUPPLIER 
 14-08-2023,People - Ageing Well,Ace Outreach Ltd,Home Care - Private Contractors Payment,1188.00,0.00,COMMERCIAL SUPPLIER 
 15-08-2023,People - Ageing Well,London Care Plc_a,Home Care - Private Contractors Payment,946.80,0.00,COMMERCIAL SUPPLIER 
 15-08-2023,People - Ageing Well,London Care Plc_a,Home Care - Private Contractors Payment,1433.48,0.00,COMMERCIAL SUPPLIER 
 15-08-2023,People - Ageing Well,London Care Plc_a,Home Care - Private Contractors Payment,1444.40,0.00,COMMERCIAL SUPPLIER 
 15-08-2023,People - Ageing Well,London Care Plc_a,Home Care - Private Contractors Payment,884.91,0.00,COMMERCIAL SUPPLIER 
 15-08-2023,People - Ageing Well,London Care Plc_a,Home Care - Private Contractors Payment,1452.04,0.00,COMMERCIAL SUPPLIER 
 15-08-2023,People - Ageing Well,London Care Plc_a,Home Care - Private Contractors Payment,1584.90,0.00,COMMERCIAL SUPPLIER 
 15-08-2023,People - Ageing Well,London Care Plc_a,Home Care - Private Contractors Payment,1597.64,0.00,COMMERCIAL SUPPLIER 
 15-08-2023,People - Ageing Well,Flex360 Limited,Private Contractors Payment - Other,1750.00,0.00,COMMERCIAL SUPPLIER 
 15-08-2023,People - Ageing Well,Inna Care Ltd,Home Care - Private Contractors Payment,1223.08,0.00,COMMERCIAL SUPPLIER 
 15-08-2023,People - Ageing Well,Inna Care Ltd,Home Care - Private Contractors Payment,1223.08,0.00,COMMERCIAL SUPPLIER 
 15-08-2023,People - Ageing Well,Inna Care Ltd,Home Care - Private Contractors Payment,524.18,0.00,COMMERCIAL SUPPLIER 
 15-08-2023,People - Ageing Well,Inna Care Ltd,Home Care - Private Contractors Payment,917.31,0.00,COMMERCIAL SUPPLIER 
 15-08-2023,People - Ageing Well,Inna Care Ltd,Home Care - Private Contractors Payment,1223.06,0.00,COMMERCIAL SUPPLIER 
 15-08-2023,People - Ageing Well,Inna Care Ltd,Home Care - Private Contractors Payment,611.54,0.00,COMMERCIAL SUPPLIER 
 15-08-2023,People - Ageing Well,Inna Care Ltd,Home Care - Private Contractors Payment,917.31,0.00,COMMERCIAL SUPPLIER 
 15-08-2023,People - Ageing Well,Inna Care Ltd,Home Care - Private Contractors Payment,1223.08,0.00,COMMERCIAL SUPPLIER 
 15-08-2023,People - Ageing Well,Inna Care Ltd,Home Care - Private Contractors Payment,1223.08,0.00,COMMERCIAL SUPPLIER 
 15-08-2023,People - Ageing Well,Inna Care Ltd,Home Care - Private Contractors Payment,2446.12,0.00,COMMERCIAL SUPPLIER 
 15-08-2023,People - Ageing Well,Inna Care Ltd,Home Care - Private Contractors Payment,2446.12,0.00,COMMERCIAL SUPPLIER 
 15-08-2023,People - Ageing Well,Inna Care Ltd,Home Care - Private Contractors Payment,1616.21,0.00,COMMERCIAL SUPPLIER 
 15-08-2023,People - Ageing Well,Inna Care Ltd,Home Care - Private Contractors Payment,1616.21,0.00,COMMERCIAL SUPPLIER 
 15-08-2023,People - Ageing Well,Inna Care Ltd,Home Care - Private Contractors Payment,764.42,0.00,COMMERCIAL SUPPLIER 
 15-08-2023,People - Ageing Well,Inna Care Ltd,Home Care - Private Contractors Payment,1179.40,0.00,COMMERCIAL SUPPLIER 
 15-08-2023,People - Ageing Well,Inna Care Ltd,Home Care - Private Contractors Payment,611.54,0.00,COMMERCIAL SUPPLIER 
 15-08-2023,People - Ageing Well,Inna Care Ltd,Home Care - Private Contractors Payment,611.53,0.00,COMMERCIAL SUPPLIER 
 15-08-2023,People - Ageing Well,Inna Care Ltd,Home Care - Private Contractors Payment,611.54,0.00,COMMERCIAL SUPPLIER 
 15-08-2023,People - Ageing Well,Inna Care Ltd,Home Care - Private Contractors Payment,611.54,0.00,COMMERCIAL SUPPLIER 
 15-08-2023,People - Ageing Well,Inna Care Ltd,Home Care - Private Contractors Payment,611.54,0.00,COMMERCIAL SUPPLIER 
 15-08-2023,People - Ageing Well,Inna Care Ltd,Home Care - Private Contractors Payment,917.31,0.00,COMMERCIAL SUPPLIER 
 15-08-2023,People - Ageing Well,Inna Care Ltd,Home Care - Private Contractors Payment,917.31,0.00,COMMERCIAL SUPPLIER 
 15-08-2023,People - Ageing Well,Inna Care Ltd,Home Care - Private Contractors Payment,611.54,0.00,COMMERCIAL SUPPLIER 
 15-08-2023,People - Ageing Well,Inna Care Ltd,Home Care - Private Contractors Payment,1004.68,0.00,COMMERCIAL SUPPLIER 
 15-08-2023,People - Ageing Well,Inna Care Ltd,Home Care - Private Contractors Payment,917.31,0.00,COMMERCIAL SUPPLIER 
 15-08-2023,People - Ageing Well,Inna Care Ltd,Home Care - Private Contractors Payment,917.31,0.00,COMMERCIAL SUPPLIER 
 15-08-2023,People - Ageing Well,London Homecare Ltd,Home Care - Private Contractors Payment,1375.96,0.00,COMMERCIAL SUPPLIER 
 15-08-2023,People - Ageing Well,London Homecare Ltd,Home Care - Private Contractors Payment,1419.64,0.00,COMMERCIAL SUPPLIER 
 15-08-2023,People - Ageing Well,London Homecare Ltd,Home Care - Private Contractors Payment,1419.64,0.00,COMMERCIAL SUPPLIER 
 15-08-2023,People - Ageing Well,London Homecare Ltd,Home Care - Private Contractors Payment,1228.54,0.00,COMMERCIAL SUPPLIER 
 15-08-2023,People - Ageing Well,London Homecare Ltd,Home Care - Private Contractors Payment,1228.54,0.00,COMMERCIAL SUPPLIER 
 15-08-2023,People - Ageing Well,London Homecare Ltd,Home Care - Private Contractors Payment,1375.96,0.00,COMMERCIAL SUPPLIER 
 15-08-2023,People - Ageing Well,London Homecare Ltd,Home Care - Private Contractors Payment,1375.96,0.00,COMMERCIAL SUPPLIER 
 15-08-2023,People - Ageing Well,London Homecare Ltd,Home Care - Private Contractors Payment,764.42,0.00,COMMERCIAL SUPPLIER 
 15-08-2023,People - Ageing Well,London Homecare Ltd,Home Care - Private Contractors Payment,1223.07,0.00,COMMERCIAL SUPPLIER 
 15-08-2023,People - Ageing Well,London Homecare Ltd,Home Care - Private Contractors Payment,1550.69,0.00,COMMERCIAL SUPPLIER 
 15-08-2023,People - Ageing Well,London Homecare Ltd,Home Care - Private Contractors Payment,611.54,0.00,COMMERCIAL SUPPLIER 
 15-08-2023,People - Ageing Well,London Homecare Ltd,Home Care - Private Contractors Payment,655.21,0.00,COMMERCIAL SUPPLIER 
 15-08-2023,People - Ageing Well,London Homecare Ltd,Home Care - Private Contractors Payment,1419.63,0.00,COMMERCIAL SUPPLIER 
 15-08-2023,People - Ageing Well,London Homecare Ltd,Home Care - Private Contractors Payment,764.42,0.00,COMMERCIAL SUPPLIER 
 15-08-2023,People - Ageing Well,London Homecare Ltd,Home Care - Private Contractors Payment,1223.08,0.00,COMMERCIAL SUPPLIER 
 15-08-2023,People - Ageing Well,London Homecare Ltd,Home Care - Private Contractors Payment,1223.08,0.00,COMMERCIAL SUPPLIER 
 15-08-2023,People - Ageing Well,London Homecare Ltd,Home Care - Private Contractors Payment,2533.45,0.00,COMMERCIAL SUPPLIER 
 15-08-2023,People - Ageing Well,London Homecare Ltd,Home Care - Private Contractors Payment,1223.08,0.00,COMMERCIAL SUPPLIER 
 15-08-2023,People - Ageing Well,Premier Carewaiting Ltd,Home Care - Private Contractors Payment,1572.52,0.00,COMMERCIAL SUPPLIER 
 15-08-2023,People - Ageing Well,Premier Carewaiting Ltd,Home Care - Private Contractors Payment,2096.69,0.00,COMMERCIAL SUPPLIER 
 15-08-2023,People - Ageing Well,Premier Carewaiting Ltd,Home Care - Private Contractors Payment,1223.08,0.00,COMMERCIAL SUPPLIER 
 15-08-2023,People - Ageing Well,Premier Carewaiting Ltd,Home Care - Private Contractors Payment,611.54,0.00,COMMERCIAL SUPPLIER 
 15-08-2023,People - Ageing Well,Premier Carewaiting Ltd,Home Care - Private Contractors Payment,1692.64,0.00,COMMERCIAL SUPPLIER 
 15-08-2023,People - Ageing Well,Premier Carewaiting Ltd,Home Care - Private Contractors Payment,1310.44,0.00,COMMERCIAL SUPPLIER 
 15-08-2023,People - Ageing Well,Premier Carewaiting Ltd,Home Care - Private Contractors Payment,764.42,0.00,COMMERCIAL SUPPLIER 
 16-08-2023,People - Ageing Well,Gordon Care Services Limited,Home Care - Private Contractors Payment,3232.36,0.00,NON COMMERCIAL SUPPLIER 
 16-08-2023,People - Ageing Well,Independent People Homecare Services,Home Care - Private Contractors Payment,5169.88,0.00,NON COMMERCIAL SUPPLIER 
 16-08-2023,People - Ageing Well,Eastway Care Ltd_a,Daycare - Private Contractors Payment,4640.00,0.00,COMMERCIAL SUPPLIER 
 16-08-2023,People - Ageing Well,Eastway Care Ltd_a,Daycare - Private Contractors Payment,4640.00,0.00,COMMERCIAL SUPPLIER 
 16-08-2023,People - Ageing Well,Eastway Care Ltd_a,Daycare - Private Contractors Payment,3712.00,0.00,COMMERCIAL SUPPLIER 
 16-08-2023,People - Ageing Well,Eastway Care Ltd_a,Daycare - Private Contractors Payment,4640.00,0.00,COMMERCIAL SUPPLIER 
 16-08-2023,People - Ageing Well,Eastway Care Ltd_a,Daycare - Private Contractors Payment,928.00,0.00,COMMERCIAL SUPPLIER 
 16-08-2023,People - Ageing Well,Eastway Care Ltd_a,Daycare - Private Contractors Payment,2784.00,0.00,COMMERCIAL SUPPLIER 
 16-08-2023,People - Ageing Well,Eastway Care Ltd_a,Daycare - Private Contractors Payment,4640.00,0.00,COMMERCIAL SUPPLIER 
 16-08-2023,People - Ageing Well,Eastway Care Ltd_a,Daycare - Private Contractors Payment,3420.00,0.00,COMMERCIAL SUPPLIER 
 16-08-2023,People - Ageing Well,Eastway Care Ltd_a,Daycare - Private Contractors Payment,2784.00,0.00,COMMERCIAL SUPPLIER 
 16-08-2023,People - Ageing Well,Eastway Care Ltd_a,Daycare - Private Contractors Payment,928.00,0.00,COMMERCIAL SUPPLIER 
 16-08-2023,People - Ageing Well,Eastway Care Ltd_a,Daycare - Private Contractors Payment,2784.00,0.00,COMMERCIAL SUPPLIER 
 16-08-2023,People - Ageing Well,Eastway Care Ltd_a,Daycare - Private Contractors Payment,3712.00,0.00,COMMERCIAL SUPPLIER 
 16-08-2023,People - Ageing Well,Eastway Care Ltd_a,Daycare - Private Contractors Payment,4640.00,0.00,COMMERCIAL SUPPLIER 
 16-08-2023,People - Ageing Well,Eastway Care Ltd_a,Daycare - Private Contractors Payment,1488.00,0.00,COMMERCIAL SUPPLIER 
 16-08-2023,People - Ageing Well,Eastway Care Ltd_a,Daycare - Private Contractors Payment,4640.00,0.00,COMMERCIAL SUPPLIER 
 16-08-2023,People - Ageing Well,Care-Away Ltd T/A Care Support,Home Care - Private Contractors Payment,513.52,0.00,COMMERCIAL SUPPLIER 
 16-08-2023,People - Ageing Well,Care-Away Ltd T/A Care Support,Home Care - Private Contractors Payment,1027.04,0.00,COMMERCIAL SUPPLIER 
 16-08-2023,People - Ageing Well,Care-Away Ltd T/A Care Support,Home Care - Private Contractors Payment,513.52,0.00,COMMERCIAL SUPPLIER 
 16-08-2023,People - Ageing Well,Care-Away Ltd T/A Care Support,Home Care - Private Contractors Payment,1027.04,0.00,COMMERCIAL SUPPLIER 
 16-08-2023,People - Ageing Well,Care-Away Ltd T/A Care Support,Home Care - Private Contractors Payment,1668.94,0.00,COMMERCIAL SUPPLIER 
 16-08-2023,People - Ageing Well,Care-Away Ltd T/A Care Support,Home Care - Private Contractors Payment,1155.42,0.00,COMMERCIAL SUPPLIER 
 16-08-2023,People - Ageing Well,Care-Away Ltd T/A Care Support,Home Care - Private Contractors Payment,935.34,0.00,COMMERCIAL SUPPLIER 
 16-08-2023,People - Ageing Well,Care-Away Ltd T/A Care Support,Home Care - Private Contractors Payment,513.52,0.00,COMMERCIAL SUPPLIER 
 16-08-2023,People - Ageing Well,Care-Away Ltd T/A Care Support,Home Care - Private Contractors Payment,513.52,0.00,COMMERCIAL SUPPLIER 
 16-08-2023,People - Ageing Well,Care-Away Ltd T/A Care Support,Home Care - Private Contractors Payment,2310.84,0.00,COMMERCIAL SUPPLIER 
 16-08-2023,People - Ageing Well,Care-Away Ltd T/A Care Support,Home Care - Private Contractors Payment,917.00,0.00,COMMERCIAL SUPPLIER 
 16-08-2023,People - Ageing Well,Care-Away Ltd T/A Care Support,Home Care - Private Contractors Payment,513.52,0.00,COMMERCIAL SUPPLIER 
 16-08-2023,People - Ageing Well,Care-Away Ltd T/A Care Support,Home Care - Private Contractors Payment,623.56,0.00,COMMERCIAL SUPPLIER 
 16-08-2023,People - Ageing Well,Care-Away Ltd T/A Care Support,Home Care - Private Contractors Payment,1027.04,0.00,COMMERCIAL SUPPLIER 
 16-08-2023,People - Ageing Well,Matrix SCM Ltd,Agency Staff,1209.60,0.00,COMMERCIAL SUPPLIER 
 16-08-2023,People - Ageing Well,Matrix SCM Ltd,Agency Staff,1369.89,0.00,COMMERCIAL SUPPLIER 
 16-08-2023,People - Ageing Well,Matrix SCM Ltd,Agency Staff,1288.45,0.00,COMMERCIAL SUPPLIER 
 16-08-2023,People - Ageing Well,Matrix SCM Ltd,Agency Staff,1385.28,0.00,COMMERCIAL SUPPLIER 
 16-08-2023,People - Ageing Well,Matrix SCM Ltd,Agency Staff,1241.28,0.00,COMMERCIAL SUPPLIER 
 16-08-2023,People - Ageing Well,Matrix SCM Ltd,Agency Staff,1323.36,0.00,COMMERCIAL SUPPLIER 
 16-08-2023,People - Ageing Well,Matrix SCM Ltd,Agency Staff,1241.28,0.00,COMMERCIAL SUPPLIER 
 16-08-2023,People - Ageing Well,Matrix SCM Ltd,Agency Staff,695.17,0.00,COMMERCIAL SUPPLIER 
 16-08-2023,People - Ageing Well,Matrix SCM Ltd,Agency Staff,999.92,0.00,COMMERCIAL SUPPLIER 
 16-08-2023,People - Ageing Well,Matrix SCM Ltd,Agency Staff,619.55,0.00,COMMERCIAL SUPPLIER 
 16-08-2023,People - Ageing Well,Matrix SCM Ltd,Agency Staff,602.66,0.00,COMMERCIAL SUPPLIER 
 16-08-2023,People - Ageing Well,Matrix SCM Ltd,Agency Staff,619.55,0.00,COMMERCIAL SUPPLIER 
 16-08-2023,People - Ageing Well,Matrix SCM Ltd,Agency Staff,710.27,0.00,COMMERCIAL SUPPLIER 
 16-08-2023,People - Ageing Well,Matrix SCM Ltd,Agency Staff,1389.60,0.00,COMMERCIAL SUPPLIER 
 16-08-2023,People - Ageing Well,Matrix SCM Ltd,Agency Staff,516.78,0.00,COMMERCIAL SUPPLIER 
 16-08-2023,People - Ageing Well,Matrix SCM Ltd,Agency Staff,790.91,0.00,COMMERCIAL SUPPLIER 
 16-08-2023,People - Ageing Well,Matrix SCM Ltd,Agency Staff,1277.28,0.00,COMMERCIAL SUPPLIER 
 16-08-2023,People - Ageing Well,Matrix SCM Ltd,Agency Staff,774.90,0.00,COMMERCIAL SUPPLIER 
 16-08-2023,People - Ageing Well,Matrix SCM Ltd,Agency Staff,1241.28,0.00,COMMERCIAL SUPPLIER 
 16-08-2023,People - Ageing Well,Matrix SCM Ltd,Agency Staff,1395.71,0.00,COMMERCIAL SUPPLIER 
 16-08-2023,People - Ageing Well,Matrix SCM Ltd,Agency Staff,790.93,0.00,COMMERCIAL SUPPLIER 
 16-08-2023,People - Ageing Well,Matrix SCM Ltd,Agency Staff,1288.80,0.00,COMMERCIAL SUPPLIER 
 16-08-2023,People - Ageing Well,Matrix SCM Ltd,Agency Staff,1275.49,0.00,COMMERCIAL SUPPLIER 
 16-08-2023,People - Ageing Well,Matrix SCM Ltd,Agency Staff,1241.28,0.00,COMMERCIAL SUPPLIER 
 16-08-2023,People - Ageing Well,Matrix SCM Ltd,Agency Staff,1275.49,0.00,COMMERCIAL SUPPLIER 
 16-08-2023,People - Ageing Well,Matrix SCM Ltd,Agency Staff,790.91,0.00,COMMERCIAL SUPPLIER 
 16-08-2023,People - Ageing Well,Matrix SCM Ltd,Agency Staff,1253.54,0.00,COMMERCIAL SUPPLIER 
 16-08-2023,People - Ageing Well,Matrix SCM Ltd,Agency Staff,504.90,0.00,COMMERCIAL SUPPLIER 
 16-08-2023,People - Ageing Well,Matrix SCM Ltd,Agency Staff,1066.00,0.00,COMMERCIAL SUPPLIER 
 16-08-2023,People - Ageing Well,Matrix SCM Ltd,Agency Staff,1273.31,0.00,COMMERCIAL SUPPLIER 
 16-08-2023,People - Ageing Well,Matrix SCM Ltd,Agency Staff,1273.31,0.00,COMMERCIAL SUPPLIER 
 16-08-2023,People - Ageing Well,Matrix SCM Ltd,Agency Staff,1274.05,0.00,COMMERCIAL SUPPLIER 
 16-08-2023,People - Ageing Well,Matrix SCM Ltd,Agency Staff,1213.57,0.00,COMMERCIAL SUPPLIER 
 16-08-2023,People - Ageing Well,Matrix SCM Ltd,Agency Staff,1669.48,0.00,COMMERCIAL SUPPLIER 
 16-08-2023,People - Ageing Well,Matrix SCM Ltd,Agency Staff,1209.60,0.00,COMMERCIAL SUPPLIER 
 16-08-2023,People - Ageing Well,Matrix SCM Ltd,Agency Staff,1686.60,0.00,COMMERCIAL SUPPLIER 
 16-08-2023,People - Ageing Well,Matrix SCM Ltd,Agency Staff,810.28,0.00,COMMERCIAL SUPPLIER 
 16-08-2023,People - Ageing Well,Matrix SCM Ltd,Agency Staff,1436.42,0.00,COMMERCIAL SUPPLIER 
 16-08-2023,People - Ageing Well,Matrix SCM Ltd,Agency Staff,1209.60,0.00,COMMERCIAL SUPPLIER 
 17-08-2023,People - Ageing Well,Prestige Care & Support Ltd,Home Care - Private Contractors Payment,673.79,0.00,COMMERCIAL SUPPLIER 
 17-08-2023,People - Ageing Well,Prestige Care & Support Ltd,Home Care - Private Contractors Payment,611.54,0.00,COMMERCIAL SUPPLIER 
 17-08-2023,People - Ageing Well,Prestige Care & Support Ltd,Home Care - Private Contractors Payment,2688.59,0.00,COMMERCIAL SUPPLIER 
 17-08-2023,People - Ageing Well,Prestige Care & Support Ltd,Home Care - Private Contractors Payment,2488.76,0.00,COMMERCIAL SUPPLIER 
 17-08-2023,People - Ageing Well,Prestige Care & Support Ltd,Home Care - Private Contractors Payment,1225.27,0.00,COMMERCIAL SUPPLIER 
 17-08-2023,People - Ageing Well,Prestige Care & Support Ltd,Home Care - Private Contractors Payment,2356.62,0.00,COMMERCIAL SUPPLIER 
 17-08-2023,People - Ageing Well,Prestige Care & Support Ltd,Home Care - Private Contractors Payment,1266.77,0.00,COMMERCIAL SUPPLIER 
 17-08-2023,People - Ageing Well,Prestige Care & Support Ltd,Home Care - Private Contractors Payment,1058.55,0.00,COMMERCIAL SUPPLIER 
 17-08-2023,People - Ageing Well,Prestige Care & Support Ltd,Home Care - Private Contractors Payment,2180.80,0.00,COMMERCIAL SUPPLIER 
 17-08-2023,People - Ageing Well,Prestige Care & Support Ltd,Home Care - Private Contractors Payment,1733.07,0.00,COMMERCIAL SUPPLIER 
 17-08-2023,People - Ageing Well,Prestige Care & Support Ltd,Home Care - Private Contractors Payment,502.34,0.00,COMMERCIAL SUPPLIER 
 17-08-2023,People - Ageing Well,Prestige Care & Support Ltd,Home Care - Private Contractors Payment,2446.90,0.00,COMMERCIAL SUPPLIER 
 17-08-2023,People - Ageing Well,Prestige Care & Support Ltd,Home Care - Private Contractors Payment,2458.18,0.00,COMMERCIAL SUPPLIER 
 17-08-2023,People - Ageing Well,Prestige Care & Support Ltd,Home Care - Private Contractors Payment,745.50,0.00,COMMERCIAL SUPPLIER 
 17-08-2023,People - Ageing Well,Prestige Care & Support Ltd,Home Care - Private Contractors Payment,1235.46,0.00,COMMERCIAL SUPPLIER 
 17-08-2023,People - Ageing Well,Prestige Care & Support Ltd,Home Care - Private Contractors Payment,2424.33,0.00,COMMERCIAL SUPPLIER 
 17-08-2023,People - Ageing Well,Prestige Care & Support Ltd,Home Care - Private Contractors Payment,611.54,0.00,COMMERCIAL SUPPLIER 
 17-08-2023,People - Ageing Well,Prestige Care & Support Ltd,Home Care - Private Contractors Payment,938.06,0.00,COMMERCIAL SUPPLIER 
 17-08-2023,People - Ageing Well,Prestige Care & Support Ltd,Home Care - Private Contractors Payment,2435.25,0.00,COMMERCIAL SUPPLIER 
 17-08-2023,People - Ageing Well,Prestige Care & Support Ltd,Home Care - Private Contractors Payment,1240.92,0.00,COMMERCIAL SUPPLIER 
 17-08-2023,People - Ageing Well,Prestige Care & Support Ltd,Home Care - Private Contractors Payment,918.04,0.00,COMMERCIAL SUPPLIER 
 17-08-2023,People - Ageing Well,Prestige Care & Support Ltd,Home Care - Private Contractors Payment,526.73,0.00,COMMERCIAL SUPPLIER 
 17-08-2023,People - Ageing Well,Prestige Care & Support Ltd,Home Care - Private Contractors Payment,2501.13,0.00,COMMERCIAL SUPPLIER 
 17-08-2023,People - Ageing Well,Prestige Care & Support Ltd,Home Care - Private Contractors Payment,1223.08,0.00,COMMERCIAL SUPPLIER 
 17-08-2023,People - Ageing Well,Prestige Care & Support Ltd,Home Care - Private Contractors Payment,1159.38,0.00,COMMERCIAL SUPPLIER 
 17-08-2023,People - Ageing Well,Prestige Care & Support Ltd,Home Care - Private Contractors Payment,873.63,0.00,COMMERCIAL SUPPLIER 
 17-08-2023,People - Ageing Well,Prestige Care & Support Ltd,Home Care - Private Contractors Payment,917.31,0.00,COMMERCIAL SUPPLIER 
 17-08-2023,People - Ageing Well,Prestige Care & Support Ltd,Home Care - Private Contractors Payment,919.86,0.00,COMMERCIAL SUPPLIER 
 17-08-2023,People - Ageing Well,Prestige Care & Support Ltd,Home Care - Private Contractors Payment,2446.17,0.00,COMMERCIAL SUPPLIER 
 17-08-2023,People - Ageing Well,Prestige Care & Support Ltd,Home Care - Private Contractors Payment,917.31,0.00,COMMERCIAL SUPPLIER 
 17-08-2023,People - Ageing Well,Prestige Care & Support Ltd,Home Care - Private Contractors Payment,2441.80,0.00,COMMERCIAL SUPPLIER 
 17-08-2023,People - Ageing Well,Prestige Care & Support Ltd,Home Care - Private Contractors Payment,615.91,0.00,COMMERCIAL SUPPLIER 
 17-08-2023,People - Ageing Well,Prestige Care & Support Ltd,Home Care - Private Contractors Payment,1212.16,0.00,COMMERCIAL SUPPLIER 
 17-08-2023,People - Ageing Well,Prestige Care & Support Ltd,Home Care - Private Contractors Payment,2249.60,0.00,COMMERCIAL SUPPLIER 
 17-08-2023,People - Ageing Well,Prestige Care & Support Ltd,Home Care - Private Contractors Payment,611.54,0.00,COMMERCIAL SUPPLIER 
 17-08-2023,People - Ageing Well,Prestige Care & Support Ltd,Home Care - Private Contractors Payment,625.74,0.00,COMMERCIAL SUPPLIER 
 17-08-2023,People - Ageing Well,Prestige Care & Support Ltd,Home Care - Private Contractors Payment,1225.63,0.00,COMMERCIAL SUPPLIER 
 17-08-2023,People - Ageing Well,Prestige Care & Support Ltd,Home Care - Private Contractors Payment,618.82,0.00,COMMERCIAL SUPPLIER 
 17-08-2023,People - Ageing Well,Prestige Care & Support Ltd,Home Care - Private Contractors Payment,609.36,0.00,COMMERCIAL SUPPLIER 
 17-08-2023,People - Ageing Well,Prestige Care & Support Ltd,Home Care - Private Contractors Payment,1182.67,0.00,COMMERCIAL SUPPLIER 
 17-08-2023,People - Ageing Well,Prestige Care & Support Ltd,Home Care - Private Contractors Payment,611.54,0.00,COMMERCIAL SUPPLIER 
 17-08-2023,People - Ageing Well,Prestige Care & Support Ltd,Home Care - Private Contractors Payment,939.15,0.00,COMMERCIAL SUPPLIER 
 17-08-2023,People - Ageing Well,Prestige Care & Support Ltd,Home Care - Private Contractors Payment,1361.41,0.00,COMMERCIAL SUPPLIER 
 17-08-2023,People - Ageing Well,Prestige Care & Support Ltd,Home Care - Private Contractors Payment,923.49,0.00,COMMERCIAL SUPPLIER 
 17-08-2023,People - Ageing Well,Prestige Care & Support Ltd,Home Care - Private Contractors Payment,2448.72,0.00,COMMERCIAL SUPPLIER 
 17-08-2023,People - Ageing Well,Prestige Care & Support Ltd,Home Care - Private Contractors Payment,1234.73,0.00,COMMERCIAL SUPPLIER 
 17-08-2023,People - Ageing Well,Prestige Care & Support Ltd,Home Care - Private Contractors Payment,900.93,0.00,COMMERCIAL SUPPLIER 
 17-08-2023,People - Ageing Well,Prestige Care & Support Ltd,Home Care - Private Contractors Payment,2901.17,0.00,COMMERCIAL SUPPLIER 
 17-08-2023,People - Ageing Well,Prestige Care & Support Ltd,Home Care - Private Contractors Payment,1271.50,0.00,COMMERCIAL SUPPLIER 
 17-08-2023,People - Ageing Well,Prestige Care & Support Ltd,Home Care - Private Contractors Payment,2446.17,0.00,COMMERCIAL SUPPLIER 
 17-08-2023,People - Ageing Well,All Therapy Solutions Ltd,Occupational Health,4560.00,0.00,COMMERCIAL SUPPLIER 
 17-08-2023,People - Ageing Well,John Stanleys Care Agency Ltd,Home Care - Private Contractors Payment,4861.40,0.00,COMMERCIAL SUPPLIER 
 17-08-2023,People - Ageing Well,John Stanleys Care Agency Ltd,Home Care - Private Contractors Payment,5406.40,0.00,COMMERCIAL SUPPLIER 
 17-08-2023,People - Ageing Well,John Stanleys Care Agency Ltd,Home Care - Private Contractors Payment,6518.20,0.00,COMMERCIAL SUPPLIER 
 17-08-2023,People - Ageing Well,John Stanleys Care Agency Ltd,Home Care - Private Contractors Payment,5733.40,0.00,COMMERCIAL SUPPLIER 
 17-08-2023,People - Ageing Well,Passion Tree Care Services Ltd,Home Care - Private Contractors Payment,1223.08,0.00,COMMERCIAL SUPPLIER 
 17-08-2023,People - Ageing Well,Passion Tree Care Services Ltd,Home Care - Private Contractors Payment,611.54,0.00,COMMERCIAL SUPPLIER 
 17-08-2023,People - Ageing Well,Passion Tree Care Services Ltd,Home Care - Private Contractors Payment,611.54,0.00,COMMERCIAL SUPPLIER 
 17-08-2023,People - Ageing Well,Passion Tree Care Services Ltd,Home Care - Private Contractors Payment,917.31,0.00,COMMERCIAL SUPPLIER 
 17-08-2023,People - Ageing Well,Passion Tree Care Services Ltd,Home Care - Private Contractors Payment,611.54,0.00,COMMERCIAL SUPPLIER 
 17-08-2023,People - Ageing Well,Passion Tree Care Services Ltd,Home Care - Private Contractors Payment,611.54,0.00,COMMERCIAL SUPPLIER 
 17-08-2023,People - Ageing Well,Passion Tree Care Services Ltd,Home Care - Private Contractors Payment,1223.08,0.00,COMMERCIAL SUPPLIER 
 17-08-2023,People - Ageing Well,Passion Tree Care Services Ltd,Home Care - Private Contractors Payment,611.54,0.00,COMMERCIAL SUPPLIER 
 17-08-2023,People - Ageing Well,Passion Tree Care Services Ltd,Home Care - Private Contractors Payment,1048.33,0.00,COMMERCIAL SUPPLIER 
 17-08-2023,People - Ageing Well,Passion Tree Care Services Ltd,Home Care - Private Contractors Payment,1310.45,0.00,COMMERCIAL SUPPLIER 
 17-08-2023,People - Ageing Well,Passion Tree Care Services Ltd,Home Care - Private Contractors Payment,1070.19,0.00,COMMERCIAL SUPPLIER 
 17-08-2023,People - Ageing Well,Rosemont Care Limited,Home Care - Private Contractors Payment,1223.08,0.00,COMMERCIAL SUPPLIER 
 17-08-2023,People - Ageing Well,Rosemont Care Limited,Home Care - Private Contractors Payment,1223.08,0.00,COMMERCIAL SUPPLIER 
 17-08-2023,People - Ageing Well,Rosemont Care Limited,Home Care - Private Contractors Payment,1157.56,0.00,COMMERCIAL SUPPLIER 
 17-08-2023,People - Ageing Well,Rosemont Care Limited,Home Care - Private Contractors Payment,851.79,0.00,COMMERCIAL SUPPLIER 
 17-08-2023,People - Ageing Well,Rosemont Care Limited,Home Care - Private Contractors Payment,851.79,0.00,COMMERCIAL SUPPLIER 
 17-08-2023,People - Ageing Well,Rosemont Care Limited,Home Care - Private Contractors Payment,1223.08,0.00,COMMERCIAL SUPPLIER 
 17-08-2023,People - Ageing Well,Rosemont Care Limited,Home Care - Private Contractors Payment,1223.08,0.00,COMMERCIAL SUPPLIER 
 17-08-2023,People - Ageing Well,Rosemont Care Limited,Home Care - Private Contractors Payment,1223.08,0.00,COMMERCIAL SUPPLIER 
 17-08-2023,People - Ageing Well,Rosemont Care Limited,Home Care - Private Contractors Payment,1223.08,0.00,COMMERCIAL SUPPLIER 
 17-08-2023,People - Ageing Well,Havering Mind,Payments To Voluntary Sector,3147.56,0.00,NON COMMERCIAL SUPPLIER 
 17-08-2023,People - Ageing Well,Havering Mind,Payments To Voluntary Sector,3147.56,0.00,NON COMMERCIAL SUPPLIER 
 18-08-2023,People - Ageing Well,Headway East London,Daycare - Private Contractors Payment,944.00,0.00,COMMERCIAL SUPPLIER 
 18-08-2023,People - Ageing Well,Headway East London,Daycare - Private Contractors Payment,840.00,0.00,COMMERCIAL SUPPLIER 
 18-08-2023,People - Ageing Well,Carers Trust East Midlands,Home Care - Private Contractors Payment,1048.32,0.00,COMMERCIAL SUPPLIER 
 18-08-2023,People - Ageing Well,Carers Trust East Midlands,Home Care - Private Contractors Payment,851.77,0.00,COMMERCIAL SUPPLIER 
 18-08-2023,People - Ageing Well,Carers Trust East Midlands,Home Care - Private Contractors Payment,1310.41,0.00,COMMERCIAL SUPPLIER 
 18-08-2023,People - Ageing Well,The Lambourne End Centre ,Daycare - Private Contractors Payment,880.00,0.00,COMMERCIAL SUPPLIER 
 18-08-2023,People - Ageing Well,Havering Care Homes Ltd t/a Upminster Nursing Home,Nursing Homes - Private Contractors Payment,1935.21,0.00,COMMERCIAL SUPPLIER 
 18-08-2023,People - Ageing Well,Havering Care Homes Ltd t/a Upminster Nursing Home,Nursing Homes - Private Contractors Payment,3010.32,0.00,COMMERCIAL SUPPLIER 
 18-08-2023,People - Ageing Well,Havering Care Homes Ltd t/a Upminster Nursing Home,Nursing Homes - Private Contractors Payment,3010.32,0.00,COMMERCIAL SUPPLIER 
 18-08-2023,People - Ageing Well,Havering Care Homes Ltd t/a Upminster Nursing Home,Nursing Homes - Private Contractors Payment,3010.32,0.00,COMMERCIAL SUPPLIER 
 18-08-2023,People - Ageing Well,Havering Care Homes Ltd t/a Upminster Nursing Home,Nursing Homes - Private Contractors Payment,3010.32,0.00,COMMERCIAL SUPPLIER 
 18-08-2023,People - Ageing Well,Havering Care Homes Ltd t/a Upminster Nursing Home,Nursing Homes - Private Contractors Payment,3010.32,0.00,COMMERCIAL SUPPLIER 
 18-08-2023,People - Ageing Well,Havering Care Homes Ltd t/a Upminster Nursing Home,Nursing Homes - Private Contractors Payment,3010.32,0.00,COMMERCIAL SUPPLIER 
 18-08-2023,People - Ageing Well,Havering Care Homes Ltd t/a Upminster Nursing Home,Nursing Homes - Private Contractors Payment,3117.83,0.00,COMMERCIAL SUPPLIER 
 18-08-2023,People - Ageing Well,Havering Care Homes Ltd t/a Upminster Nursing Home,Nursing Homes - Private Contractors Payment,3010.32,0.00,COMMERCIAL SUPPLIER 
 18-08-2023,People - Ageing Well,Havering Care Homes Ltd t/a Upminster Nursing Home,Nursing Homes - Private Contractors Payment,3010.32,0.00,COMMERCIAL SUPPLIER 
 18-08-2023,People - Ageing Well,Havering Care Homes Ltd t/a Upminster Nursing Home,Nursing Homes - Private Contractors Payment,3010.32,0.00,COMMERCIAL SUPPLIER 
 18-08-2023,People - Ageing Well,Havering Care Homes Ltd t/a Upminster Nursing Home,Nursing Homes - Private Contractors Payment,3010.32,0.00,COMMERCIAL SUPPLIER 
 18-08-2023,People - Ageing Well,Havering Care Homes Ltd t/a Upminster Nursing Home,Nursing Homes - Private Contractors Payment,2472.76,0.00,COMMERCIAL SUPPLIER 
 18-08-2023,People - Ageing Well,Home Support Services (Havering & Essex) Ltd,Home Care - Private Contractors Payment,2348.61,0.00,COMMERCIAL SUPPLIER 
 18-08-2023,People - Ageing Well,Home Support Services (Havering & Essex) Ltd,Home Care - Private Contractors Payment,982.84,0.00,COMMERCIAL SUPPLIER 
 18-08-2023,People - Ageing Well,Home Support Services (Havering & Essex) Ltd,Home Care - Private Contractors Payment,611.54,0.00,COMMERCIAL SUPPLIER 
 18-08-2023,People - Ageing Well,Home Support Services (Havering & Essex) Ltd,Home Care - Private Contractors Payment,1834.63,0.00,COMMERCIAL SUPPLIER 
 18-08-2023,People - Ageing Well,Home Support Services (Havering & Essex) Ltd,Home Care - Private Contractors Payment,2466.19,0.00,COMMERCIAL SUPPLIER 
 18-08-2023,People - Ageing Well,Home Support Services (Havering & Essex) Ltd,Home Care - Private Contractors Payment,956.26,0.00,COMMERCIAL SUPPLIER 
 18-08-2023,People - Ageing Well,Home Support Services (Havering & Essex) Ltd,Home Care - Private Contractors Payment,1271.13,0.00,COMMERCIAL SUPPLIER 
 18-08-2023,People - Ageing Well,Home Support Services (Havering & Essex) Ltd,Home Care - Private Contractors Payment,946.07,0.00,COMMERCIAL SUPPLIER 
 18-08-2023,People - Ageing Well,Home Support Services (Havering & Essex) Ltd,Home Care - Private Contractors Payment,2468.01,0.00,COMMERCIAL SUPPLIER 
 18-08-2023,People - Ageing Well,Home Support Services (Havering & Essex) Ltd,Home Care - Private Contractors Payment,1108.06,0.00,COMMERCIAL SUPPLIER 
 18-08-2023,People - Ageing Well,Home Support Services (Havering & Essex) Ltd,Home Care - Private Contractors Payment,2896.44,0.00,COMMERCIAL SUPPLIER 
 18-08-2023,People - Ageing Well,Home Support Services (Havering & Essex) Ltd,Home Care - Private Contractors Payment,1223.08,0.00,COMMERCIAL SUPPLIER 
 18-08-2023,People - Ageing Well,Home Support Services (Havering & Essex) Ltd,Home Care - Private Contractors Payment,757.88,0.00,COMMERCIAL SUPPLIER 
 18-08-2023,People - Ageing Well,Home Support Services (Havering & Essex) Ltd,Home Care - Private Contractors Payment,2455.63,0.00,COMMERCIAL SUPPLIER 
 18-08-2023,People - Ageing Well,Home Support Services (Havering & Essex) Ltd,Home Care - Private Contractors Payment,611.54,0.00,COMMERCIAL SUPPLIER 
 18-08-2023,People - Ageing Well,Home Support Services (Havering & Essex) Ltd,Home Care - Private Contractors Payment,2468.74,0.00,COMMERCIAL SUPPLIER 
 18-08-2023,People - Ageing Well,Home Support Services (Havering & Essex) Ltd,Home Care - Private Contractors Payment,2474.93,0.00,COMMERCIAL SUPPLIER 
 18-08-2023,People - Ageing Well,Home Support Services (Havering & Essex) Ltd,Home Care - Private Contractors Payment,617.00,0.00,COMMERCIAL SUPPLIER 
 18-08-2023,People - Ageing Well,Home Support Services (Havering & Essex) Ltd,Home Care - Private Contractors Payment,907.49,0.00,COMMERCIAL SUPPLIER 
 18-08-2023,People - Ageing Well,Home Support Services (Havering & Essex) Ltd,Home Care - Private Contractors Payment,2448.72,0.00,COMMERCIAL SUPPLIER 
 18-08-2023,People - Ageing Well,Home Support Services (Havering & Essex) Ltd,Home Care - Private Contractors Payment,915.86,0.00,COMMERCIAL SUPPLIER 
 18-08-2023,People - Ageing Well,Home Support Services (Havering & Essex) Ltd,Home Care - Private Contractors Payment,2429.42,0.00,COMMERCIAL SUPPLIER 
 18-08-2023,People - Ageing Well,Home Support Services (Havering & Essex) Ltd,Home Care - Private Contractors Payment,2908.45,0.00,COMMERCIAL SUPPLIER 
 18-08-2023,People - Ageing Well,Home Support Services (Havering & Essex) Ltd,Home Care - Private Contractors Payment,2480.75,0.00,COMMERCIAL SUPPLIER 
 18-08-2023,People - Ageing Well,Home Support Services (Havering & Essex) Ltd,Home Care - Private Contractors Payment,1223.08,0.00,COMMERCIAL SUPPLIER 
 18-08-2023,People - Ageing Well,Home Support Services (Havering & Essex) Ltd,Home Care - Private Contractors Payment,711.28,0.00,COMMERCIAL SUPPLIER 
 18-08-2023,People - Ageing Well,Home Support Services (Havering & Essex) Ltd,Home Care - Private Contractors Payment,525.62,0.00,COMMERCIAL SUPPLIER 
 18-08-2023,People - Ageing Well,Home Support Services (Havering & Essex) Ltd,Home Care - Private Contractors Payment,833.59,0.00,COMMERCIAL SUPPLIER 
 18-08-2023,People - Ageing Well,Home Support Services (Havering & Essex) Ltd,Home Care - Private Contractors Payment,1785.46,0.00,COMMERCIAL SUPPLIER 
 18-08-2023,People - Ageing Well,Home Support Services (Havering & Essex) Ltd,Home Care - Private Contractors Payment,613.36,0.00,COMMERCIAL SUPPLIER 
 18-08-2023,People - Ageing Well,Home Support Services (Havering & Essex) Ltd,Home Care - Private Contractors Payment,2216.84,0.00,COMMERCIAL SUPPLIER 
 18-08-2023,People - Ageing Well,Home Support Services (Havering & Essex) Ltd,Home Care - Private Contractors Payment,2468.01,0.00,COMMERCIAL SUPPLIER 
 18-08-2023,People - Ageing Well,Home Support Services (Havering & Essex) Ltd,Home Care - Private Contractors Payment,611.54,0.00,COMMERCIAL SUPPLIER 
 18-08-2023,People - Ageing Well,Home Support Services (Havering & Essex) Ltd,Home Care - Private Contractors Payment,917.31,0.00,COMMERCIAL SUPPLIER 
 18-08-2023,People - Ageing Well,Home Support Services (Havering & Essex) Ltd,Home Care - Private Contractors Payment,2360.21,0.00,COMMERCIAL SUPPLIER 
 18-08-2023,People - Ageing Well,Home Support Services (Havering & Essex) Ltd,Home Care - Private Contractors Payment,1145.91,0.00,COMMERCIAL SUPPLIER 
 18-08-2023,People - Ageing Well,Home Support Services (Havering & Essex) Ltd,Home Care - Private Contractors Payment,1335.92,0.00,COMMERCIAL SUPPLIER 
 18-08-2023,People - Ageing Well,Home Support Services (Havering & Essex) Ltd,Home Care - Private Contractors Payment,1076.02,0.00,COMMERCIAL SUPPLIER 
 18-08-2023,People - Ageing Well,Home Support Services (Havering & Essex) Ltd,Home Care - Private Contractors Payment,1076.02,0.00,COMMERCIAL SUPPLIER 
 18-08-2023,People - Ageing Well,Home Support Services (Havering & Essex) Ltd,Home Care - Private Contractors Payment,513.62,0.00,COMMERCIAL SUPPLIER 
 18-08-2023,People - Ageing Well,Home Support Services (Havering & Essex) Ltd,Home Care - Private Contractors Payment,616.27,0.00,COMMERCIAL SUPPLIER 
 18-08-2023,People - Ageing Well,Home Support Services (Havering & Essex) Ltd,Home Care - Private Contractors Payment,1255.12,0.00,COMMERCIAL SUPPLIER 
 18-08-2023,People - Ageing Well,Home Support Services (Havering & Essex) Ltd,Home Care - Private Contractors Payment,613.73,0.00,COMMERCIAL SUPPLIER 
 18-08-2023,People - Ageing Well,Home Support Services (Havering & Essex) Ltd,Home Care - Private Contractors Payment,1228.18,0.00,COMMERCIAL SUPPLIER 
 18-08-2023,People - Ageing Well,Home Support Services (Havering & Essex) Ltd,Home Care - Private Contractors Payment,918.04,0.00,COMMERCIAL SUPPLIER 
 18-08-2023,People - Ageing Well,Home Support Services (Havering & Essex) Ltd,Home Care - Private Contractors Payment,1672.26,0.00,COMMERCIAL SUPPLIER 
 18-08-2023,People - Ageing Well,Home Support Services (Havering & Essex) Ltd,Home Care - Private Contractors Payment,2250.69,0.00,COMMERCIAL SUPPLIER 
 18-08-2023,People - Ageing Well,Home Support Services (Havering & Essex) Ltd,Home Care - Private Contractors Payment,512.17,0.00,COMMERCIAL SUPPLIER 
 18-08-2023,People - Ageing Well,Home Support Services (Havering & Essex) Ltd,Home Care - Private Contractors Payment,630.83,0.00,COMMERCIAL SUPPLIER 
 18-08-2023,People - Ageing Well,Home Support Services (Havering & Essex) Ltd,Home Care - Private Contractors Payment,1396.72,0.00,COMMERCIAL SUPPLIER 
 18-08-2023,People - Ageing Well,Home Support Services (Havering & Essex) Ltd,Home Care - Private Contractors Payment,1837.54,0.00,COMMERCIAL SUPPLIER 
 18-08-2023,People - Ageing Well,Home Support Services (Havering & Essex) Ltd,Home Care - Private Contractors Payment,2479.29,0.00,COMMERCIAL SUPPLIER 
 18-08-2023,People - Ageing Well,Home Support Services (Havering & Essex) Ltd,Home Care - Private Contractors Payment,814.65,0.00,COMMERCIAL SUPPLIER 
 18-08-2023,People - Ageing Well,Home Support Services (Havering & Essex) Ltd,Home Care - Private Contractors Payment,1862.29,0.00,COMMERCIAL SUPPLIER 
 18-08-2023,People - Ageing Well,Home Support Services (Havering & Essex) Ltd,Home Care - Private Contractors Payment,614.45,0.00,COMMERCIAL SUPPLIER 
 18-08-2023,People - Ageing Well,Home Support Services (Havering & Essex) Ltd,Home Care - Private Contractors Payment,594.80,0.00,COMMERCIAL SUPPLIER 
 18-08-2023,People - Ageing Well,Home Support Services (Havering & Essex) Ltd,Home Care - Private Contractors Payment,799.74,0.00,COMMERCIAL SUPPLIER 
 18-08-2023,People - Ageing Well,Home Support Services (Havering & Essex) Ltd,Home Care - Private Contractors Payment,1862.29,0.00,COMMERCIAL SUPPLIER 
 18-08-2023,People - Ageing Well,Home Support Services (Havering & Essex) Ltd,Home Care - Private Contractors Payment,1076.02,0.00,COMMERCIAL SUPPLIER 
 18-08-2023,People - Ageing Well,Home Support Services (Havering & Essex) Ltd,Home Care - Private Contractors Payment,1007.95,0.00,COMMERCIAL SUPPLIER 
 18-08-2023,People - Ageing Well,Home Support Services (Havering & Essex) Ltd,Home Care - Private Contractors Payment,1341.02,0.00,COMMERCIAL SUPPLIER 
 18-08-2023,People - Ageing Well,Home Support Services (Havering & Essex) Ltd,Home Care - Private Contractors Payment,611.54,0.00,COMMERCIAL SUPPLIER 
 18-08-2023,People - Ageing Well,Home Support Services (Havering & Essex) Ltd,Home Care - Private Contractors Payment,2454.91,0.00,COMMERCIAL SUPPLIER 
 18-08-2023,People - Ageing Well,Home Support Services (Havering & Essex) Ltd,Home Care - Private Contractors Payment,616.64,0.00,COMMERCIAL SUPPLIER 
 18-08-2023,People - Ageing Well,Home Support Services (Havering & Essex) Ltd,Home Care - Private Contractors Payment,2470.56,0.00,COMMERCIAL SUPPLIER 
 18-08-2023,People - Ageing Well,Home Support Services (Havering & Essex) Ltd,Home Care - Private Contractors Payment,1238.74,0.00,COMMERCIAL SUPPLIER 
 18-08-2023,People - Ageing Well,Home Support Services (Havering & Essex) Ltd,Home Care - Private Contractors Payment,1306.80,0.00,COMMERCIAL SUPPLIER 
 18-08-2023,People - Ageing Well,Home Support Services (Havering & Essex) Ltd,Home Care - Private Contractors Payment,611.54,0.00,COMMERCIAL SUPPLIER 
 18-08-2023,People - Ageing Well,Home Support Services (Havering & Essex) Ltd,Home Care - Private Contractors Payment,1515.75,0.00,COMMERCIAL SUPPLIER 
 18-08-2023,People - Ageing Well,Home Support Services (Havering & Essex) Ltd,Home Care - Private Contractors Payment,2453.81,0.00,COMMERCIAL SUPPLIER 
 18-08-2023,People - Ageing Well,Home Support Services (Havering & Essex) Ltd,Home Care - Private Contractors Payment,1494.99,0.00,COMMERCIAL SUPPLIER 
 18-08-2023,People - Ageing Well,Home Support Services (Havering & Essex) Ltd,Home Care - Private Contractors Payment,1069.47,0.00,COMMERCIAL SUPPLIER 
 18-08-2023,People - Ageing Well,Home Support Services (Havering & Essex) Ltd,Home Care - Private Contractors Payment,1334.83,0.00,COMMERCIAL SUPPLIER 
 18-08-2023,People - Ageing Well,Home Support Services (Havering & Essex) Ltd,Home Care - Private Contractors Payment,524.18,0.00,COMMERCIAL SUPPLIER 
 18-08-2023,People - Ageing Well,Home Support Services (Havering & Essex) Ltd,Home Care - Private Contractors Payment,1219.81,0.00,COMMERCIAL SUPPLIER 
 18-08-2023,People - Ageing Well,Home Support Services (Havering & Essex) Ltd,Home Care - Private Contractors Payment,1244.92,0.00,COMMERCIAL SUPPLIER 
 18-08-2023,People - Ageing Well,Home Support Services (Havering & Essex) Ltd,Home Care - Private Contractors Payment,608.63,0.00,COMMERCIAL SUPPLIER 
 18-08-2023,People - Ageing Well,Home Support Services (Havering & Essex) Ltd,Home Care - Private Contractors Payment,1834.63,0.00,COMMERCIAL SUPPLIER 
 18-08-2023,People - Ageing Well,Home Support Services (Havering & Essex) Ltd,Home Care - Private Contractors Payment,917.31,0.00,COMMERCIAL SUPPLIER 
 18-08-2023,People - Ageing Well,Home Support Services (Havering & Essex) Ltd,Home Care - Private Contractors Payment,1238.01,0.00,COMMERCIAL SUPPLIER 
 18-08-2023,People - Ageing Well,Home Support Services (Havering & Essex) Ltd,Home Care - Private Contractors Payment,981.74,0.00,COMMERCIAL SUPPLIER 
 18-08-2023,People - Ageing Well,Home Support Services (Havering & Essex) Ltd,Home Care - Private Contractors Payment,627.56,0.00,COMMERCIAL SUPPLIER 
 18-08-2023,People - Ageing Well,Home Support Services (Havering & Essex) Ltd,Home Care - Private Contractors Payment,1368.32,0.00,COMMERCIAL SUPPLIER 
 18-08-2023,People - Ageing Well,Home Support Services (Havering & Essex) Ltd,Home Care - Private Contractors Payment,1276.96,0.00,COMMERCIAL SUPPLIER 
 18-08-2023,People - Ageing Well,Home Support Services (Havering & Essex) Ltd,Home Care - Private Contractors Payment,2466.19,0.00,COMMERCIAL SUPPLIER 
 18-08-2023,People - Ageing Well,Home Support Services (Havering & Essex) Ltd,Home Care - Private Contractors Payment,594.07,0.00,COMMERCIAL SUPPLIER 
 18-08-2023,People - Ageing Well,Home Support Services (Havering & Essex) Ltd,Home Care - Private Contractors Payment,2533.90,0.00,COMMERCIAL SUPPLIER 
 18-08-2023,People - Ageing Well,Home Support Services (Havering & Essex) Ltd,Home Care - Private Contractors Payment,2499.68,0.00,COMMERCIAL SUPPLIER 
 18-08-2023,People - Ageing Well,Home Support Services (Havering & Essex) Ltd,Home Care - Private Contractors Payment,1534.32,0.00,COMMERCIAL SUPPLIER 
 18-08-2023,People - Ageing Well,Home Support Services (Havering & Essex) Ltd,Home Care - Private Contractors Payment,1040.34,0.00,COMMERCIAL SUPPLIER 
 18-08-2023,People - Ageing Well,Home Support Services (Havering & Essex) Ltd,Home Care - Private Contractors Payment,881.64,0.00,COMMERCIAL SUPPLIER 
 18-08-2023,People - Ageing Well,Home Support Services (Havering & Essex) Ltd,Home Care - Private Contractors Payment,628.65,0.00,COMMERCIAL SUPPLIER 
 18-08-2023,People - Ageing Well,Home Support Services (Havering & Essex) Ltd,Home Care - Private Contractors Payment,919.86,0.00,COMMERCIAL SUPPLIER 
 18-08-2023,People - Ageing Well,Home Support Services (Havering & Essex) Ltd,Home Care - Private Contractors Payment,645.76,0.00,COMMERCIAL SUPPLIER 
 18-08-2023,People - Ageing Well,Home Support Services (Havering & Essex) Ltd,Home Care - Private Contractors Payment,1246.38,0.00,COMMERCIAL SUPPLIER 
 18-08-2023,People - Ageing Well,Home Support Services (Havering & Essex) Ltd,Home Care - Private Contractors Payment,857.61,0.00,COMMERCIAL SUPPLIER 
 18-08-2023,People - Ageing Well,Home Support Services (Havering & Essex) Ltd,Home Care - Private Contractors Payment,1128.80,0.00,COMMERCIAL SUPPLIER 
 18-08-2023,People - Ageing Well,Home Support Services (Havering & Essex) Ltd,Home Care - Private Contractors Payment,709.83,0.00,COMMERCIAL SUPPLIER 
 18-08-2023,People - Ageing Well,Home Support Services (Havering & Essex) Ltd,Home Care - Private Contractors Payment,1002.13,0.00,COMMERCIAL SUPPLIER 
 18-08-2023,People - Ageing Well,Home Support Services (Havering & Essex) Ltd,Home Care - Private Contractors Payment,932.60,0.00,COMMERCIAL SUPPLIER 
 18-08-2023,People - Ageing Well,Home Support Services (Havering & Essex) Ltd,Home Care - Private Contractors Payment,2424.33,0.00,COMMERCIAL SUPPLIER 
 18-08-2023,People - Ageing Well,Home Support Services (Havering & Essex) Ltd,Home Care - Private Contractors Payment,2448.72,0.00,COMMERCIAL SUPPLIER 
 18-08-2023,People - Ageing Well,Home Support Services (Havering & Essex) Ltd,Home Care - Private Contractors Payment,2446.17,0.00,COMMERCIAL SUPPLIER 
 18-08-2023,People - Ageing Well,Home Support Services (Havering & Essex) Ltd,Home Care - Private Contractors Payment,2346.43,0.00,COMMERCIAL SUPPLIER 
 18-08-2023,People - Ageing Well,Home Support Services (Havering & Essex) Ltd,Home Care - Private Contractors Payment,1478.25,0.00,COMMERCIAL SUPPLIER 
 18-08-2023,People - Ageing Well,Home Support Services (Havering & Essex) Ltd,Home Care - Private Contractors Payment,1219.08,0.00,COMMERCIAL SUPPLIER 
 18-08-2023,People - Ageing Well,Home Support Services (Havering & Essex) Ltd,Home Care - Private Contractors Payment,1159.02,0.00,COMMERCIAL SUPPLIER 
 18-08-2023,People - Ageing Well,Home Support Services (Havering & Essex) Ltd,Home Care - Private Contractors Payment,1836.08,0.00,COMMERCIAL SUPPLIER 
 18-08-2023,People - Ageing Well,Home Support Services (Havering & Essex) Ltd,Home Care - Private Contractors Payment,906.76,0.00,COMMERCIAL SUPPLIER 
 18-08-2023,People - Ageing Well,Certified Healthcare Solutions Ltd t/a In Home Care Havering,Home Care - Private Contractors Payment,1528.84,0.00,COMMERCIAL SUPPLIER 
 18-08-2023,People - Ageing Well,Certified Healthcare Solutions Ltd t/a In Home Care Havering,Home Care - Private Contractors Payment,1528.84,0.00,COMMERCIAL SUPPLIER 
 19-08-2023,People - Ageing Well,Pleasant Home Healthcare Ltd,Home Care - Private Contractors Payment,1987.48,0.00,COMMERCIAL SUPPLIER 
 21-08-2023,People - Ageing Well,Hospiva Care & Associates Agency Ltd_a,Home Care - Private Contractors Payment,572.96,0.00,COMMERCIAL SUPPLIER 
 21-08-2023,People - Ageing Well,Hospiva Care & Associates Agency Ltd_a,Home Care - Private Contractors Payment,793.18,0.00,COMMERCIAL SUPPLIER 
 21-08-2023,People - Ageing Well,Hospiva Care & Associates Agency Ltd_a,Home Care - Private Contractors Payment,832.13,0.00,COMMERCIAL SUPPLIER 
 21-08-2023,People - Ageing Well,Hospiva Care & Associates Agency Ltd_a,Home Care - Private Contractors Payment,664.68,0.00,COMMERCIAL SUPPLIER 
 21-08-2023,People - Ageing Well,Hospiva Care & Associates Agency Ltd_a,Home Care - Private Contractors Payment,5185.79,0.00,COMMERCIAL SUPPLIER 
 21-08-2023,People - Ageing Well,Hospiva Care & Associates Agency Ltd_a,Home Care - Private Contractors Payment,1223.04,0.00,COMMERCIAL SUPPLIER 
 21-08-2023,People - Ageing Well,Hospiva Care & Associates Agency Ltd_a,Home Care - Private Contractors Payment,753.49,0.00,COMMERCIAL SUPPLIER 
 21-08-2023,People - Ageing Well,Hospiva Care & Associates Agency Ltd_a,Home Care - Private Contractors Payment,1303.16,0.00,COMMERCIAL SUPPLIER 
 21-08-2023,People - Ageing Well,Hospiva Care & Associates Agency Ltd_a,Home Care - Private Contractors Payment,1303.16,0.00,COMMERCIAL SUPPLIER 
 21-08-2023,People - Ageing Well,Hospiva Care & Associates Agency Ltd_a,Home Care - Private Contractors Payment,1276.23,0.00,COMMERCIAL SUPPLIER 
 21-08-2023,People - Ageing Well,Hospiva Care & Associates Agency Ltd_a,Home Care - Private Contractors Payment,1710.48,0.00,COMMERCIAL SUPPLIER 
 21-08-2023,People - Ageing Well,Hospiva Care & Associates Agency Ltd_a,Home Care - Private Contractors Payment,2462.52,0.00,COMMERCIAL SUPPLIER 
 21-08-2023,People - Ageing Well,Hospiva Care & Associates Agency Ltd_a,Home Care - Private Contractors Payment,629.01,0.00,COMMERCIAL SUPPLIER 
 21-08-2023,People - Ageing Well,Hospiva Care & Associates Agency Ltd_a,Home Care - Private Contractors Payment,684.70,0.00,COMMERCIAL SUPPLIER 
 21-08-2023,People - Ageing Well,Hospiva Care & Associates Agency Ltd_a,Home Care - Private Contractors Payment,617.00,0.00,COMMERCIAL SUPPLIER 
 21-08-2023,People - Ageing Well,Hospiva Care & Associates Agency Ltd_a,Home Care - Private Contractors Payment,917.31,0.00,COMMERCIAL SUPPLIER 
 21-08-2023,People - Ageing Well,Hospiva Care & Associates Agency Ltd_a,Home Care - Private Contractors Payment,917.31,0.00,COMMERCIAL SUPPLIER 
 21-08-2023,People - Ageing Well,Hospiva Care & Associates Agency Ltd_a,Home Care - Private Contractors Payment,1278.41,0.00,COMMERCIAL SUPPLIER 
 21-08-2023,People - Ageing Well,Hospiva Care & Associates Agency Ltd_a,Home Care - Private Contractors Payment,624.28,0.00,COMMERCIAL SUPPLIER 
 21-08-2023,People - Ageing Well,Hospiva Care & Associates Agency Ltd_a,Home Care - Private Contractors Payment,711.64,0.00,COMMERCIAL SUPPLIER 
 21-08-2023,People - Ageing Well,Hospiva Care & Associates Agency Ltd_a,Home Care - Private Contractors Payment,711.64,0.00,COMMERCIAL SUPPLIER 
 21-08-2023,People - Ageing Well,Hospiva Care & Associates Agency Ltd_a,Home Care - Private Contractors Payment,661.41,0.00,COMMERCIAL SUPPLIER 
 21-08-2023,People - Ageing Well,Hospiva Care & Associates Agency Ltd_a,Home Care - Private Contractors Payment,1529.21,0.00,COMMERCIAL SUPPLIER 
 21-08-2023,People - Ageing Well,Hospiva Care & Associates Agency Ltd_a,Home Care - Private Contractors Payment,1529.21,0.00,COMMERCIAL SUPPLIER 
 21-08-2023,People - Ageing Well,Hospiva Care & Associates Agency Ltd_a,Home Care - Private Contractors Payment,611.54,0.00,COMMERCIAL SUPPLIER 
 21-08-2023,People - Ageing Well,Hospiva Care & Associates Agency Ltd_a,Home Care - Private Contractors Payment,611.54,0.00,COMMERCIAL SUPPLIER 
 21-08-2023,People - Ageing Well,Bloomscare Ltd,Home Care - Private Contractors Payment,1703.55,0.00,COMMERCIAL SUPPLIER 
 21-08-2023,People - Ageing Well,Bloomscare Ltd,Home Care - Private Contractors Payment,1703.55,0.00,COMMERCIAL SUPPLIER 
 21-08-2023,People - Ageing Well,Care-Away Ltd T/A Care Support,Home Care - Private Contractors Payment,1283.80,0.00,COMMERCIAL SUPPLIER 
 21-08-2023,People - Ageing Well,Care-Away Ltd T/A Care Support,Home Care - Private Contractors Payment,1027.04,0.00,COMMERCIAL SUPPLIER 
 21-08-2023,People - Ageing Well,Care-Away Ltd T/A Care Support,Home Care - Private Contractors Payment,1173.76,0.00,COMMERCIAL SUPPLIER 
 21-08-2023,People - Ageing Well,Care-Away Ltd T/A Care Support,Home Care - Private Contractors Payment,1027.04,0.00,COMMERCIAL SUPPLIER 
 21-08-2023,People - Ageing Well,Care-Away Ltd T/A Care Support,Home Care - Private Contractors Payment,770.28,0.00,COMMERCIAL SUPPLIER 
 21-08-2023,People - Ageing Well,Care-Away Ltd T/A Care Support,Home Care - Private Contractors Payment,586.88,0.00,COMMERCIAL SUPPLIER 
 21-08-2023,People - Ageing Well,Care-Away Ltd T/A Care Support,Home Care - Private Contractors Payment,2567.60,0.00,COMMERCIAL SUPPLIER 
 21-08-2023,People - Ageing Well,Care-Away Ltd T/A Care Support,Home Care - Private Contractors Payment,3081.12,0.00,COMMERCIAL SUPPLIER 
 21-08-2023,People - Ageing Well,Care-Away Ltd T/A Care Support,Home Care - Private Contractors Payment,1650.60,0.00,COMMERCIAL SUPPLIER 
 21-08-2023,People - Ageing Well,Care-Away Ltd T/A Care Support,Home Care - Private Contractors Payment,1027.04,0.00,COMMERCIAL SUPPLIER 
 21-08-2023,People - Ageing Well,Care-Away Ltd T/A Care Support,Home Care - Private Contractors Payment,1027.04,0.00,COMMERCIAL SUPPLIER 
 21-08-2023,People - Ageing Well,Care-Away Ltd T/A Care Support,Home Care - Private Contractors Payment,770.28,0.00,COMMERCIAL SUPPLIER 
 21-08-2023,People - Ageing Well,Care-Away Ltd T/A Care Support,Home Care - Private Contractors Payment,1540.56,0.00,COMMERCIAL SUPPLIER 
 21-08-2023,People - Ageing Well,Care-Away Ltd T/A Care Support,Home Care - Private Contractors Payment,559.37,0.00,COMMERCIAL SUPPLIER 
 21-08-2023,People - Ageing Well,Care-Away Ltd T/A Care Support,Home Care - Private Contractors Payment,2796.85,0.00,COMMERCIAL SUPPLIER 
 21-08-2023,People - Ageing Well,Care-Away Ltd T/A Care Support,Home Care - Private Contractors Payment,1650.60,0.00,COMMERCIAL SUPPLIER 
 21-08-2023,People - Ageing Well,Care-Away Ltd T/A Care Support,Home Care - Private Contractors Payment,1155.42,0.00,COMMERCIAL SUPPLIER 
 21-08-2023,People - Ageing Well,Care-Away Ltd T/A Care Support,Home Care - Private Contractors Payment,2310.84,0.00,COMMERCIAL SUPPLIER 
 21-08-2023,People - Ageing Well,Care-Away Ltd T/A Care Support,Home Care - Private Contractors Payment,513.52,0.00,COMMERCIAL SUPPLIER 
 21-08-2023,People - Ageing Well,Care-Away Ltd T/A Care Support,Home Care - Private Contractors Payment,2824.36,0.00,COMMERCIAL SUPPLIER 
 21-08-2023,People - Ageing Well,Care-Away Ltd T/A Care Support,Home Care - Private Contractors Payment,513.52,0.00,COMMERCIAL SUPPLIER 
 21-08-2023,People - Ageing Well,Care-Away Ltd T/A Care Support,Home Care - Private Contractors Payment,1118.74,0.00,COMMERCIAL SUPPLIER 
 21-08-2023,People - Ageing Well,Care-Away Ltd T/A Care Support,Home Care - Private Contractors Payment,628.15,0.00,COMMERCIAL SUPPLIER 
 21-08-2023,People - Ageing Well,Care-Away Ltd T/A Care Support,Home Care - Private Contractors Payment,1155.42,0.00,COMMERCIAL SUPPLIER 
 21-08-2023,People - Ageing Well,All Therapy Solutions Ltd,Occupational Health,1500.00,0.00,COMMERCIAL SUPPLIER 
 21-08-2023,People - Ageing Well,Potton Services Ltd,Home Care - Private Contractors Payment,924.55,0.00,COMMERCIAL SUPPLIER 
 21-08-2023,People - Ageing Well,Potton Services Ltd,Home Care - Private Contractors Payment,1218.90,0.00,COMMERCIAL SUPPLIER 
 22-08-2023,People - Ageing Well,Recruitcare Professionals Ltd ,Home Care - Private Contractors Payment,1223.08,0.00,COMMERCIAL SUPPLIER 
 22-08-2023,People - Ageing Well,Lodge Group Care UK Ltd,Home Care - Private Contractors Payment,922.77,0.00,COMMERCIAL SUPPLIER 
 22-08-2023,People - Ageing Well,Lodge Group Care UK Ltd,Home Care - Private Contractors Payment,797.19,0.00,COMMERCIAL SUPPLIER 
 22-08-2023,People - Ageing Well,Lodge Group Care UK Ltd,Home Care - Private Contractors Payment,797.19,0.00,COMMERCIAL SUPPLIER 
 22-08-2023,People - Ageing Well,Lodge Group Care UK Ltd,Home Care - Private Contractors Payment,614.82,0.00,COMMERCIAL SUPPLIER 
 22-08-2023,People - Ageing Well,Lodge Group Care UK Ltd,Home Care - Private Contractors Payment,1680.25,0.00,COMMERCIAL SUPPLIER 
 22-08-2023,People - Ageing Well,Lodge Group Care UK Ltd,Home Care - Private Contractors Payment,925.69,0.00,COMMERCIAL SUPPLIER 
 22-08-2023,People - Ageing Well,Lodge Group Care UK Ltd,Home Care - Private Contractors Payment,883.46,0.00,COMMERCIAL SUPPLIER 
 22-08-2023,People - Ageing Well,Lodge Group Care UK Ltd,Home Care - Private Contractors Payment,883.82,0.00,COMMERCIAL SUPPLIER 
 22-08-2023,People - Ageing Well,Lodge Group Care UK Ltd,Home Care - Private Contractors Payment,1223.45,0.00,COMMERCIAL SUPPLIER 
 22-08-2023,People - Ageing Well,Lodge Group Care UK Ltd,Home Care - Private Contractors Payment,656.68,0.00,COMMERCIAL SUPPLIER 
 22-08-2023,People - Ageing Well,Lodge Group Care UK Ltd,Home Care - Private Contractors Payment,657.04,0.00,COMMERCIAL SUPPLIER 
 22-08-2023,People - Ageing Well,Lodge Group Care UK Ltd,Home Care - Private Contractors Payment,1035.25,0.00,COMMERCIAL SUPPLIER 
 22-08-2023,People - Ageing Well,Lodge Group Care UK Ltd,Home Care - Private Contractors Payment,623.19,0.00,COMMERCIAL SUPPLIER 
 22-08-2023,People - Ageing Well,Lodge Group Care UK Ltd,Home Care - Private Contractors Payment,776.44,0.00,COMMERCIAL SUPPLIER 
 22-08-2023,People - Ageing Well,Lodge Group Care UK Ltd,Home Care - Private Contractors Payment,798.28,0.00,COMMERCIAL SUPPLIER 
 22-08-2023,People - Ageing Well,Lodge Group Care UK Ltd,Home Care - Private Contractors Payment,723.66,0.00,COMMERCIAL SUPPLIER 
 22-08-2023,People - Ageing Well,Lodge Group Care UK Ltd,Home Care - Private Contractors Payment,898.02,0.00,COMMERCIAL SUPPLIER 
 22-08-2023,People - Ageing Well,Lodge Group Care UK Ltd,Home Care - Private Contractors Payment,732.75,0.00,COMMERCIAL SUPPLIER 
 22-08-2023,People - Ageing Well,Lodge Group Care UK Ltd,Home Care - Private Contractors Payment,1226.36,0.00,COMMERCIAL SUPPLIER 
 22-08-2023,People - Ageing Well,Lodge Group Care UK Ltd,Home Care - Private Contractors Payment,1224.90,0.00,COMMERCIAL SUPPLIER 
 22-08-2023,People - Ageing Well,Lodge Group Care UK Ltd,Home Care - Private Contractors Payment,1916.14,0.00,COMMERCIAL SUPPLIER 
 22-08-2023,People - Ageing Well,Lodge Group Care UK Ltd,Home Care - Private Contractors Payment,923.50,0.00,COMMERCIAL SUPPLIER 
 22-08-2023,People - Ageing Well,Lodge Group Care UK Ltd,Home Care - Private Contractors Payment,611.54,0.00,COMMERCIAL SUPPLIER 
 22-08-2023,People - Ageing Well,Lodge Group Care UK Ltd,Home Care - Private Contractors Payment,1232.91,0.00,COMMERCIAL SUPPLIER 
 22-08-2023,People - Ageing Well,Lodge Group Care UK Ltd,Home Care - Private Contractors Payment,902.36,0.00,COMMERCIAL SUPPLIER 
 22-08-2023,People - Ageing Well,Lodge Group Care UK Ltd,Home Care - Private Contractors Payment,1201.24,0.00,COMMERCIAL SUPPLIER 
 22-08-2023,People - Ageing Well,Lodge Group Care UK Ltd,Home Care - Private Contractors Payment,1244.93,0.00,COMMERCIAL SUPPLIER 
 22-08-2023,People - Ageing Well,Lodge Group Care UK Ltd,Home Care - Private Contractors Payment,613.36,0.00,COMMERCIAL SUPPLIER 
 22-08-2023,People - Ageing Well,Lodge Group Care UK Ltd,Home Care - Private Contractors Payment,1226.36,0.00,COMMERCIAL SUPPLIER 
 22-08-2023,People - Ageing Well,Lodge Group Care UK Ltd,Home Care - Private Contractors Payment,1228.54,0.00,COMMERCIAL SUPPLIER 
 22-08-2023,People - Ageing Well,Lodge Group Care UK Ltd,Home Care - Private Contractors Payment,1234.73,0.00,COMMERCIAL SUPPLIER 
 22-08-2023,People - Ageing Well,Lodge Group Care UK Ltd,Home Care - Private Contractors Payment,618.09,0.00,COMMERCIAL SUPPLIER 
 22-08-2023,People - Ageing Well,Lodge Group Care UK Ltd,Home Care - Private Contractors Payment,786.26,0.00,COMMERCIAL SUPPLIER 
 22-08-2023,People - Ageing Well,Lodge Group Care UK Ltd,Home Care - Private Contractors Payment,625.37,0.00,COMMERCIAL SUPPLIER 
 22-08-2023,People - Ageing Well,Lodge Group Care UK Ltd,Home Care - Private Contractors Payment,615.55,0.00,COMMERCIAL SUPPLIER 
 22-08-2023,People - Ageing Well,Lodge Group Care UK Ltd,Home Care - Private Contractors Payment,857.25,0.00,COMMERCIAL SUPPLIER 
 22-08-2023,People - Ageing Well,Lodge Group Care UK Ltd,Home Care - Private Contractors Payment,1236.92,0.00,COMMERCIAL SUPPLIER 
 22-08-2023,People - Ageing Well,Lodge Group Care UK Ltd,Home Care - Private Contractors Payment,1237.64,0.00,COMMERCIAL SUPPLIER 
 22-08-2023,People - Ageing Well,Lodge Group Care UK Ltd,Home Care - Private Contractors Payment,1257.30,0.00,COMMERCIAL SUPPLIER 
 22-08-2023,People - Ageing Well,Lodge Group Care UK Ltd,Home Care - Private Contractors Payment,1260.94,0.00,COMMERCIAL SUPPLIER 
 22-08-2023,People - Ageing Well,Lodge Group Care UK Ltd,Home Care - Private Contractors Payment,1224.18,0.00,COMMERCIAL SUPPLIER 
 22-08-2023,People - Ageing Well,Lodge Group Care UK Ltd,Home Care - Private Contractors Payment,578.78,0.00,COMMERCIAL SUPPLIER 
 22-08-2023,People - Ageing Well,Lodge Group Care UK Ltd,Home Care - Private Contractors Payment,1231.82,0.00,COMMERCIAL SUPPLIER 
 22-08-2023,People - Ageing Well,Lodge Group Care UK Ltd,Home Care - Private Contractors Payment,1224.90,0.00,COMMERCIAL SUPPLIER 
 22-08-2023,People - Ageing Well,Lodge Group Care UK Ltd,Home Care - Private Contractors Payment,613.00,0.00,COMMERCIAL SUPPLIER 
 22-08-2023,People - Ageing Well,Lodge Group Care UK Ltd,Home Care - Private Contractors Payment,1224.90,0.00,COMMERCIAL SUPPLIER 
 22-08-2023,People - Ageing Well,Lodge Group Care UK Ltd,Home Care - Private Contractors Payment,1207.43,0.00,COMMERCIAL SUPPLIER 
 22-08-2023,People - Ageing Well,Lodge Group Care UK Ltd,Home Care - Private Contractors Payment,1228.91,0.00,COMMERCIAL SUPPLIER 
 22-08-2023,People - Ageing Well,Lodge Group Care UK Ltd,Home Care - Private Contractors Payment,917.68,0.00,COMMERCIAL SUPPLIER 
 22-08-2023,People - Ageing Well,Lodge Group Care UK Ltd,Home Care - Private Contractors Payment,917.68,0.00,COMMERCIAL SUPPLIER 
 22-08-2023,People - Ageing Well,Lodge Group Care UK Ltd,Home Care - Private Contractors Payment,1223.45,0.00,COMMERCIAL SUPPLIER 
 22-08-2023,People - Ageing Well,Lodge Group Care UK Ltd,Home Care - Private Contractors Payment,1223.81,0.00,COMMERCIAL SUPPLIER 
 22-08-2023,People - Ageing Well,Lodge Group Care UK Ltd,Home Care - Private Contractors Payment,611.91,0.00,COMMERCIAL SUPPLIER 
 22-08-2023,People - Ageing Well,Lodge Group Care UK Ltd,Home Care - Private Contractors Payment,858.34,0.00,COMMERCIAL SUPPLIER 
 22-08-2023,People - Ageing Well,Lodge Group Care UK Ltd,Home Care - Private Contractors Payment,862.71,0.00,COMMERCIAL SUPPLIER 
 22-08-2023,People - Ageing Well,Lodge Group Care UK Ltd,Home Care - Private Contractors Payment,601.71,0.00,COMMERCIAL SUPPLIER 
 22-08-2023,People - Ageing Well,Lodge Group Care UK Ltd,Home Care - Private Contractors Payment,924.59,0.00,COMMERCIAL SUPPLIER 
 22-08-2023,People - Ageing Well,Lodge Group Care UK Ltd,Home Care - Private Contractors Payment,1288.60,0.00,COMMERCIAL SUPPLIER 
 22-08-2023,People - Ageing Well,Lodge Group Care UK Ltd,Home Care - Private Contractors Payment,1295.52,0.00,COMMERCIAL SUPPLIER 
 22-08-2023,People - Ageing Well,Lodge Group Care UK Ltd,Home Care - Private Contractors Payment,611.91,0.00,COMMERCIAL SUPPLIER 
 22-08-2023,People - Ageing Well,Lodge Group Care UK Ltd,Home Care - Private Contractors Payment,611.54,0.00,COMMERCIAL SUPPLIER 
 22-08-2023,People - Ageing Well,Lodge Group Care UK Ltd,Home Care - Private Contractors Payment,927.87,0.00,COMMERCIAL SUPPLIER 
 22-08-2023,People - Ageing Well,Lodge Group Care UK Ltd,Home Care - Private Contractors Payment,928.23,0.00,COMMERCIAL SUPPLIER 
 22-08-2023,People - Ageing Well,Lodge Group Care UK Ltd,Home Care - Private Contractors Payment,611.54,0.00,COMMERCIAL SUPPLIER 
 22-08-2023,People - Ageing Well,Lodge Group Care UK Ltd,Home Care - Private Contractors Payment,700.00,0.00,COMMERCIAL SUPPLIER 
 22-08-2023,People - Ageing Well,Lodge Group Care UK Ltd,Home Care - Private Contractors Payment,945.34,0.00,COMMERCIAL SUPPLIER 
 22-08-2023,People - Ageing Well,Lodge Group Care UK Ltd,Home Care - Private Contractors Payment,927.87,0.00,COMMERCIAL SUPPLIER 
 22-08-2023,People - Ageing Well,Lodge Group Care UK Ltd,Home Care - Private Contractors Payment,930.05,0.00,COMMERCIAL SUPPLIER 
 22-08-2023,People - Ageing Well,Lodge Group Care UK Ltd,Home Care - Private Contractors Payment,611.54,0.00,COMMERCIAL SUPPLIER 
 22-08-2023,People - Ageing Well,Lodge Group Care UK Ltd,Home Care - Private Contractors Payment,945.34,0.00,COMMERCIAL SUPPLIER 
 22-08-2023,People - Ageing Well,Lodge Group Care UK Ltd,Home Care - Private Contractors Payment,1254.39,0.00,COMMERCIAL SUPPLIER 
 22-08-2023,People - Ageing Well,Lodge Group Care UK Ltd,Home Care - Private Contractors Payment,1372.69,0.00,COMMERCIAL SUPPLIER 
 22-08-2023,People - Ageing Well,Lodge Group Care UK Ltd,Home Care - Private Contractors Payment,1380.33,0.00,COMMERCIAL SUPPLIER 
 22-08-2023,People - Ageing Well,Lodge Group Care UK Ltd,Home Care - Private Contractors Payment,918.04,0.00,COMMERCIAL SUPPLIER 
 22-08-2023,People - Ageing Well,Lodge Group Care UK Ltd,Home Care - Private Contractors Payment,918.04,0.00,COMMERCIAL SUPPLIER 
 22-08-2023,People - Ageing Well,Lodge Group Care UK Ltd,Home Care - Private Contractors Payment,1223.08,0.00,COMMERCIAL SUPPLIER 
 22-08-2023,People - Ageing Well,Lodge Group Care UK Ltd,Home Care - Private Contractors Payment,1223.08,0.00,COMMERCIAL SUPPLIER 
 22-08-2023,People - Ageing Well,Lodge Group Care UK Ltd,Home Care - Private Contractors Payment,1257.30,0.00,COMMERCIAL SUPPLIER 
 22-08-2023,People - Ageing Well,Lodge Group Care UK Ltd,Home Care - Private Contractors Payment,893.29,0.00,COMMERCIAL SUPPLIER 
 22-08-2023,People - Ageing Well,Lodge Group Care UK Ltd,Home Care - Private Contractors Payment,708.37,0.00,COMMERCIAL SUPPLIER 
 22-08-2023,People - Ageing Well,Lodge Group Care UK Ltd,Home Care - Private Contractors Payment,1192.86,0.00,COMMERCIAL SUPPLIER 
 22-08-2023,People - Ageing Well,Lodge Group Care UK Ltd,Home Care - Private Contractors Payment,1223.08,0.00,COMMERCIAL SUPPLIER 
 22-08-2023,People - Ageing Well,Lodge Group Care UK Ltd,Home Care - Private Contractors Payment,1555.06,0.00,COMMERCIAL SUPPLIER 
 22-08-2023,People - Ageing Well,Lodge Group Care UK Ltd,Home Care - Private Contractors Payment,1249.66,0.00,COMMERCIAL SUPPLIER 
 22-08-2023,People - Ageing Well,Lodge Group Care UK Ltd,Home Care - Private Contractors Payment,2244.12,0.00,COMMERCIAL SUPPLIER 
 22-08-2023,People - Ageing Well,Lodge Group Care UK Ltd,Home Care - Private Contractors Payment,963.54,0.00,COMMERCIAL SUPPLIER 
 22-08-2023,People - Ageing Well,Lodge Group Care UK Ltd,Home Care - Private Contractors Payment,920.59,0.00,COMMERCIAL SUPPLIER 
 22-08-2023,People - Ageing Well,Lodge Group Care UK Ltd,Home Care - Private Contractors Payment,920.59,0.00,COMMERCIAL SUPPLIER 
 22-08-2023,People - Ageing Well,Lodge Group Care UK Ltd,Home Care - Private Contractors Payment,841.60,0.00,COMMERCIAL SUPPLIER 
 22-08-2023,People - Ageing Well,Lodge Group Care UK Ltd,Home Care - Private Contractors Payment,1464.42,0.00,COMMERCIAL SUPPLIER 
 22-08-2023,People - Ageing Well,Lodge Group Care UK Ltd,Home Care - Private Contractors Payment,1236.55,0.00,COMMERCIAL SUPPLIER 
 22-08-2023,People - Ageing Well,Lodge Group Care UK Ltd,Home Care - Private Contractors Payment,625.37,0.00,COMMERCIAL SUPPLIER 
 22-08-2023,People - Ageing Well,Lodge Group Care UK Ltd,Home Care - Private Contractors Payment,1227.82,0.00,COMMERCIAL SUPPLIER 
 22-08-2023,People - Ageing Well,Lodge Group Care UK Ltd,Home Care - Private Contractors Payment,2020.25,0.00,COMMERCIAL SUPPLIER 
 22-08-2023,People - Ageing Well,Lodge Group Care UK Ltd,Home Care - Private Contractors Payment,545.29,0.00,COMMERCIAL SUPPLIER 
 22-08-2023,People - Ageing Well,Lodge Group Care UK Ltd,Home Care - Private Contractors Payment,720.75,0.00,COMMERCIAL SUPPLIER 
 22-08-2023,People - Ageing Well,Lodge Group Care UK Ltd,Home Care - Private Contractors Payment,925.32,0.00,COMMERCIAL SUPPLIER 
 22-08-2023,People - Ageing Well,Lodge Group Care UK Ltd,Home Care - Private Contractors Payment,1339.56,0.00,COMMERCIAL SUPPLIER 
 22-08-2023,People - Ageing Well,Lodge Group Care UK Ltd,Home Care - Private Contractors Payment,1350.85,0.00,COMMERCIAL SUPPLIER 
 22-08-2023,People - Ageing Well,Lodge Group Care UK Ltd,Home Care - Private Contractors Payment,604.26,0.00,COMMERCIAL SUPPLIER 
 22-08-2023,People - Ageing Well,Lodge Group Care UK Ltd,Home Care - Private Contractors Payment,604.99,0.00,COMMERCIAL SUPPLIER 
 22-08-2023,People - Ageing Well,Lodge Group Care UK Ltd,Home Care - Private Contractors Payment,611.54,0.00,COMMERCIAL SUPPLIER 
 22-08-2023,People - Ageing Well,Lodge Group Care UK Ltd,Home Care - Private Contractors Payment,570.41,0.00,COMMERCIAL SUPPLIER 
 22-08-2023,People - Ageing Well,Lodge Group Care UK Ltd,Home Care - Private Contractors Payment,677.79,0.00,COMMERCIAL SUPPLIER 
 22-08-2023,People - Ageing Well,Lodge Group Care UK Ltd,Home Care - Private Contractors Payment,678.16,0.00,COMMERCIAL SUPPLIER 
 22-08-2023,People - Ageing Well,Lodge Group Care UK Ltd,Home Care - Private Contractors Payment,808.11,0.00,COMMERCIAL SUPPLIER 
 22-08-2023,People - Ageing Well,Lodge Group Care UK Ltd,Home Care - Private Contractors Payment,808.11,0.00,COMMERCIAL SUPPLIER 
 22-08-2023,People - Ageing Well,Lodge Group Care UK Ltd,Home Care - Private Contractors Payment,611.54,0.00,COMMERCIAL SUPPLIER 
 22-08-2023,People - Ageing Well,Lodge Group Care UK Ltd,Home Care - Private Contractors Payment,611.54,0.00,COMMERCIAL SUPPLIER 
 22-08-2023,People - Ageing Well,Lodge Group Care UK Ltd,Home Care - Private Contractors Payment,611.91,0.00,COMMERCIAL SUPPLIER 
 22-08-2023,People - Ageing Well,Lodge Group Care UK Ltd,Home Care - Private Contractors Payment,528.17,0.00,COMMERCIAL SUPPLIER 
 22-08-2023,People - Ageing Well,Lodge Group Care UK Ltd,Home Care - Private Contractors Payment,1225.63,0.00,COMMERCIAL SUPPLIER 
 22-08-2023,People - Ageing Well,Lodge Group Care UK Ltd,Home Care - Private Contractors Payment,1894.67,0.00,COMMERCIAL SUPPLIER 
 22-08-2023,People - Ageing Well,Lodge Group Care UK Ltd,Home Care - Private Contractors Payment,1229.27,0.00,COMMERCIAL SUPPLIER 
 22-08-2023,People - Ageing Well,Lodge Group Care UK Ltd,Home Care - Private Contractors Payment,1231.46,0.00,COMMERCIAL SUPPLIER 
 22-08-2023,People - Ageing Well,Lodge Group Care UK Ltd,Home Care - Private Contractors Payment,1237.28,0.00,COMMERCIAL SUPPLIER 
 22-08-2023,People - Ageing Well,Lodge Group Care UK Ltd,Home Care - Private Contractors Payment,895.47,0.00,COMMERCIAL SUPPLIER 
 22-08-2023,People - Ageing Well,Lodge Group Care UK Ltd,Home Care - Private Contractors Payment,899.11,0.00,COMMERCIAL SUPPLIER 
 22-08-2023,People - Ageing Well,Lodge Group Care UK Ltd,Home Care - Private Contractors Payment,922.77,0.00,COMMERCIAL SUPPLIER 
 22-08-2023,People - Ageing Well,Lodge Group Care UK Ltd,Home Care - Private Contractors Payment,611.54,0.00,COMMERCIAL SUPPLIER 
 22-08-2023,People - Ageing Well,Lodge Group Care UK Ltd,Home Care - Private Contractors Payment,611.54,0.00,COMMERCIAL SUPPLIER 
 22-08-2023,People - Ageing Well,Lodge Group Care UK Ltd,Home Care - Private Contractors Payment,1198.70,0.00,COMMERCIAL SUPPLIER 
 22-08-2023,People - Ageing Well,Lodge Group Care UK Ltd,Home Care - Private Contractors Payment,1199.06,0.00,COMMERCIAL SUPPLIER 
 22-08-2023,People - Ageing Well,Lodge Group Care UK Ltd,Home Care - Private Contractors Payment,998.12,0.00,COMMERCIAL SUPPLIER 
 22-08-2023,People - Ageing Well,Lodge Group Care UK Ltd,Home Care - Private Contractors Payment,1030.52,0.00,COMMERCIAL SUPPLIER 
 22-08-2023,People - Ageing Well,Lodge Group Care UK Ltd,Home Care - Private Contractors Payment,1228.54,0.00,COMMERCIAL SUPPLIER 
 22-08-2023,People - Ageing Well,Lodge Group Care UK Ltd,Home Care - Private Contractors Payment,678.15,0.00,COMMERCIAL SUPPLIER 
 22-08-2023,People - Ageing Well,Lodge Group Care UK Ltd,Home Care - Private Contractors Payment,919.86,0.00,COMMERCIAL SUPPLIER 
 22-08-2023,People - Ageing Well,Lodge Group Care UK Ltd,Home Care - Private Contractors Payment,1226.72,0.00,COMMERCIAL SUPPLIER 
 22-08-2023,People - Ageing Well,Lodge Group Care UK Ltd,Home Care - Private Contractors Payment,1076.39,0.00,COMMERCIAL SUPPLIER 
 22-08-2023,People - Ageing Well,Lodge Group Care UK Ltd,Home Care - Private Contractors Payment,861.97,0.00,COMMERCIAL SUPPLIER 
 22-08-2023,People - Ageing Well,Lodge Group Care UK Ltd,Home Care - Private Contractors Payment,1300.62,0.00,COMMERCIAL SUPPLIER 
 22-08-2023,People - Ageing Well,Lodge Group Care UK Ltd,Home Care - Private Contractors Payment,1410.18,0.00,COMMERCIAL SUPPLIER 
 22-08-2023,People - Ageing Well,Lodge Group Care UK Ltd,Home Care - Private Contractors Payment,524.18,0.00,COMMERCIAL SUPPLIER 
 22-08-2023,People - Ageing Well,Lodge Group Care UK Ltd,Home Care - Private Contractors Payment,972.28,0.00,COMMERCIAL SUPPLIER 
 22-08-2023,People - Ageing Well,Lodge Group Care UK Ltd,Home Care - Private Contractors Payment,797.19,0.00,COMMERCIAL SUPPLIER 
 22-08-2023,People - Ageing Well,Lodge Group Care UK Ltd,Home Care - Private Contractors Payment,900.20,0.00,COMMERCIAL SUPPLIER 
 22-08-2023,People - Ageing Well,Lodge Group Care UK Ltd,Home Care - Private Contractors Payment,775.71,0.00,COMMERCIAL SUPPLIER 
 22-08-2023,People - Ageing Well,Lodge Group Care UK Ltd,Home Care - Private Contractors Payment,611.54,0.00,COMMERCIAL SUPPLIER 
 22-08-2023,People - Ageing Well,Lodge Group Care UK Ltd,Home Care - Private Contractors Payment,1045.80,0.00,COMMERCIAL SUPPLIER 
 22-08-2023,People - Ageing Well,Lodge Group Care UK Ltd,Home Care - Private Contractors Payment,1168.11,0.00,COMMERCIAL SUPPLIER 
 22-08-2023,People - Ageing Well,Lodge Group Care UK Ltd,Home Care - Private Contractors Payment,1304.26,0.00,COMMERCIAL SUPPLIER 
 22-08-2023,People - Ageing Well,Lodge Group Care UK Ltd,Home Care - Private Contractors Payment,1232.55,0.00,COMMERCIAL SUPPLIER 
 22-08-2023,People - Ageing Well,Lodge Group Care UK Ltd,Home Care - Private Contractors Payment,1232.91,0.00,COMMERCIAL SUPPLIER 
 22-08-2023,People - Ageing Well,London Borough of Barking & Dagenham_a,Daycare - Private Contractors Payment,3880.00,0.00,LOCAL AUTHORITY SERVICES 
 22-08-2023,People - Ageing Well,London Borough of Barking & Dagenham_a,Daycare - Private Contractors Payment,2328.00,0.00,LOCAL AUTHORITY SERVICES 
 22-08-2023,People - Ageing Well,London Borough of Barking & Dagenham_a,Daycare - Private Contractors Payment,3880.00,0.00,LOCAL AUTHORITY SERVICES 
 22-08-2023,People - Ageing Well,London Borough of Barking & Dagenham_a,Daycare - Private Contractors Payment,1552.00,0.00,LOCAL AUTHORITY SERVICES 
 22-08-2023,People - Ageing Well,London Borough of Barking & Dagenham_a,Daycare - Private Contractors Payment,1552.00,0.00,LOCAL AUTHORITY SERVICES 
 22-08-2023,People - Ageing Well,London Borough of Barking & Dagenham_a,Daycare - Private Contractors Payment,776.00,0.00,LOCAL AUTHORITY SERVICES 
 22-08-2023,People - Ageing Well,London Borough of Barking & Dagenham_a,Daycare - Private Contractors Payment,2328.00,0.00,LOCAL AUTHORITY SERVICES 
 22-08-2023,People - Ageing Well,London Borough of Barking & Dagenham_a,Daycare - Private Contractors Payment,3880.00,0.00,LOCAL AUTHORITY SERVICES 
 22-08-2023,People - Ageing Well,London Borough of Barking & Dagenham_a,Daycare - Private Contractors Payment,3880.00,0.00,LOCAL AUTHORITY SERVICES 
 22-08-2023,People - Ageing Well,Flex360 Limited,Private Contractors Payment - Other,1750.00,0.00,COMMERCIAL SUPPLIER 
 22-08-2023,People - Ageing Well,Walker Management Ltd,Consultancy Fees,3665.00,0.00,COMMERCIAL SUPPLIER 
 23-08-2023,People - Ageing Well,Romford Private Hire Ltd,Client Transport,2325.00,0.00,COMMERCIAL SUPPLIER 
 23-08-2023,People - Ageing Well,Romford Private Hire Ltd,Client Transport,930.00,0.00,COMMERCIAL SUPPLIER 
 23-08-2023,People - Ageing Well,Homestead Care Service,Home Care - Private Contractors Payment,607.17,0.00,COMMERCIAL SUPPLIER 
 23-08-2023,People - Ageing Well,Homestead Care Service,Home Care - Private Contractors Payment,1104.05,0.00,COMMERCIAL SUPPLIER 
 23-08-2023,People - Ageing Well,Homestead Care Service,Home Care - Private Contractors Payment,1153.19,0.00,COMMERCIAL SUPPLIER 
 23-08-2023,People - Ageing Well,Homestead Care Service,Home Care - Private Contractors Payment,1250.02,0.00,COMMERCIAL SUPPLIER 
 23-08-2023,People - Ageing Well,Homestead Care Service,Home Care - Private Contractors Payment,1373.06,0.00,COMMERCIAL SUPPLIER 
 23-08-2023,People - Ageing Well,Homestead Care Service,Home Care - Private Contractors Payment,1259.48,0.00,COMMERCIAL SUPPLIER 
 23-08-2023,People - Ageing Well,Homestead Care Service,Home Care - Private Contractors Payment,1314.81,0.00,COMMERCIAL SUPPLIER 
 23-08-2023,People - Ageing Well,Homestead Care Service,Home Care - Private Contractors Payment,1223.08,0.00,COMMERCIAL SUPPLIER 
 23-08-2023,People - Ageing Well,Homestead Care Service,Home Care - Private Contractors Payment,1322.82,0.00,COMMERCIAL SUPPLIER 
 23-08-2023,People - Ageing Well,Homestead Care Service,Home Care - Private Contractors Payment,1068.73,0.00,COMMERCIAL SUPPLIER 
 23-08-2023,People - Ageing Well,Homestead Care Service,Home Care - Private Contractors Payment,1413.07,0.00,COMMERCIAL SUPPLIER 
 23-08-2023,People - Ageing Well,Homestead Care Service,Home Care - Private Contractors Payment,1198.69,0.00,COMMERCIAL SUPPLIER 
 23-08-2023,People - Ageing Well,Homestead Care Service,Home Care - Private Contractors Payment,660.67,0.00,COMMERCIAL SUPPLIER 
 23-08-2023,People - Ageing Well,Homestead Care Service,Home Care - Private Contractors Payment,792.45,0.00,COMMERCIAL SUPPLIER 
 23-08-2023,People - Ageing Well,Homestead Care Service,Home Care - Private Contractors Payment,803.37,0.00,COMMERCIAL SUPPLIER 
 23-08-2023,People - Ageing Well,Homestead Care Service,Home Care - Private Contractors Payment,1250.75,0.00,COMMERCIAL SUPPLIER 
 23-08-2023,People - Ageing Well,Homestead Care Service,Home Care - Private Contractors Payment,1253.30,0.00,COMMERCIAL SUPPLIER 
 23-08-2023,People - Ageing Well,Homestead Care Service,Home Care - Private Contractors Payment,952.99,0.00,COMMERCIAL SUPPLIER 
 23-08-2023,People - Ageing Well,Homestead Care Service,Home Care - Private Contractors Payment,1328.64,0.00,COMMERCIAL SUPPLIER 
 23-08-2023,People - Ageing Well,Homestead Care Service,Home Care - Private Contractors Payment,1349.76,0.00,COMMERCIAL SUPPLIER 
 23-08-2023,People - Ageing Well,Homestead Care Service,Home Care - Private Contractors Payment,524.17,0.00,COMMERCIAL SUPPLIER 
 23-08-2023,People - Ageing Well,Homestead Care Service,Home Care - Private Contractors Payment,1278.78,0.00,COMMERCIAL SUPPLIER 
 23-08-2023,People - Ageing Well,Homestead Care Service,Home Care - Private Contractors Payment,1278.41,0.00,COMMERCIAL SUPPLIER 
 23-08-2023,People - Ageing Well,Homestead Care Service,Home Care - Private Contractors Payment,971.91,0.00,COMMERCIAL SUPPLIER 
 23-08-2023,People - Ageing Well,Homestead Care Service,Home Care - Private Contractors Payment,1205.61,0.00,COMMERCIAL SUPPLIER 
 23-08-2023,People - Ageing Well,Homestead Care Service,Home Care - Private Contractors Payment,862.71,0.00,COMMERCIAL SUPPLIER 
 23-08-2023,People - Ageing Well,Homestead Care Service,Home Care - Private Contractors Payment,895.47,0.00,COMMERCIAL SUPPLIER 
 23-08-2023,People - Ageing Well,Homestead Care Service,Home Care - Private Contractors Payment,1342.84,0.00,COMMERCIAL SUPPLIER 
 23-08-2023,People - Ageing Well,Homestead Care Service,Home Care - Private Contractors Payment,1314.45,0.00,COMMERCIAL SUPPLIER 
 23-08-2023,People - Ageing Well,Homestead Care Service,Home Care - Private Contractors Payment,1254.02,0.00,COMMERCIAL SUPPLIER 
 23-08-2023,People - Ageing Well,Homestead Care Service,Home Care - Private Contractors Payment,1289.33,0.00,COMMERCIAL SUPPLIER 
 23-08-2023,People - Ageing Well,Homestead Care Service,Home Care - Private Contractors Payment,615.55,0.00,COMMERCIAL SUPPLIER 
 23-08-2023,People - Ageing Well,Homestead Care Service,Home Care - Private Contractors Payment,568.59,0.00,COMMERCIAL SUPPLIER 
 23-08-2023,People - Ageing Well,Homestead Care Service,Home Care - Private Contractors Payment,1214.71,0.00,COMMERCIAL SUPPLIER 
 23-08-2023,People - Ageing Well,Homestead Care Service,Home Care - Private Contractors Payment,1239.10,0.00,COMMERCIAL SUPPLIER 
 23-08-2023,People - Ageing Well,Homestead Care Service,Home Care - Private Contractors Payment,645.39,0.00,COMMERCIAL SUPPLIER 
 23-08-2023,People - Ageing Well,Homestead Care Service,Home Care - Private Contractors Payment,675.61,0.00,COMMERCIAL SUPPLIER 
 23-08-2023,People - Ageing Well,Homestead Care Service,Home Care - Private Contractors Payment,594.07,0.00,COMMERCIAL SUPPLIER 
 23-08-2023,People - Ageing Well,Homestead Care Service,Home Care - Private Contractors Payment,659.23,0.00,COMMERCIAL SUPPLIER 
 23-08-2023,People - Ageing Well,Homestead Care Service,Home Care - Private Contractors Payment,1342.11,0.00,COMMERCIAL SUPPLIER 
 23-08-2023,People - Ageing Well,Homestead Care Service,Home Care - Private Contractors Payment,1223.81,0.00,COMMERCIAL SUPPLIER 
 23-08-2023,People - Ageing Well,Homestead Care Service,Home Care - Private Contractors Payment,1234.73,0.00,COMMERCIAL SUPPLIER 
 23-08-2023,People - Ageing Well,Homestead Care Service,Home Care - Private Contractors Payment,1229.27,0.00,COMMERCIAL SUPPLIER 
 23-08-2023,People - Ageing Well,Homestead Care Service,Home Care - Private Contractors Payment,1235.46,0.00,COMMERCIAL SUPPLIER 
 23-08-2023,People - Ageing Well,Homestead Care Service,Home Care - Private Contractors Payment,943.89,0.00,COMMERCIAL SUPPLIER 
 23-08-2023,People - Ageing Well,Homestead Care Service,Home Care - Private Contractors Payment,969.37,0.00,COMMERCIAL SUPPLIER 
 23-08-2023,People - Ageing Well,Homestead Care Service,Home Care - Private Contractors Payment,1223.08,0.00,COMMERCIAL SUPPLIER 
 23-08-2023,People - Ageing Well,Homestead Care Service,Home Care - Private Contractors Payment,1237.64,0.00,COMMERCIAL SUPPLIER 
 23-08-2023,People - Ageing Well,Homestead Care Service,Home Care - Private Contractors Payment,1208.52,0.00,COMMERCIAL SUPPLIER 
 23-08-2023,People - Ageing Well,Homestead Care Service,Home Care - Private Contractors Payment,1578.35,0.00,COMMERCIAL SUPPLIER 
 23-08-2023,People - Ageing Well,Homestead Care Service,Home Care - Private Contractors Payment,1226.72,0.00,COMMERCIAL SUPPLIER 
 23-08-2023,People - Ageing Well,Homestead Care Service,Home Care - Private Contractors Payment,1203.79,0.00,COMMERCIAL SUPPLIER 
 23-08-2023,People - Ageing Well,Homestead Care Service,Home Care - Private Contractors Payment,1223.08,0.00,COMMERCIAL SUPPLIER 
 23-08-2023,People - Ageing Well,Homestead Care Service,Home Care - Private Contractors Payment,982.83,0.00,COMMERCIAL SUPPLIER 
 23-08-2023,People - Ageing Well,Homestead Care Service,Home Care - Private Contractors Payment,710.92,0.00,COMMERCIAL SUPPLIER 
 23-08-2023,People - Ageing Well,Homestead Care Service,Home Care - Private Contractors Payment,1191.05,0.00,COMMERCIAL SUPPLIER 
 23-08-2023,People - Ageing Well,Homestead Care Service,Home Care - Private Contractors Payment,1202.34,0.00,COMMERCIAL SUPPLIER 
 23-08-2023,People - Ageing Well,Homestead Care Service,Home Care - Private Contractors Payment,1223.08,0.00,COMMERCIAL SUPPLIER 
 23-08-2023,People - Ageing Well,Homestead Care Service,Home Care - Private Contractors Payment,786.27,0.00,COMMERCIAL SUPPLIER 
 23-08-2023,People - Ageing Well,Homestead Care Service,Home Care - Private Contractors Payment,1014.50,0.00,COMMERCIAL SUPPLIER 
 23-08-2023,People - Ageing Well,Homestead Care Service,Home Care - Private Contractors Payment,581.69,0.00,COMMERCIAL SUPPLIER 
 23-08-2023,People - Ageing Well,Homestead Care Service,Home Care - Private Contractors Payment,582.42,0.00,COMMERCIAL SUPPLIER 
 23-08-2023,People - Ageing Well,Homestead Care Service,Home Care - Private Contractors Payment,689.80,0.00,COMMERCIAL SUPPLIER 
 23-08-2023,People - Ageing Well,Homestead Care Service,Home Care - Private Contractors Payment,1304.62,0.00,COMMERCIAL SUPPLIER 
 23-08-2023,People - Ageing Well,Homestead Care Service,Home Care - Private Contractors Payment,1317.00,0.00,COMMERCIAL SUPPLIER 
 23-08-2023,People - Ageing Well,Homestead Care Service,Home Care - Private Contractors Payment,970.82,0.00,COMMERCIAL SUPPLIER 
 23-08-2023,People - Ageing Well,Homestead Care Service,Home Care - Private Contractors Payment,1297.34,0.00,COMMERCIAL SUPPLIER 
 23-08-2023,People - Ageing Well,Homestead Care Service,Home Care - Private Contractors Payment,1300.62,0.00,COMMERCIAL SUPPLIER 
 23-08-2023,People - Ageing Well,Homestead Care Service,Home Care - Private Contractors Payment,746.23,0.00,COMMERCIAL SUPPLIER 
 23-08-2023,People - Ageing Well,Homestead Care Service,Home Care - Private Contractors Payment,1341.02,0.00,COMMERCIAL SUPPLIER 
 23-08-2023,People - Ageing Well,Homestead Care Service,Home Care - Private Contractors Payment,1230.36,0.00,COMMERCIAL SUPPLIER 
 23-08-2023,People - Ageing Well,Homestead Care Service,Home Care - Private Contractors Payment,600.62,0.00,COMMERCIAL SUPPLIER 
 23-08-2023,People - Ageing Well,Homestead Care Service,Home Care - Private Contractors Payment,590.07,0.00,COMMERCIAL SUPPLIER 
 23-08-2023,People - Ageing Well,Homestead Care Service,Home Care - Private Contractors Payment,600.62,0.00,COMMERCIAL SUPPLIER 
 23-08-2023,People - Ageing Well,Homestead Care Service,Home Care - Private Contractors Payment,1210.71,0.00,COMMERCIAL SUPPLIER 
 23-08-2023,People - Ageing Well,Homestead Care Service,Home Care - Private Contractors Payment,1228.54,0.00,COMMERCIAL SUPPLIER 
 23-08-2023,People - Ageing Well,Homestead Care Service,Home Care - Private Contractors Payment,1333.74,0.00,COMMERCIAL SUPPLIER 
 23-08-2023,People - Ageing Well,Homestead Care Service,Home Care - Private Contractors Payment,1212.16,0.00,COMMERCIAL SUPPLIER 
 23-08-2023,People - Ageing Well,Homestead Care Service,Home Care - Private Contractors Payment,1212.16,0.00,COMMERCIAL SUPPLIER 
 23-08-2023,People - Ageing Well,Homestead Care Service,Home Care - Private Contractors Payment,1223.08,0.00,COMMERCIAL SUPPLIER 
 23-08-2023,People - Ageing Well,Homestead Care Service,Home Care - Private Contractors Payment,679.98,0.00,COMMERCIAL SUPPLIER 
 23-08-2023,People - Ageing Well,Homestead Care Service,Home Care - Private Contractors Payment,702.55,0.00,COMMERCIAL SUPPLIER 
 23-08-2023,People - Ageing Well,Homestead Care Service,Home Care - Private Contractors Payment,687.99,0.00,COMMERCIAL SUPPLIER 
 23-08-2023,People - Ageing Well,Homestead Care Service,Home Care - Private Contractors Payment,1030.87,0.00,COMMERCIAL SUPPLIER 
 23-08-2023,People - Ageing Well,Homestead Care Service,Home Care - Private Contractors Payment,1191.05,0.00,COMMERCIAL SUPPLIER 
 23-08-2023,People - Ageing Well,Homestead Care Service,Home Care - Private Contractors Payment,1515.38,0.00,COMMERCIAL SUPPLIER 
 23-08-2023,People - Ageing Well,Homestead Care Service,Home Care - Private Contractors Payment,1106.23,0.00,COMMERCIAL SUPPLIER 
 23-08-2023,People - Ageing Well,Homestead Care Service,Home Care - Private Contractors Payment,1213.26,0.00,COMMERCIAL SUPPLIER 
 23-08-2023,People - Ageing Well,Homestead Care Service,Home Care - Private Contractors Payment,1213.26,0.00,COMMERCIAL SUPPLIER 
 23-08-2023,People - Ageing Well,Homestead Care Service,Home Care - Private Contractors Payment,1272.95,0.00,COMMERCIAL SUPPLIER 
 23-08-2023,People - Ageing Well,Homestead Care Service,Home Care - Private Contractors Payment,1285.69,0.00,COMMERCIAL SUPPLIER 
 23-08-2023,People - Ageing Well,Homestead Care Service,Home Care - Private Contractors Payment,1295.88,0.00,COMMERCIAL SUPPLIER 
 23-08-2023,People - Ageing Well,Homestead Care Service,Home Care - Private Contractors Payment,536.19,0.00,COMMERCIAL SUPPLIER 
 23-08-2023,People - Ageing Well,Homestead Care Service,Home Care - Private Contractors Payment,1461.50,0.00,COMMERCIAL SUPPLIER 
 23-08-2023,People - Ageing Well,Homestead Care Service,Home Care - Private Contractors Payment,1284.24,0.00,COMMERCIAL SUPPLIER 
 23-08-2023,People - Ageing Well,Homestead Care Service,Home Care - Private Contractors Payment,1221.62,0.00,COMMERCIAL SUPPLIER 
 23-08-2023,People - Ageing Well,Homestead Care Service,Home Care - Private Contractors Payment,916.22,0.00,COMMERCIAL SUPPLIER 
 23-08-2023,People - Ageing Well,Homestead Care Service,Home Care - Private Contractors Payment,831.04,0.00,COMMERCIAL SUPPLIER 
 23-08-2023,People - Ageing Well,Homestead Care Service,Home Care - Private Contractors Payment,1204.88,0.00,COMMERCIAL SUPPLIER 
 23-08-2023,People - Ageing Well,Homestead Care Service,Home Care - Private Contractors Payment,822.31,0.00,COMMERCIAL SUPPLIER 
 23-08-2023,People - Ageing Well,Homestead Care Service,Home Care - Private Contractors Payment,920.95,0.00,COMMERCIAL SUPPLIER 
 23-08-2023,People - Ageing Well,Care-Away Ltd T/A Care Support,Private Contractors Payment - Other,20828.31,0.00,COMMERCIAL SUPPLIER 
 23-08-2023,People - Ageing Well,Cera Care Operations Ltd,Home Care - Private Contractors Payment,837.96,0.00,COMMERCIAL SUPPLIER 
 23-08-2023,People - Ageing Well,Cera Care Operations Ltd,Home Care - Private Contractors Payment,1270.40,0.00,COMMERCIAL SUPPLIER 
 23-08-2023,People - Ageing Well,Cera Care Operations Ltd,Home Care - Private Contractors Payment,1430.93,0.00,COMMERCIAL SUPPLIER 
 23-08-2023,People - Ageing Well,Cera Care Operations Ltd,Home Care - Private Contractors Payment,1460.78,0.00,COMMERCIAL SUPPLIER 
 23-08-2023,People - Ageing Well,Cera Care Operations Ltd,Home Care - Private Contractors Payment,927.87,0.00,COMMERCIAL SUPPLIER 
 23-08-2023,People - Ageing Well,Cera Care Operations Ltd,Home Care - Private Contractors Payment,1242.01,0.00,COMMERCIAL SUPPLIER 
 23-08-2023,People - Ageing Well,Cera Care Operations Ltd,Home Care - Private Contractors Payment,618.46,0.00,COMMERCIAL SUPPLIER 
 23-08-2023,People - Ageing Well,Cera Care Operations Ltd,Home Care - Private Contractors Payment,1255.84,0.00,COMMERCIAL SUPPLIER 
 23-08-2023,People - Ageing Well,Cera Care Operations Ltd,Home Care - Private Contractors Payment,1353.03,0.00,COMMERCIAL SUPPLIER 
 23-08-2023,People - Ageing Well,Cera Care Operations Ltd,Home Care - Private Contractors Payment,600.62,0.00,COMMERCIAL SUPPLIER 
 23-08-2023,People - Ageing Well,Cera Care Operations Ltd,Home Care - Private Contractors Payment,611.54,0.00,COMMERCIAL SUPPLIER 
 23-08-2023,People - Ageing Well,Cera Care Operations Ltd,Home Care - Private Contractors Payment,1254.75,0.00,COMMERCIAL SUPPLIER 
 23-08-2023,People - Ageing Well,Cera Care Operations Ltd,Home Care - Private Contractors Payment,1089.49,0.00,COMMERCIAL SUPPLIER 
 23-08-2023,People - Ageing Well,Cera Care Operations Ltd,Home Care - Private Contractors Payment,625.74,0.00,COMMERCIAL SUPPLIER 
 23-08-2023,People - Ageing Well,Cera Care Operations Ltd,Home Care - Private Contractors Payment,630.11,0.00,COMMERCIAL SUPPLIER 
 23-08-2023,People - Ageing Well,Cera Care Operations Ltd,Home Care - Private Contractors Payment,1109.51,0.00,COMMERCIAL SUPPLIER 
 23-08-2023,People - Ageing Well,Cera Care Operations Ltd,Home Care - Private Contractors Payment,746.95,0.00,COMMERCIAL SUPPLIER 
 23-08-2023,People - Ageing Well,Cera Care Operations Ltd,Home Care - Private Contractors Payment,907.48,0.00,COMMERCIAL SUPPLIER 
 23-08-2023,People - Ageing Well,Cera Care Operations Ltd,Home Care - Private Contractors Payment,946.07,0.00,COMMERCIAL SUPPLIER 
 23-08-2023,People - Ageing Well,Cera Care Operations Ltd,Home Care - Private Contractors Payment,694.17,0.00,COMMERCIAL SUPPLIER 
 23-08-2023,People - Ageing Well,Cera Care Operations Ltd,Home Care - Private Contractors Payment,1345.02,0.00,COMMERCIAL SUPPLIER 
 23-08-2023,People - Ageing Well,Cera Care Operations Ltd,Home Care - Private Contractors Payment,906.76,0.00,COMMERCIAL SUPPLIER 
 23-08-2023,People - Ageing Well,Cera Care Operations Ltd,Home Care - Private Contractors Payment,1511.01,0.00,COMMERCIAL SUPPLIER 
 23-08-2023,People - Ageing Well,Cera Care Operations Ltd,Home Care - Private Contractors Payment,1739.60,0.00,COMMERCIAL SUPPLIER 
 23-08-2023,People - Ageing Well,Cera Care Operations Ltd,Home Care - Private Contractors Payment,971.91,0.00,COMMERCIAL SUPPLIER 
 23-08-2023,People - Ageing Well,Cera Care Operations Ltd,Home Care - Private Contractors Payment,1213.98,0.00,COMMERCIAL SUPPLIER 
 23-08-2023,People - Ageing Well,Cera Care Operations Ltd,Home Care - Private Contractors Payment,1232.91,0.00,COMMERCIAL SUPPLIER 
 23-08-2023,People - Ageing Well,Cera Care Operations Ltd,Home Care - Private Contractors Payment,1017.78,0.00,COMMERCIAL SUPPLIER 
 23-08-2023,People - Ageing Well,Cera Care Operations Ltd,Home Care - Private Contractors Payment,583.51,0.00,COMMERCIAL SUPPLIER 
 23-08-2023,People - Ageing Well,Cera Care Operations Ltd,Home Care - Private Contractors Payment,1224.54,0.00,COMMERCIAL SUPPLIER 
 23-08-2023,People - Ageing Well,Cera Care Operations Ltd,Home Care - Private Contractors Payment,1241.28,0.00,COMMERCIAL SUPPLIER 
 23-08-2023,People - Ageing Well,Cera Care Operations Ltd,Home Care - Private Contractors Payment,808.84,0.00,COMMERCIAL SUPPLIER 
 23-08-2023,People - Ageing Well,Cera Care Operations Ltd,Home Care - Private Contractors Payment,664.32,0.00,COMMERCIAL SUPPLIER 
 23-08-2023,People - Ageing Well,Cera Care Operations Ltd,Home Care - Private Contractors Payment,1211.80,0.00,COMMERCIAL SUPPLIER 
 23-08-2023,People - Ageing Well,Cera Care Operations Ltd,Home Care - Private Contractors Payment,6572.80,0.00,COMMERCIAL SUPPLIER 
 23-08-2023,People - Ageing Well,Cera Care Operations Ltd,Home Care - Private Contractors Payment,1399.99,0.00,COMMERCIAL SUPPLIER 
 23-08-2023,People - Ageing Well,Cera Care Operations Ltd,Home Care - Private Contractors Payment,1229.63,0.00,COMMERCIAL SUPPLIER 
 23-08-2023,People - Ageing Well,Cera Care Operations Ltd,Home Care - Private Contractors Payment,923.50,0.00,COMMERCIAL SUPPLIER 
 23-08-2023,People - Ageing Well,Cera Care Operations Ltd,Home Care - Private Contractors Payment,942.07,0.00,COMMERCIAL SUPPLIER 
 23-08-2023,People - Ageing Well,Cera Care Operations Ltd,Home Care - Private Contractors Payment,1037.44,0.00,COMMERCIAL SUPPLIER 
 23-08-2023,People - Ageing Well,Everycare Romford ,Home Care - Private Contractors Payment,1594.32,0.00,COMMERCIAL SUPPLIER 
 23-08-2023,People - Ageing Well,Everycare Romford ,Home Care - Private Contractors Payment,1900.08,0.00,COMMERCIAL SUPPLIER 
 23-08-2023,People - Ageing Well,Home Sweet Home Care Ltd,Home Care - Private Contractors Payment,926.05,0.00,COMMERCIAL SUPPLIER 
 23-08-2023,People - Ageing Well,Home Sweet Home Care Ltd,Home Care - Private Contractors Payment,612.63,0.00,COMMERCIAL SUPPLIER 
 23-08-2023,People - Ageing Well,Home Sweet Home Care Ltd,Home Care - Private Contractors Payment,612.63,0.00,COMMERCIAL SUPPLIER 
 23-08-2023,People - Ageing Well,Home Sweet Home Care Ltd,Home Care - Private Contractors Payment,558.76,0.00,COMMERCIAL SUPPLIER 
 23-08-2023,People - Ageing Well,Home Sweet Home Care Ltd,Home Care - Private Contractors Payment,1343.20,0.00,COMMERCIAL SUPPLIER 
 23-08-2023,People - Ageing Well,Home Sweet Home Care Ltd,Home Care - Private Contractors Payment,2042.09,0.00,COMMERCIAL SUPPLIER 
 23-08-2023,People - Ageing Well,Home Sweet Home Care Ltd,Home Care - Private Contractors Payment,913.67,0.00,COMMERCIAL SUPPLIER 
 23-08-2023,People - Ageing Well,Home Sweet Home Care Ltd,Home Care - Private Contractors Payment,1236.55,0.00,COMMERCIAL SUPPLIER 
 23-08-2023,People - Ageing Well,Home Sweet Home Care Ltd,Home Care - Private Contractors Payment,1854.62,0.00,COMMERCIAL SUPPLIER 
 23-08-2023,People - Ageing Well,Home Sweet Home Care Ltd,Home Care - Private Contractors Payment,1254.02,0.00,COMMERCIAL SUPPLIER 
 23-08-2023,People - Ageing Well,Home Sweet Home Care Ltd,Home Care - Private Contractors Payment,3464.56,0.00,COMMERCIAL SUPPLIER 
 23-08-2023,People - Ageing Well,Home Sweet Home Care Ltd,Home Care - Private Contractors Payment,589.70,0.00,COMMERCIAL SUPPLIER 
 23-08-2023,People - Ageing Well,Home Sweet Home Care Ltd,Home Care - Private Contractors Payment,534.37,0.00,COMMERCIAL SUPPLIER 
 23-08-2023,People - Ageing Well,Home Sweet Home Care Ltd,Home Care - Private Contractors Payment,924.23,0.00,COMMERCIAL SUPPLIER 
 23-08-2023,People - Ageing Well,Home Sweet Home Care Ltd,Home Care - Private Contractors Payment,924.23,0.00,COMMERCIAL SUPPLIER 
 23-08-2023,People - Ageing Well,Home Sweet Home Care Ltd,Home Care - Private Contractors Payment,929.32,0.00,COMMERCIAL SUPPLIER 
 23-08-2023,People - Ageing Well,Home Sweet Home Care Ltd,Home Care - Private Contractors Payment,1201.24,0.00,COMMERCIAL SUPPLIER 
 23-08-2023,People - Ageing Well,Home Sweet Home Care Ltd,Home Care - Private Contractors Payment,1223.45,0.00,COMMERCIAL SUPPLIER 
 23-08-2023,People - Ageing Well,Home Sweet Home Care Ltd,Home Care - Private Contractors Payment,641.75,0.00,COMMERCIAL SUPPLIER 
 23-08-2023,People - Ageing Well,Home Sweet Home Care Ltd,Home Care - Private Contractors Payment,1298.42,0.00,COMMERCIAL SUPPLIER 
 23-08-2023,People - Ageing Well,Home Sweet Home Care Ltd,Home Care - Private Contractors Payment,546.02,0.00,COMMERCIAL SUPPLIER 
 23-08-2023,People - Ageing Well,Home Sweet Home Care Ltd,Home Care - Private Contractors Payment,732.03,0.00,COMMERCIAL SUPPLIER 
 23-08-2023,People - Ageing Well,Home Sweet Home Care Ltd,Home Care - Private Contractors Payment,630.11,0.00,COMMERCIAL SUPPLIER 
 23-08-2023,People - Ageing Well,Home Sweet Home Care Ltd,Home Care - Private Contractors Payment,1210.34,0.00,COMMERCIAL SUPPLIER 
 23-08-2023,People - Ageing Well,Home Sweet Home Care Ltd,Home Care - Private Contractors Payment,1258.75,0.00,COMMERCIAL SUPPLIER 
 23-08-2023,People - Ageing Well,Home Sweet Home Care Ltd,Home Care - Private Contractors Payment,600.62,0.00,COMMERCIAL SUPPLIER 
 23-08-2023,People - Ageing Well,Home Sweet Home Care Ltd,Home Care - Private Contractors Payment,1223.81,0.00,COMMERCIAL SUPPLIER 
 23-08-2023,People - Ageing Well,Home Sweet Home Care Ltd,Home Care - Private Contractors Payment,1235.46,0.00,COMMERCIAL SUPPLIER 
 23-08-2023,People - Ageing Well,Home Sweet Home Care Ltd,Home Care - Private Contractors Payment,1235.10,0.00,COMMERCIAL SUPPLIER 
 23-08-2023,People - Ageing Well,Home Sweet Home Care Ltd,Home Care - Private Contractors Payment,524.18,0.00,COMMERCIAL SUPPLIER 
 23-08-2023,People - Ageing Well,Home Sweet Home Care Ltd,Home Care - Private Contractors Payment,906.39,0.00,COMMERCIAL SUPPLIER 
 23-08-2023,People - Ageing Well,Home Sweet Home Care Ltd,Home Care - Private Contractors Payment,716.74,0.00,COMMERCIAL SUPPLIER 
 23-08-2023,People - Ageing Well,Home Sweet Home Care Ltd,Home Care - Private Contractors Payment,611.54,0.00,COMMERCIAL SUPPLIER 
 23-08-2023,People - Ageing Well,Home Sweet Home Care Ltd,Home Care - Private Contractors Payment,830.31,0.00,COMMERCIAL SUPPLIER 
 23-08-2023,People - Ageing Well,Home Sweet Home Care Ltd,Home Care - Private Contractors Payment,830.31,0.00,COMMERCIAL SUPPLIER 
 23-08-2023,People - Ageing Well,Home Sweet Home Care Ltd,Home Care - Private Contractors Payment,1224.54,0.00,COMMERCIAL SUPPLIER 
 23-08-2023,People - Ageing Well,Home Sweet Home Care Ltd,Home Care - Private Contractors Payment,594.07,0.00,COMMERCIAL SUPPLIER 
 23-08-2023,People - Ageing Well,Home Sweet Home Care Ltd,Home Care - Private Contractors Payment,1219.81,0.00,COMMERCIAL SUPPLIER 
 23-08-2023,People - Ageing Well,Home Sweet Home Care Ltd,Home Care - Private Contractors Payment,853.25,0.00,COMMERCIAL SUPPLIER 
 23-08-2023,People - Ageing Well,Home Sweet Home Care Ltd,Home Care - Private Contractors Payment,1220.89,0.00,COMMERCIAL SUPPLIER 
 23-08-2023,People - Ageing Well,Home Sweet Home Care Ltd,Home Care - Private Contractors Payment,1190.32,0.00,COMMERCIAL SUPPLIER 
 23-08-2023,People - Ageing Well,Home Sweet Home Care Ltd,Home Care - Private Contractors Payment,841.59,0.00,COMMERCIAL SUPPLIER 
 23-08-2023,People - Ageing Well,Home Sweet Home Care Ltd,Home Care - Private Contractors Payment,589.70,0.00,COMMERCIAL SUPPLIER 
 23-08-2023,People - Ageing Well,Home Sweet Home Care Ltd,Home Care - Private Contractors Payment,936.97,0.00,COMMERCIAL SUPPLIER 
 23-08-2023,People - Ageing Well,Home Sweet Home Care Ltd,Home Care - Private Contractors Payment,1215.08,0.00,COMMERCIAL SUPPLIER 
 23-08-2023,People - Ageing Well,Home Sweet Home Care Ltd,Home Care - Private Contractors Payment,929.69,0.00,COMMERCIAL SUPPLIER 
